{"text_format":"1","workbook":"xlsx","n_sheets":5,"sheets":["Electronic Ab","Data Sheet","help sheet","final sheet","Sheet1"],"not_rendered":{"charts":0,"images":0,"macros":1,"external_links":0,"defined_names":7,"comments":0,"pivot_tables":0},"unopened":[],"bounds":{"document_bytes":16777216,"sheet_cells":100000,"rows_first":2000,"rows_last":500,"rows_between":2000,"halvings":0,"cell_chars":16384,"cell_head_chars":4096},"cells_cut":0,"cells_raw":0,"read":"whole","date_system":"1900"}

{"sheet":"Electronic Ab","index":0,"n_rows":3,"n_cols":20,"rows_kept":3,"cut":false,"hidden":false,"merged":[[0,19,1,19],[0,5,1,5],[0,6,0,7],[0,16,1,16],[0,18,1,18],[0,17,1,17],[0,15,1,15],[0,14,1,14],[0,12,1,12],[0,13,1,13]]}
["x",null,null,"م"]
[null,null,null,1,null,null,null,null,5]
["م","اسم الطالب","اسم الاب","اسم الجد","باقى الاسم","الرقم القومى","تاريخ الميلاد","اسم الام","اسم الاب لام","اسم الجد لام","باقى اسم الام","العنوان ","رقم التيليفون","رقم المحمول","المحافظة","الفصل","رقم الصف","النوع","اللغة الثانية","الصف"]

{"sheet":"Data Sheet","index":1,"n_rows":517,"n_cols":18,"rows_kept":517,"cut":false,"hidden":false,"merged":[[3,0,4,0],[3,1,4,1],[3,2,4,2],[3,3,4,3],[3,4,4,4],[3,16,4,16],[3,15,4,15],[3,5,4,5],[3,6,3,8],[3,9,4,9],[3,12,4,12],[3,13,4,13]]}
[]
[null,null,null,"و","ولد",null,null,"الصف روضة أول بنين العام الدراسى: 2022 - 2023"]
[null,null,null,"ب","بنت"]
["م","اسم الطالب","الجنسية","النوع","الديانة","العنوان ","تاريخ الميلاد",null,null,"الرقم القومى","التليفون","موبايل الاب","جهة الميلاد","اسم الام","رقم الفصل","اللغة الثانية","الصف"]
[null,null,null,null,null,null,"يوم","شهر","سنة",null,"المنزل","المحمول",null,null,2023,null,"الصف"]
[1,"لى لى عبد رب النبى عبد الرحمن","مصرى","و","مسلم","مدينتى - B3 - مجموعة 32 عمارة 36 abcdef()/-.",{"$f":"MID(J6,6,2)","v":"15"},{"$f":"MID(J6,4,2)","v":"05"},{"$f":"\"20\"&MID(J6,2,2)","v":"2017"},31705150108774,"01007704932","01007704900",{"$f":"VLOOKUP(R6,'help sheet'!$AB$6:$AC$35,2,0)","v":"القاهرة"},"منه الله عبد رب الرسول علاء الدين  احمد محمد منصور",6,"معفى","رياض اطفال1",{"$f":"MID(J6,8,2)","v":"01"}]
[null,null,null,null,null,null,{"$f":"MID(J7,6,2)","v":"15"},{"$f":"MID(J7,4,2)","v":"05"},{"$f":"\"20\"&MID(J7,2,2)","v":"2017"},31705150208774,null,null,{"$f":"VLOOKUP(R7,'help sheet'!$AB$6:$AC$35,2,0)","v":"الإسكندرية"},null,null,"معفى","رياض اطفال1",{"$f":"MID(J7,8,2)","v":"02"}]
[null,null,null,null,null,null,"15","05","2017",31705150308774,null,null,{"$f":"VLOOKUP(R8,'help sheet'!$AB$6:$AC$35,2,0)","v":"بورسعيد"},null,null,"معفى","رياض اطفال1","03"]
[null,null,null,null,null,null,"15","05","2017",31705150408774,null,null,{"$f":"VLOOKUP(R9,'help sheet'!$AB$6:$AC$35,2,0)","v":"السويس"},null,null,"معفى","رياض اطفال1","04"]
[null,null,null,null,null,null,"15","05","2017",31705151118774,null,null,{"$f":"VLOOKUP(R10,'help sheet'!$AB$6:$AC$35,2,0)","v":"دمياط"},null,null,"معفى","رياض اطفال1",{"$f":"MID(J10,8,2)","v":"11"}]
[null,null,null,null,null,null,"15","05","2017",31705151228774,null,null,{"$f":"VLOOKUP(R11,'help sheet'!$AB$6:$AC$35,2,0)","v":"الدقهلية"},null,null,"معفى","رياض اطفال1","12"]
[null,null,null,null,null,null,"15","05","2017",31705151308774,null,null,{"$f":"VLOOKUP(R12,'help sheet'!$AB$6:$AC$35,2,0)","v":"الشرقية"},null,null,"معفى","رياض اطفال1","13"]
[null,null,null,null,null,null,"15","05","2017",31705151408774,null,null,{"$f":"VLOOKUP(R13,'help sheet'!$AB$6:$AC$35,2,0)","v":"القليوبية"},null,null,"معفى","رياض اطفال1","14"]
[null,null,null,null,null,null,"15","05","2017",31705151508774,null,null,{"$f":"VLOOKUP(R14,'help sheet'!$AB$6:$AC$35,2,0)","v":"كفر الشيخ"},null,null,"معفى","رياض اطفال1","15"]
[null,null,null,null,null,null,"15","05","2017",31705151608774,null,null,{"$f":"VLOOKUP(R15,'help sheet'!$AB$6:$AC$35,2,0)","v":"الغربية"},null,null,"معفى","رياض اطفال1","16"]
[null,null,null,null,null,null,"15","05","2017",31705151708774,null,null,{"$f":"VLOOKUP(R16,'help sheet'!$AB$6:$AC$35,2,0)","v":"المنوفية"},null,null,"معفى","رياض اطفال1","17"]
[null,null,null,null,null,null,"15","05","2017",31705151808774,null,null,{"$f":"VLOOKUP(R17,'help sheet'!$AB$6:$AC$35,2,0)","v":"البحيرة"},null,null,"معفى","رياض اطفال1","18"]
[null,null,null,null,null,null,"15","05","2017",31705151908774,null,null,{"$f":"VLOOKUP(R18,'help sheet'!$AB$6:$AC$35,2,0)","v":"الإسماعيلية"},null,null,"معفى","رياض اطفال1","19"]
[null,null,null,null,null,null,"15","05","2017",31705152108774,null,null,{"$f":"VLOOKUP(R19,'help sheet'!$AB$6:$AC$35,2,0)","v":"الجيزة"},null,null,"معفى","رياض اطفال1","21"]
[null,null,null,null,null,null,"15","05","2017",31705152208774,null,null,{"$f":"VLOOKUP(R20,'help sheet'!$AB$6:$AC$35,2,0)","v":"بني سويف"},null,null,"معفى","رياض اطفال1","22"]
[null,null,null,null,null,null,"15","05","2017",31705152308774,null,null,{"$f":"VLOOKUP(R21,'help sheet'!$AB$6:$AC$35,2,0)","v":"الفيوم"},null,null,"معفى","رياض اطفال1","23"]
[null,null,null,null,null,null,"15","05","2017",31705152408774,null,null,{"$f":"VLOOKUP(R22,'help sheet'!$AB$6:$AC$35,2,0)","v":"المنيا"},null,null,"معفى","رياض اطفال1","24"]
[null,null,null,null,null,null,"15","05","2017",31705152508774,null,null,{"$f":"VLOOKUP(R23,'help sheet'!$AB$6:$AC$35,2,0)","v":"أسيوط"},null,null,"معفى","رياض اطفال1","25"]
[null,null,null,null,null,null,"15","05","2017",31705152608774,null,null,{"$f":"VLOOKUP(R24,'help sheet'!$AB$6:$AC$35,2,0)","v":"سوهاج"},null,null,"معفى","رياض اطفال1","26"]
[null,null,null,null,null,null,"15","05","2017",31705152708774,null,null,{"$f":"VLOOKUP(R25,'help sheet'!$AB$6:$AC$35,2,0)","v":"قنا"},null,null,"معفى","رياض اطفال1","27"]
[null,null,null,null,null,null,"15","05","2017",31705152808774,null,null,{"$f":"VLOOKUP(R26,'help sheet'!$AB$6:$AC$35,2,0)","v":"أسوان"},null,null,"معفى","رياض اطفال1","28"]
[null,null,null,null,null,null,"15","05","2017",31705152908774,null,null,{"$f":"VLOOKUP(R27,'help sheet'!$AB$6:$AC$35,2,0)","v":"الأقصر"},null,null,"معفى","رياض اطفال1","29"]
[null,null,null,null,null,null,"15","05","2017",31705153008774,null,null,{"$f":"VLOOKUP(R28,'help sheet'!$AB$6:$AC$35,2,0)","v":{"$error":"#N/A"}},null,null,"معفى","رياض اطفال1","30"]
[null,null,null,null,null,null,"15","05","2017",31705153108774,null,null,{"$f":"VLOOKUP(R29,'help sheet'!$AB$6:$AC$35,2,0)","v":"البحر الأحمر"},null,null,"معفى","رياض اطفال1","31"]
[null,null,null,null,null,null,"15","05","2017",31705153208774,null,null,{"$f":"VLOOKUP(R30,'help sheet'!$AB$6:$AC$35,2,0)","v":"الوادي الجديد"},null,null,"معفى","رياض اطفال1","32"]
[null,null,null,null,null,null,"15","05","2017",31705153308774,null,null,{"$f":"VLOOKUP(R31,'help sheet'!$AB$6:$AC$35,2,0)","v":"مطروح"},null,null,"معفى","رياض اطفال1","33"]
[null,null,null,null,null,null,"15","05","2017",31705153408774,null,null,{"$f":"VLOOKUP(R32,'help sheet'!$AB$6:$AC$35,2,0)","v":"شمال سيناء"},null,null,"معفى","رياض اطفال1","34"]
[null,null,null,null,null,null,"15","05","2017",31705153508774,null,null,{"$f":"VLOOKUP(R33,'help sheet'!$AB$6:$AC$35,2,0)","v":"جنوب سيناء"},null,null,"معفى","رياض اطفال1","35"]
[null,null,null,null,null,null,"15","05","2017",31705158808774,null,null,{"$f":"VLOOKUP(R34,'help sheet'!$AB$6:$AC$35,2,0)","v":"المركز الرئيسى"},null,null,"معفى","رياض اطفال1","88"]
[null,null,null,null,null,null,"15","05","2017",31705150508774,null,null,{"$f":"VLOOKUP(R35,'help sheet'!$AB$6:$AC$35,2,0)","v":"حلوان"},null,null,"معفى","رياض اطفال1","05"]
[null,null,null,null,null,null,"15","05","2017",31705150608774,null,null,{"$f":"VLOOKUP(R36,'help sheet'!$AB$6:$AC$35,2,0)","v":"السادس من اكتوبر"},null,null,"معفى","رياض اطفال1","06"]
[null,null,null,null,null,null,"","","20",null,null,null,{"$f":"VLOOKUP(R37,'help sheet'!$AB$6:$AC$35,2,0)","v":{"$error":"#N/A"}},null,null,"معفى","رياض اطفال1",""]
[null,null,null,null,null,null,"","","20",null,null,null,{"$f":"VLOOKUP(R38,'help sheet'!$AB$6:$AC$35,2,0)","v":{"$error":"#N/A"}},null,null,"معفى","رياض اطفال1",""]
[null,null,null,null,null,null,"","","20",null,null,null,{"$f":"VLOOKUP(R39,'help sheet'!$AB$6:$AC$35,2,0)","v":{"$error":"#N/A"}},null,null,"معفى","رياض اطفال1",""]
[null,null,null,null,null,null,"","","20",null,null,null,{"$f":"VLOOKUP(MID(J40,8,2),'help sheet'!$AB$6:$AC$35,2,0)","v":{"$error":"#N/A"}},null,null,"معفى","رياض اطفال1",""]
[null,null,null,null,null,null,"","","20",null,null,null,{"$f":"VLOOKUP(MID(J41,8,2),'help sheet'!$AB$6:$AC$35,2,0)","v":{"$error":"#N/A"}},null,null,"معفى","رياض اطفال1",""]
[null,null,null,null,null,null,"","","20",null,null,null,{"$f":"VLOOKUP(MID(J42,8,2),'help sheet'!$AB$6:$AC$35,2,0)","v":{"$error":"#N/A"}},null,null,"معفى","رياض اطفال1",""]
[null,null,null,null,null,null,"","","20",null,null,null,{"$f":"VLOOKUP(MID(J43,8,2),'help sheet'!$AB$6:$AC$35,2,0)","v":{"$error":"#N/A"}},null,null,"معفى","رياض اطفال1",""]
[null,null,null,null,null,null,"","","20",null,null,null,{"$f":"VLOOKUP(MID(J44,8,2),'help sheet'!$AB$6:$AC$35,2,0)","v":{"$error":"#N/A"}},null,null,"معفى","رياض اطفال1",""]
[null,null,null,null,null,null,"","","20",null,null,null,{"$f":"VLOOKUP(MID(J45,8,2),'help sheet'!$AB$6:$AC$35,2,0)","v":{"$error":"#N/A"}},null,null,"معفى","رياض اطفال1",""]
[null,null,null,null,null,null,"","","20",null,null,null,{"$f":"VLOOKUP(MID(J46,8,2),'help sheet'!$AB$6:$AC$35,2,0)","v":{"$error":"#N/A"}},null,null,"معفى","رياض اطفال1",""]
[null,null,null,null,null,null,"","","20",null,null,null,{"$f":"VLOOKUP(MID(J47,8,2),'help sheet'!$AB$6:$AC$35,2,0)","v":{"$error":"#N/A"}},null,null,"معفى","رياض اطفال1",""]
[null,null,null,null,null,null,"","","20",null,null,null,{"$f":"VLOOKUP(MID(J48,8,2),'help sheet'!$AB$6:$AC$35,2,0)","v":{"$error":"#N/A"}},null,null,"معفى","رياض اطفال1",""]
[null,null,null,null,null,null,"","","20",null,null,null,{"$f":"VLOOKUP(MID(J49,8,2),'help sheet'!$AB$6:$AC$35,2,0)","v":{"$error":"#N/A"}},null,null,"معفى","رياض اطفال1",""]
[null,null,null,null,null,null,"","","20",null,null,null,{"$f":"VLOOKUP(MID(J50,8,2),'help sheet'!$AB$6:$AC$35,2,0)","v":{"$error":"#N/A"}},null,null,"معفى","رياض اطفال1",""]
[null,null,null,null,null,null,"","","20",null,null,null,{"$f":"VLOOKUP(MID(J51,8,2),'help sheet'!$AB$6:$AC$35,2,0)","v":{"$error":"#N/A"}},null,null,"معفى","رياض اطفال1",""]
[null,null,null,null,null,null,"","","20",null,null,null,{"$f":"VLOOKUP(MID(J52,8,2),'help sheet'!$AB$6:$AC$35,2,0)","v":{"$error":"#N/A"}},null,null,"معفى","رياض اطفال1",""]
[null,null,null,null,null,null,"","","20",null,null,null,{"$f":"VLOOKUP(MID(J53,8,2),'help sheet'!$AB$6:$AC$35,2,0)","v":{"$error":"#N/A"}},null,null,"معفى","رياض اطفال1",""]
[null,null,null,null,null,null,"","","20",null,null,null,{"$f":"VLOOKUP(MID(J54,8,2),'help sheet'!$AB$6:$AC$35,2,0)","v":{"$error":"#N/A"}},null,null,"معفى","رياض اطفال1",""]
[null,null,null,null,null,null,"","","20",null,null,null,{"$f":"VLOOKUP(MID(J55,8,2),'help sheet'!$AB$6:$AC$35,2,0)","v":{"$error":"#N/A"}},null,null,"معفى","رياض اطفال1",""]
[null,null,null,null,null,null,"","","20",null,null,null,{"$f":"VLOOKUP(MID(J56,8,2),'help sheet'!$AB$6:$AC$35,2,0)","v":{"$error":"#N/A"}},null,null,"معفى","رياض اطفال1",""]
[null,null,null,null,null,null,"","","20",null,null,null,{"$f":"VLOOKUP(MID(J57,8,2),'help sheet'!$AB$6:$AC$35,2,0)","v":{"$error":"#N/A"}},null,null,"معفى","رياض اطفال1",""]
[null,null,null,null,null,null,"","","20",null,null,null,{"$f":"VLOOKUP(MID(J58,8,2),'help sheet'!$AB$6:$AC$35,2,0)","v":{"$error":"#N/A"}},null,null,"معفى","رياض اطفال1",""]
[null,null,null,null,null,null,"","","20",null,null,null,{"$f":"VLOOKUP(MID(J59,8,2),'help sheet'!$AB$6:$AC$35,2,0)","v":{"$error":"#N/A"}},null,null,"معفى","رياض اطفال1",""]
[null,null,null,null,null,null,"","","20",null,null,null,{"$f":"VLOOKUP(MID(J60,8,2),'help sheet'!$AB$6:$AC$35,2,0)","v":{"$error":"#N/A"}},null,null,"معفى","رياض اطفال1",""]
[null,null,null,null,null,null,"","","20",null,null,null,{"$f":"VLOOKUP(MID(J61,8,2),'help sheet'!$AB$6:$AC$35,2,0)","v":{"$error":"#N/A"}},null,null,"معفى","رياض اطفال1",""]
[null,null,null,null,null,null,"","","20",null,null,null,{"$f":"VLOOKUP(MID(J62,8,2),'help sheet'!$AB$6:$AC$35,2,0)","v":{"$error":"#N/A"}},null,null,"معفى","رياض اطفال1",""]
[null,null,null,null,null,null,"","","20",null,null,null,{"$f":"VLOOKUP(MID(J63,8,2),'help sheet'!$AB$6:$AC$35,2,0)","v":{"$error":"#N/A"}},null,null,"معفى","رياض اطفال1",""]
[null,null,null,null,null,null,"","","20",null,null,null,{"$f":"VLOOKUP(MID(J64,8,2),'help sheet'!$AB$6:$AC$35,2,0)","v":{"$error":"#N/A"}},null,null,"معفى","رياض اطفال1",""]
[null,null,null,null,null,null,"","","20",null,null,null,{"$f":"VLOOKUP(MID(J65,8,2),'help sheet'!$AB$6:$AC$35,2,0)","v":{"$error":"#N/A"}},null,null,"معفى","رياض اطفال1",""]
[null,null,null,null,null,null,"","","20",null,null,null,{"$f":"VLOOKUP(MID(J66,8,2),'help sheet'!$AB$6:$AC$35,2,0)","v":{"$error":"#N/A"}},null,null,"معفى","رياض اطفال1",""]
[null,null,null,null,null,null,"","","20",null,null,null,{"$f":"VLOOKUP(MID(J67,8,2),'help sheet'!$AB$6:$AC$35,2,0)","v":{"$error":"#N/A"}},null,null,"معفى","رياض اطفال1",""]
[null,null,null,null,null,null,"","","20",null,null,null,{"$f":"VLOOKUP(MID(J68,8,2),'help sheet'!$AB$6:$AC$35,2,0)","v":{"$error":"#N/A"}},null,null,"معفى","رياض اطفال1",""]
[null,null,null,null,null,null,"","","20",null,null,null,{"$f":"VLOOKUP(MID(J69,8,2),'help sheet'!$AB$6:$AC$35,2,0)","v":{"$error":"#N/A"}},null,null,"معفى","رياض اطفال1",""]
[null,null,null,null,null,null,"","","20",null,null,null,{"$f":"VLOOKUP(MID(J70,8,2),'help sheet'!$AB$6:$AC$35,2,0)","v":{"$error":"#N/A"}},null,null,"معفى","رياض اطفال1",""]
[null,null,null,null,null,null,{"$f":"MID(J71,6,2)","v":""},{"$f":"MID(J71,4,2)","v":""},{"$f":"\"20\"&MID(J71,2,2)","v":"20"},null,null,null,{"$f":"VLOOKUP(MID(J71,8,2),'help sheet'!$AB$6:$AC$35,2,0)","v":{"$error":"#N/A"}},null,null,"معفى","رياض اطفال1",{"$f":"MID(J71,8,2)","v":""}]
[null,null,null,null,null,null,"","","20",null,null,null,{"$f":"VLOOKUP(MID(J72,8,2),'help sheet'!$AB$6:$AC$35,2,0)","v":{"$error":"#N/A"}},null,null,"معفى","رياض اطفال1",""]
[null,null,null,null,null,null,"","","20",null,null,null,{"$f":"VLOOKUP(MID(J73,8,2),'help sheet'!$AB$6:$AC$35,2,0)","v":{"$error":"#N/A"}},null,null,"معفى","رياض اطفال1",""]
[null,null,null,null,null,null,"","","20",null,null,null,{"$f":"VLOOKUP(MID(J74,8,2),'help sheet'!$AB$6:$AC$35,2,0)","v":{"$error":"#N/A"}},null,null,"معفى","رياض اطفال1",""]
[null,null,null,null,null,null,"","","20",null,null,null,{"$f":"VLOOKUP(MID(J75,8,2),'help sheet'!$AB$6:$AC$35,2,0)","v":{"$error":"#N/A"}},null,null,"معفى","رياض اطفال1",""]
[null,null,null,null,null,null,"","","20",null,null,null,{"$f":"VLOOKUP(MID(J76,8,2),'help sheet'!$AB$6:$AC$35,2,0)","v":{"$error":"#N/A"}},null,null,"معفى","رياض اطفال1",""]
[null,null,null,null,null,null,"","","20",null,null,null,{"$f":"VLOOKUP(MID(J77,8,2),'help sheet'!$AB$6:$AC$35,2,0)","v":{"$error":"#N/A"}},null,null,"معفى","رياض اطفال1",""]
[null,null,null,null,null,null,"","","20",null,null,null,{"$f":"VLOOKUP(MID(J78,8,2),'help sheet'!$AB$6:$AC$35,2,0)","v":{"$error":"#N/A"}},null,null,"معفى","رياض اطفال1",""]
[null,null,null,null,null,null,"","","20",null,null,null,{"$f":"VLOOKUP(MID(J79,8,2),'help sheet'!$AB$6:$AC$35,2,0)","v":{"$error":"#N/A"}},null,null,"معفى","رياض اطفال1",""]
[null,null,null,null,null,null,"","","20",null,null,null,{"$f":"VLOOKUP(MID(J80,8,2),'help sheet'!$AB$6:$AC$35,2,0)","v":{"$error":"#N/A"}},null,null,"معفى","رياض اطفال1",""]
[null,null,null,null,null,null,"","","20",null,null,null,{"$f":"VLOOKUP(MID(J81,8,2),'help sheet'!$AB$6:$AC$35,2,0)","v":{"$error":"#N/A"}},null,null,"معفى","رياض اطفال1",""]
[null,null,null,null,null,null,"","","20",null,null,null,{"$f":"VLOOKUP(MID(J82,8,2),'help sheet'!$AB$6:$AC$35,2,0)","v":{"$error":"#N/A"}},null,null,"معفى","رياض اطفال1",""]
[null,null,null,null,null,null,"","","20",null,null,null,{"$f":"VLOOKUP(MID(J83,8,2),'help sheet'!$AB$6:$AC$35,2,0)","v":{"$error":"#N/A"}},null,null,"معفى","رياض اطفال1",""]
[null,null,null,null,null,null,"","","20",null,null,null,{"$f":"VLOOKUP(MID(J84,8,2),'help sheet'!$AB$6:$AC$35,2,0)","v":{"$error":"#N/A"}},null,null,"معفى","رياض اطفال1",""]
[null,null,null,null,null,null,"","","20",null,null,null,{"$f":"VLOOKUP(MID(J85,8,2),'help sheet'!$AB$6:$AC$35,2,0)","v":{"$error":"#N/A"}},null,null,"معفى","رياض اطفال1",""]
[null,null,null,null,null,null,"","","20",null,null,null,{"$f":"VLOOKUP(MID(J86,8,2),'help sheet'!$AB$6:$AC$35,2,0)","v":{"$error":"#N/A"}},null,null,"معفى","رياض اطفال1",""]
[null,null,null,null,null,null,"","","20",null,null,null,{"$f":"VLOOKUP(MID(J87,8,2),'help sheet'!$AB$6:$AC$35,2,0)","v":{"$error":"#N/A"}},null,null,"معفى","رياض اطفال1",""]
[null,null,null,null,null,null,"","","20",null,null,null,{"$f":"VLOOKUP(MID(J88,8,2),'help sheet'!$AB$6:$AC$35,2,0)","v":{"$error":"#N/A"}},null,null,"معفى","رياض اطفال1",""]
[null,null,null,null,null,null,"","","20",null,null,null,{"$f":"VLOOKUP(MID(J89,8,2),'help sheet'!$AB$6:$AC$35,2,0)","v":{"$error":"#N/A"}},null,null,"معفى","رياض اطفال1",""]
[null,null,null,null,null,null,"","","20",null,null,null,{"$f":"VLOOKUP(MID(J90,8,2),'help sheet'!$AB$6:$AC$35,2,0)","v":{"$error":"#N/A"}},null,null,"معفى","رياض اطفال1",""]
[null,null,null,null,null,null,"","","20",null,null,null,{"$f":"VLOOKUP(MID(J91,8,2),'help sheet'!$AB$6:$AC$35,2,0)","v":{"$error":"#N/A"}},null,null,"معفى","رياض اطفال1",""]
[null,null,null,null,null,null,"","","20",null,null,null,{"$f":"VLOOKUP(MID(J92,8,2),'help sheet'!$AB$6:$AC$35,2,0)","v":{"$error":"#N/A"}},null,null,"معفى","رياض اطفال1",""]
[null,null,null,null,null,null,"","","20",null,null,null,{"$f":"VLOOKUP(MID(J93,8,2),'help sheet'!$AB$6:$AC$35,2,0)","v":{"$error":"#N/A"}},null,null,"معفى","رياض اطفال1",""]
[null,null,null,null,null,null,"","","20",null,null,null,{"$f":"VLOOKUP(MID(J94,8,2),'help sheet'!$AB$6:$AC$35,2,0)","v":{"$error":"#N/A"}},null,null,"معفى","رياض اطفال1",""]
[null,null,null,null,null,null,"","","20",null,null,null,{"$f":"VLOOKUP(MID(J95,8,2),'help sheet'!$AB$6:$AC$35,2,0)","v":{"$error":"#N/A"}},null,null,"معفى","رياض اطفال1",""]
[null,null,null,null,null,null,"","","20",null,null,null,{"$f":"VLOOKUP(MID(J96,8,2),'help sheet'!$AB$6:$AC$35,2,0)","v":{"$error":"#N/A"}},null,null,"معفى","رياض اطفال1",""]
[null,null,null,null,null,null,"","","20",null,null,null,{"$f":"VLOOKUP(MID(J97,8,2),'help sheet'!$AB$6:$AC$35,2,0)","v":{"$error":"#N/A"}},null,null,"معفى","رياض اطفال1",""]
[null,null,null,null,null,null,"","","20",null,null,null,{"$f":"VLOOKUP(MID(J98,8,2),'help sheet'!$AB$6:$AC$35,2,0)","v":{"$error":"#N/A"}},null,null,"معفى","رياض اطفال1",""]
[null,null,null,null,null,null,"","","20",null,null,null,{"$f":"VLOOKUP(MID(J99,8,2),'help sheet'!$AB$6:$AC$35,2,0)","v":{"$error":"#N/A"}},null,null,"معفى","رياض اطفال1",""]
[null,null,null,null,null,null,"","","20",null,null,null,{"$f":"VLOOKUP(MID(J100,8,2),'help sheet'!$AB$6:$AC$35,2,0)","v":{"$error":"#N/A"}},null,null,"معفى","رياض اطفال1",""]
[null,null,null,null,null,null,"","","20",null,null,null,{"$f":"VLOOKUP(MID(J101,8,2),'help sheet'!$AB$6:$AC$35,2,0)","v":{"$error":"#N/A"}},null,null,"معفى","رياض اطفال1",""]
[null,null,null,null,null,null,"","","20",null,null,null,{"$f":"VLOOKUP(MID(J102,8,2),'help sheet'!$AB$6:$AC$35,2,0)","v":{"$error":"#N/A"}},null,null,"معفى","رياض اطفال1",""]
[null,null,null,null,null,null,"","","20",null,null,null,{"$f":"VLOOKUP(MID(J103,8,2),'help sheet'!$AB$6:$AC$35,2,0)","v":{"$error":"#N/A"}},null,null,"معفى","رياض اطفال1",""]
[null,null,null,null,null,null,"","","20",null,null,null,{"$f":"VLOOKUP(MID(J104,8,2),'help sheet'!$AB$6:$AC$35,2,0)","v":{"$error":"#N/A"}},null,null,"معفى","رياض اطفال1",""]
[null,null,null,null,null,null,"","","20",null,null,null,{"$f":"VLOOKUP(MID(J105,8,2),'help sheet'!$AB$6:$AC$35,2,0)","v":{"$error":"#N/A"}},null,null,"معفى","رياض اطفال1",""]
[null,null,null,null,null,null,"","","20",null,null,null,{"$f":"VLOOKUP(MID(J106,8,2),'help sheet'!$AB$6:$AC$35,2,0)","v":{"$error":"#N/A"}},null,null,"معفى","رياض اطفال1",""]
[null,null,null,null,null,null,"","","20",null,null,null,{"$f":"VLOOKUP(MID(J107,8,2),'help sheet'!$AB$6:$AC$35,2,0)","v":{"$error":"#N/A"}},null,null,"معفى","رياض اطفال1",""]
[null,null,null,null,null,null,"","","20",null,null,null,{"$f":"VLOOKUP(MID(J108,8,2),'help sheet'!$AB$6:$AC$35,2,0)","v":{"$error":"#N/A"}},null,null,"معفى","رياض اطفال1",""]
[null,null,null,null,null,null,"","","20",null,null,null,{"$f":"VLOOKUP(MID(J109,8,2),'help sheet'!$AB$6:$AC$35,2,0)","v":{"$error":"#N/A"}},null,null,"معفى","رياض اطفال1",""]
[null,null,null,null,null,null,"","","20",null,null,null,{"$f":"VLOOKUP(MID(J110,8,2),'help sheet'!$AB$6:$AC$35,2,0)","v":{"$error":"#N/A"}},null,null,"معفى","رياض اطفال1",""]
[null,null,null,null,null,null,"","","20",null,null,null,{"$f":"VLOOKUP(MID(J111,8,2),'help sheet'!$AB$6:$AC$35,2,0)","v":{"$error":"#N/A"}},null,null,"معفى","رياض اطفال1",""]
[null,null,null,null,null,null,"","","20",null,null,null,{"$f":"VLOOKUP(MID(J112,8,2),'help sheet'!$AB$6:$AC$35,2,0)","v":{"$error":"#N/A"}},null,null,"معفى","رياض اطفال1",""]
[null,null,null,null,null,null,"","","20",null,null,null,{"$f":"VLOOKUP(MID(J113,8,2),'help sheet'!$AB$6:$AC$35,2,0)","v":{"$error":"#N/A"}},null,null,"معفى","رياض اطفال1",""]
[null,null,null,null,null,null,"","","20",null,null,null,{"$f":"VLOOKUP(MID(J114,8,2),'help sheet'!$AB$6:$AC$35,2,0)","v":{"$error":"#N/A"}},null,null,"معفى","رياض اطفال1",""]
[null,null,null,null,null,null,"","","20",null,null,null,{"$f":"VLOOKUP(MID(J115,8,2),'help sheet'!$AB$6:$AC$35,2,0)","v":{"$error":"#N/A"}},null,null,"معفى","رياض اطفال1",""]
[null,null,null,null,null,null,"","","20",null,null,null,{"$f":"VLOOKUP(MID(J116,8,2),'help sheet'!$AB$6:$AC$35,2,0)","v":{"$error":"#N/A"}},null,null,"معفى","رياض اطفال1",""]
[null,null,null,null,null,null,"","","20",null,null,null,{"$f":"VLOOKUP(MID(J117,8,2),'help sheet'!$AB$6:$AC$35,2,0)","v":{"$error":"#N/A"}},null,null,"معفى","رياض اطفال1",""]
[null,null,null,null,null,null,"","","20",null,null,null,{"$f":"VLOOKUP(MID(J118,8,2),'help sheet'!$AB$6:$AC$35,2,0)","v":{"$error":"#N/A"}},null,null,"معفى","رياض اطفال1",""]
[null,null,null,null,null,null,"","","20",null,null,null,{"$f":"VLOOKUP(MID(J119,8,2),'help sheet'!$AB$6:$AC$35,2,0)","v":{"$error":"#N/A"}},null,null,"معفى","رياض اطفال1",""]
[null,null,null,null,null,null,"","","20",null,null,null,{"$f":"VLOOKUP(MID(J120,8,2),'help sheet'!$AB$6:$AC$35,2,0)","v":{"$error":"#N/A"}},null,null,"معفى","رياض اطفال1",""]
[null,null,null,null,null,null,"","","20",null,null,null,{"$f":"VLOOKUP(MID(J121,8,2),'help sheet'!$AB$6:$AC$35,2,0)","v":{"$error":"#N/A"}},null,null,"معفى","رياض اطفال1",""]
[null,null,null,null,null,null,"","","20",null,null,null,{"$f":"VLOOKUP(MID(J122,8,2),'help sheet'!$AB$6:$AC$35,2,0)","v":{"$error":"#N/A"}},null,null,"معفى","رياض اطفال1",""]
[null,null,null,null,null,null,"","","20",null,null,null,{"$f":"VLOOKUP(MID(J123,8,2),'help sheet'!$AB$6:$AC$35,2,0)","v":{"$error":"#N/A"}},null,null,"معفى","رياض اطفال1",""]
[null,null,null,null,null,null,"","","20",null,null,null,{"$f":"VLOOKUP(MID(J124,8,2),'help sheet'!$AB$6:$AC$35,2,0)","v":{"$error":"#N/A"}},null,null,"معفى","رياض اطفال1",""]
[null,null,null,null,null,null,"","","20",null,null,null,{"$f":"VLOOKUP(MID(J125,8,2),'help sheet'!$AB$6:$AC$35,2,0)","v":{"$error":"#N/A"}},null,null,"معفى","رياض اطفال1",""]
[null,null,null,null,null,null,"","","20",null,null,null,{"$f":"VLOOKUP(MID(J126,8,2),'help sheet'!$AB$6:$AC$35,2,0)","v":{"$error":"#N/A"}},null,null,"معفى","رياض اطفال1",""]
[null,null,null,null,null,null,"","","20",null,null,null,{"$f":"VLOOKUP(MID(J127,8,2),'help sheet'!$AB$6:$AC$35,2,0)","v":{"$error":"#N/A"}},null,null,"معفى","رياض اطفال1",""]
[null,null,null,null,null,null,"","","20",null,null,null,{"$f":"VLOOKUP(MID(J128,8,2),'help sheet'!$AB$6:$AC$35,2,0)","v":{"$error":"#N/A"}},null,null,"معفى","رياض اطفال1",""]
[null,null,null,null,null,null,"","","20",null,null,null,{"$f":"VLOOKUP(MID(J129,8,2),'help sheet'!$AB$6:$AC$35,2,0)","v":{"$error":"#N/A"}},null,null,"معفى","رياض اطفال1",""]
[null,null,null,null,null,null,"","","20",null,null,null,{"$f":"VLOOKUP(MID(J130,8,2),'help sheet'!$AB$6:$AC$35,2,0)","v":{"$error":"#N/A"}},null,null,"معفى","رياض اطفال1",""]
[null,null,null,null,null,null,"","","20",null,null,null,{"$f":"VLOOKUP(MID(J131,8,2),'help sheet'!$AB$6:$AC$35,2,0)","v":{"$error":"#N/A"}},null,null,"معفى","رياض اطفال1",""]
[null,null,null,null,null,null,"","","20",null,null,null,{"$f":"VLOOKUP(MID(J132,8,2),'help sheet'!$AB$6:$AC$35,2,0)","v":{"$error":"#N/A"}},null,null,"معفى","رياض اطفال1",""]
[null,null,null,null,null,null,"","","20",null,null,null,{"$f":"VLOOKUP(MID(J133,8,2),'help sheet'!$AB$6:$AC$35,2,0)","v":{"$error":"#N/A"}},null,null,"معفى","رياض اطفال1",""]
[null,null,null,null,null,null,"","","20",null,null,null,{"$f":"VLOOKUP(MID(J134,8,2),'help sheet'!$AB$6:$AC$35,2,0)","v":{"$error":"#N/A"}},null,null,"معفى","رياض اطفال1",""]
[null,null,null,null,null,null,{"$f":"MID(J135,6,2)","v":""},{"$f":"MID(J135,4,2)","v":""},{"$f":"\"20\"&MID(J135,2,2)","v":"20"},null,null,null,{"$f":"VLOOKUP(MID(J135,8,2),'help sheet'!$AB$6:$AC$35,2,0)","v":{"$error":"#N/A"}},null,null,"معفى","رياض اطفال1",{"$f":"MID(J135,8,2)","v":""}]
[null,null,null,null,null,null,"","","20",null,null,null,{"$f":"VLOOKUP(MID(J136,8,2),'help sheet'!$AB$6:$AC$35,2,0)","v":{"$error":"#N/A"}},null,null,"معفى","رياض اطفال1",""]
[null,null,null,null,null,null,"","","20",null,null,null,{"$f":"VLOOKUP(MID(J137,8,2),'help sheet'!$AB$6:$AC$35,2,0)","v":{"$error":"#N/A"}},null,null,"معفى","رياض اطفال1",""]
[null,null,null,null,null,null,"","","20",null,null,null,{"$f":"VLOOKUP(MID(J138,8,2),'help sheet'!$AB$6:$AC$35,2,0)","v":{"$error":"#N/A"}},null,null,"معفى","رياض اطفال1",""]
[null,null,null,null,null,null,"","","20",null,null,null,{"$f":"VLOOKUP(MID(J139,8,2),'help sheet'!$AB$6:$AC$35,2,0)","v":{"$error":"#N/A"}},null,null,"معفى","رياض اطفال1",""]
[null,null,null,null,null,null,"","","20",null,null,null,{"$f":"VLOOKUP(MID(J140,8,2),'help sheet'!$AB$6:$AC$35,2,0)","v":{"$error":"#N/A"}},null,null,"معفى","رياض اطفال1",""]
[null,null,null,null,null,null,"","","20",null,null,null,{"$f":"VLOOKUP(MID(J141,8,2),'help sheet'!$AB$6:$AC$35,2,0)","v":{"$error":"#N/A"}},null,null,"معفى","رياض اطفال1",""]
[null,null,null,null,null,null,"","","20",null,null,null,{"$f":"VLOOKUP(MID(J142,8,2),'help sheet'!$AB$6:$AC$35,2,0)","v":{"$error":"#N/A"}},null,null,"معفى","رياض اطفال1",""]
[null,null,null,null,null,null,"","","20",null,null,null,{"$f":"VLOOKUP(MID(J143,8,2),'help sheet'!$AB$6:$AC$35,2,0)","v":{"$error":"#N/A"}},null,null,"معفى","رياض اطفال1",""]
[null,null,null,null,null,null,"","","20",null,null,null,{"$f":"VLOOKUP(MID(J144,8,2),'help sheet'!$AB$6:$AC$35,2,0)","v":{"$error":"#N/A"}},null,null,"معفى","رياض اطفال1",""]
[null,null,null,null,null,null,"","","20",null,null,null,{"$f":"VLOOKUP(MID(J145,8,2),'help sheet'!$AB$6:$AC$35,2,0)","v":{"$error":"#N/A"}},null,null,"معفى","رياض اطفال1",""]
[null,null,null,null,null,null,"","","20",null,null,null,{"$f":"VLOOKUP(MID(J146,8,2),'help sheet'!$AB$6:$AC$35,2,0)","v":{"$error":"#N/A"}},null,null,"معفى","رياض اطفال1",""]
[null,null,null,null,null,null,"","","20",null,null,null,{"$f":"VLOOKUP(MID(J147,8,2),'help sheet'!$AB$6:$AC$35,2,0)","v":{"$error":"#N/A"}},null,null,"معفى","رياض اطفال1",""]
[null,null,null,null,null,null,"","","20",null,null,null,{"$f":"VLOOKUP(MID(J148,8,2),'help sheet'!$AB$6:$AC$35,2,0)","v":{"$error":"#N/A"}},null,null,"معفى","رياض اطفال1",""]
[null,null,null,null,null,null,"","","20",null,null,null,{"$f":"VLOOKUP(MID(J149,8,2),'help sheet'!$AB$6:$AC$35,2,0)","v":{"$error":"#N/A"}},null,null,"معفى","رياض اطفال1",""]
[null,null,null,null,null,null,"","","20",null,null,null,{"$f":"VLOOKUP(MID(J150,8,2),'help sheet'!$AB$6:$AC$35,2,0)","v":{"$error":"#N/A"}},null,null,"معفى","رياض اطفال1",""]
[null,null,null,null,null,null,"","","20",null,null,null,{"$f":"VLOOKUP(MID(J151,8,2),'help sheet'!$AB$6:$AC$35,2,0)","v":{"$error":"#N/A"}},null,null,"معفى","رياض اطفال1",""]
[null,null,null,null,null,null,"","","20",null,null,null,{"$f":"VLOOKUP(MID(J152,8,2),'help sheet'!$AB$6:$AC$35,2,0)","v":{"$error":"#N/A"}},null,null,"معفى","رياض اطفال1",""]
[null,null,null,null,null,null,"","","20",null,null,null,{"$f":"VLOOKUP(MID(J153,8,2),'help sheet'!$AB$6:$AC$35,2,0)","v":{"$error":"#N/A"}},null,null,"معفى","رياض اطفال1",""]
[null,null,null,null,null,null,"","","20",null,null,null,{"$f":"VLOOKUP(MID(J154,8,2),'help sheet'!$AB$6:$AC$35,2,0)","v":{"$error":"#N/A"}},null,null,"معفى","رياض اطفال1",""]
[null,null,null,null,null,null,"","","20",null,null,null,{"$f":"VLOOKUP(MID(J155,8,2),'help sheet'!$AB$6:$AC$35,2,0)","v":{"$error":"#N/A"}},null,null,"معفى","رياض اطفال1",""]
[null,null,null,null,null,null,"","","20",null,null,null,{"$f":"VLOOKUP(MID(J156,8,2),'help sheet'!$AB$6:$AC$35,2,0)","v":{"$error":"#N/A"}},null,null,"معفى","رياض اطفال1",""]
[null,null,null,null,null,null,"","","20",null,null,null,{"$f":"VLOOKUP(MID(J157,8,2),'help sheet'!$AB$6:$AC$35,2,0)","v":{"$error":"#N/A"}},null,null,"معفى","رياض اطفال1",""]
[null,null,null,null,null,null,"","","20",null,null,null,{"$f":"VLOOKUP(MID(J158,8,2),'help sheet'!$AB$6:$AC$35,2,0)","v":{"$error":"#N/A"}},null,null,"معفى","رياض اطفال1",""]
[null,null,null,null,null,null,"","","20",null,null,null,{"$f":"VLOOKUP(MID(J159,8,2),'help sheet'!$AB$6:$AC$35,2,0)","v":{"$error":"#N/A"}},null,null,"معفى","رياض اطفال1",""]
[null,null,null,null,null,null,"","","20",null,null,null,{"$f":"VLOOKUP(MID(J160,8,2),'help sheet'!$AB$6:$AC$35,2,0)","v":{"$error":"#N/A"}},null,null,"معفى","رياض اطفال1",""]
[null,null,null,null,null,null,"","","20",null,null,null,{"$f":"VLOOKUP(MID(J161,8,2),'help sheet'!$AB$6:$AC$35,2,0)","v":{"$error":"#N/A"}},null,null,"معفى","رياض اطفال1",""]
[null,null,null,null,null,null,"","","20",null,null,null,{"$f":"VLOOKUP(MID(J162,8,2),'help sheet'!$AB$6:$AC$35,2,0)","v":{"$error":"#N/A"}},null,null,"معفى","رياض اطفال1",""]
[null,null,null,null,null,null,"","","20",null,null,null,{"$f":"VLOOKUP(MID(J163,8,2),'help sheet'!$AB$6:$AC$35,2,0)","v":{"$error":"#N/A"}},null,null,"معفى","رياض اطفال1",""]
[null,null,null,null,null,null,"","","20",null,null,null,{"$f":"VLOOKUP(MID(J164,8,2),'help sheet'!$AB$6:$AC$35,2,0)","v":{"$error":"#N/A"}},null,null,"معفى","رياض اطفال1",""]
[null,null,null,null,null,null,"","","20",null,null,null,{"$f":"VLOOKUP(MID(J165,8,2),'help sheet'!$AB$6:$AC$35,2,0)","v":{"$error":"#N/A"}},null,null,"معفى","رياض اطفال1",""]
[null,null,null,null,null,null,"","","20",null,null,null,{"$f":"VLOOKUP(MID(J166,8,2),'help sheet'!$AB$6:$AC$35,2,0)","v":{"$error":"#N/A"}},null,null,"معفى","رياض اطفال1",""]
[null,null,null,null,null,null,"","","20",null,null,null,{"$f":"VLOOKUP(MID(J167,8,2),'help sheet'!$AB$6:$AC$35,2,0)","v":{"$error":"#N/A"}},null,null,"معفى","رياض اطفال1",""]
[null,null,null,null,null,null,"","","20",null,null,null,{"$f":"VLOOKUP(MID(J168,8,2),'help sheet'!$AB$6:$AC$35,2,0)","v":{"$error":"#N/A"}},null,null,"معفى","رياض اطفال1",""]
[null,null,null,null,null,null,"","","20",null,null,null,{"$f":"VLOOKUP(MID(J169,8,2),'help sheet'!$AB$6:$AC$35,2,0)","v":{"$error":"#N/A"}},null,null,"معفى","رياض اطفال1",""]
[null,null,null,null,null,null,"","","20",null,null,null,{"$f":"VLOOKUP(MID(J170,8,2),'help sheet'!$AB$6:$AC$35,2,0)","v":{"$error":"#N/A"}},null,null,"معفى","رياض اطفال1",""]
[null,null,null,null,null,null,"","","20",null,null,null,{"$f":"VLOOKUP(MID(J171,8,2),'help sheet'!$AB$6:$AC$35,2,0)","v":{"$error":"#N/A"}},null,null,"معفى","رياض اطفال1",""]
[null,null,null,null,null,null,"","","20",null,null,null,{"$f":"VLOOKUP(MID(J172,8,2),'help sheet'!$AB$6:$AC$35,2,0)","v":{"$error":"#N/A"}},null,null,"معفى","رياض اطفال1",""]
[null,null,null,null,null,null,"","","20",null,null,null,{"$f":"VLOOKUP(MID(J173,8,2),'help sheet'!$AB$6:$AC$35,2,0)","v":{"$error":"#N/A"}},null,null,"معفى","رياض اطفال1",""]
[null,null,null,null,null,null,"","","20",null,null,null,{"$f":"VLOOKUP(MID(J174,8,2),'help sheet'!$AB$6:$AC$35,2,0)","v":{"$error":"#N/A"}},null,null,"معفى","رياض اطفال1",""]
[null,null,null,null,null,null,"","","20",null,null,null,{"$f":"VLOOKUP(MID(J175,8,2),'help sheet'!$AB$6:$AC$35,2,0)","v":{"$error":"#N/A"}},null,null,"معفى","رياض اطفال1",""]
[null,null,null,null,null,null,"","","20",null,null,null,{"$f":"VLOOKUP(MID(J176,8,2),'help sheet'!$AB$6:$AC$35,2,0)","v":{"$error":"#N/A"}},null,null,"معفى","رياض اطفال1",""]
[null,null,null,null,null,null,"","","20",null,null,null,{"$f":"VLOOKUP(MID(J177,8,2),'help sheet'!$AB$6:$AC$35,2,0)","v":{"$error":"#N/A"}},null,null,"معفى","رياض اطفال1",""]
[null,null,null,null,null,null,"","","20",null,null,null,{"$f":"VLOOKUP(MID(J178,8,2),'help sheet'!$AB$6:$AC$35,2,0)","v":{"$error":"#N/A"}},null,null,"معفى","رياض اطفال1",""]
[null,null,null,null,null,null,"","","20",null,null,null,{"$f":"VLOOKUP(MID(J179,8,2),'help sheet'!$AB$6:$AC$35,2,0)","v":{"$error":"#N/A"}},null,null,"معفى","رياض اطفال1",""]
[null,null,null,null,null,null,"","","20",null,null,null,{"$f":"VLOOKUP(MID(J180,8,2),'help sheet'!$AB$6:$AC$35,2,0)","v":{"$error":"#N/A"}},null,null,"معفى","رياض اطفال1",""]
[null,null,null,null,null,null,"","","20",null,null,null,{"$f":"VLOOKUP(MID(J181,8,2),'help sheet'!$AB$6:$AC$35,2,0)","v":{"$error":"#N/A"}},null,null,"معفى","رياض اطفال1",""]
[null,null,null,null,null,null,"","","20",null,null,null,{"$f":"VLOOKUP(MID(J182,8,2),'help sheet'!$AB$6:$AC$35,2,0)","v":{"$error":"#N/A"}},null,null,"معفى","رياض اطفال1",""]
[null,null,null,null,null,null,"","","20",null,null,null,{"$f":"VLOOKUP(MID(J183,8,2),'help sheet'!$AB$6:$AC$35,2,0)","v":{"$error":"#N/A"}},null,null,"معفى","رياض اطفال1",""]
[null,null,null,null,null,null,"","","20",null,null,null,{"$f":"VLOOKUP(MID(J184,8,2),'help sheet'!$AB$6:$AC$35,2,0)","v":{"$error":"#N/A"}},null,null,"معفى","رياض اطفال1",""]
[null,null,null,null,null,null,"","","20",null,null,null,{"$f":"VLOOKUP(MID(J185,8,2),'help sheet'!$AB$6:$AC$35,2,0)","v":{"$error":"#N/A"}},null,null,"معفى","رياض اطفال1",""]
[null,null,null,null,null,null,"","","20",null,null,null,{"$f":"VLOOKUP(MID(J186,8,2),'help sheet'!$AB$6:$AC$35,2,0)","v":{"$error":"#N/A"}},null,null,"معفى","رياض اطفال1",""]
[null,null,null,null,null,null,"","","20",null,null,null,{"$f":"VLOOKUP(MID(J187,8,2),'help sheet'!$AB$6:$AC$35,2,0)","v":{"$error":"#N/A"}},null,null,"معفى","رياض اطفال1",""]
[null,null,null,null,null,null,"","","20",null,null,null,{"$f":"VLOOKUP(MID(J188,8,2),'help sheet'!$AB$6:$AC$35,2,0)","v":{"$error":"#N/A"}},null,null,"معفى","رياض اطفال1",""]
[null,null,null,null,null,null,"","","20",null,null,null,{"$f":"VLOOKUP(MID(J189,8,2),'help sheet'!$AB$6:$AC$35,2,0)","v":{"$error":"#N/A"}},null,null,"معفى","رياض اطفال1",""]
[null,null,null,null,null,null,"","","20",null,null,null,{"$f":"VLOOKUP(MID(J190,8,2),'help sheet'!$AB$6:$AC$35,2,0)","v":{"$error":"#N/A"}},null,null,"معفى","رياض اطفال1",""]
[null,null,null,null,null,null,"","","20",null,null,null,{"$f":"VLOOKUP(MID(J191,8,2),'help sheet'!$AB$6:$AC$35,2,0)","v":{"$error":"#N/A"}},null,null,"معفى","رياض اطفال1",""]
[null,null,null,null,null,null,"","","20",null,null,null,{"$f":"VLOOKUP(MID(J192,8,2),'help sheet'!$AB$6:$AC$35,2,0)","v":{"$error":"#N/A"}},null,null,"معفى","رياض اطفال1",""]
[null,null,null,null,null,null,"","","20",null,null,null,{"$f":"VLOOKUP(MID(J193,8,2),'help sheet'!$AB$6:$AC$35,2,0)","v":{"$error":"#N/A"}},null,null,"معفى","رياض اطفال1",""]
[null,null,null,null,null,null,"","","20",null,null,null,{"$f":"VLOOKUP(MID(J194,8,2),'help sheet'!$AB$6:$AC$35,2,0)","v":{"$error":"#N/A"}},null,null,"معفى","رياض اطفال1",""]
[null,null,null,null,null,null,"","","20",null,null,null,{"$f":"VLOOKUP(MID(J195,8,2),'help sheet'!$AB$6:$AC$35,2,0)","v":{"$error":"#N/A"}},null,null,"معفى","رياض اطفال1",""]
[null,null,null,null,null,null,"","","20",null,null,null,{"$f":"VLOOKUP(MID(J196,8,2),'help sheet'!$AB$6:$AC$35,2,0)","v":{"$error":"#N/A"}},null,null,"معفى","رياض اطفال1",""]
[null,null,null,null,null,null,{"$f":"MID(J197,6,2)","v":""},{"$f":"MID(J197,4,2)","v":""},{"$f":"\"20\"&MID(J197,2,2)","v":"20"},null,null,null,{"$f":"VLOOKUP(MID(J197,8,2),'help sheet'!$AB$6:$AC$35,2,0)","v":{"$error":"#N/A"}},null,null,"معفى","رياض اطفال1",""]
[null,null,null,null,null,null,"","","20",null,null,null,{"$f":"VLOOKUP(MID(J198,8,2),'help sheet'!$AB$6:$AC$35,2,0)","v":{"$error":"#N/A"}},null,null,"معفى","رياض اطفال1",""]
[null,null,null,null,null,null,"","","20",null,null,null,{"$f":"VLOOKUP(MID(J199,8,2),'help sheet'!$AB$6:$AC$35,2,0)","v":{"$error":"#N/A"}},null,null,"معفى","رياض اطفال1",{"$f":"MID(J199,8,2)","v":""}]
[null,null,null,null,null,null,"","","20",null,null,null,{"$f":"VLOOKUP(MID(J200,8,2),'help sheet'!$AB$6:$AC$35,2,0)","v":{"$error":"#N/A"}},null,null,"معفى","رياض اطفال1",""]
[null,null,null,null,null,null,"","","20",null,null,null,{"$f":"VLOOKUP(MID(J201,8,2),'help sheet'!$AB$6:$AC$35,2,0)","v":{"$error":"#N/A"}},null,null,"معفى","رياض اطفال1",""]
[null,null,null,null,null,null,"","","20",null,null,null,{"$f":"VLOOKUP(MID(J202,8,2),'help sheet'!$AB$6:$AC$35,2,0)","v":{"$error":"#N/A"}},null,null,"معفى","رياض اطفال1",""]
[null,null,null,null,null,null,"","","20",null,null,null,{"$f":"VLOOKUP(MID(J203,8,2),'help sheet'!$AB$6:$AC$35,2,0)","v":{"$error":"#N/A"}},null,null,"معفى","رياض اطفال1",""]
[null,null,null,null,null,null,"","","20",null,null,null,{"$f":"VLOOKUP(MID(J204,8,2),'help sheet'!$AB$6:$AC$35,2,0)","v":{"$error":"#N/A"}},null,null,"معفى","رياض اطفال1",""]
[null,null,null,null,null,null,"","","20",null,null,null,{"$f":"VLOOKUP(MID(J205,8,2),'help sheet'!$AB$6:$AC$35,2,0)","v":{"$error":"#N/A"}},null,null,"معفى","رياض اطفال1",""]
[null,null,null,null,null,null,"","","20",null,null,null,{"$f":"VLOOKUP(MID(J206,8,2),'help sheet'!$AB$6:$AC$35,2,0)","v":{"$error":"#N/A"}},null,null,"معفى","رياض اطفال1",""]
[null,null,null,null,null,null,"","","20",null,null,null,{"$f":"VLOOKUP(MID(J207,8,2),'help sheet'!$AB$6:$AC$35,2,0)","v":{"$error":"#N/A"}},null,null,"معفى","رياض اطفال1",""]
[null,null,null,null,null,null,"","","20",null,null,null,{"$f":"VLOOKUP(MID(J208,8,2),'help sheet'!$AB$6:$AC$35,2,0)","v":{"$error":"#N/A"}},null,null,"معفى","رياض اطفال1",""]
[null,null,null,null,null,null,"","","20",null,null,null,{"$f":"VLOOKUP(MID(J209,8,2),'help sheet'!$AB$6:$AC$35,2,0)","v":{"$error":"#N/A"}},null,null,"معفى","رياض اطفال1",""]
[null,null,null,null,null,null,"","","20",null,null,null,{"$f":"VLOOKUP(MID(J210,8,2),'help sheet'!$AB$6:$AC$35,2,0)","v":{"$error":"#N/A"}},null,null,"معفى","رياض اطفال1",""]
[null,null,null,null,null,null,"","","20",null,null,null,{"$f":"VLOOKUP(MID(J211,8,2),'help sheet'!$AB$6:$AC$35,2,0)","v":{"$error":"#N/A"}},null,null,"معفى","رياض اطفال1",""]
[null,null,null,null,null,null,"","","20",null,null,null,{"$f":"VLOOKUP(MID(J212,8,2),'help sheet'!$AB$6:$AC$35,2,0)","v":{"$error":"#N/A"}},null,null,"معفى","رياض اطفال1",""]
[null,null,null,null,null,null,"","","20",null,null,null,{"$f":"VLOOKUP(MID(J213,8,2),'help sheet'!$AB$6:$AC$35,2,0)","v":{"$error":"#N/A"}},null,null,"معفى","رياض اطفال1",""]
[null,null,null,null,null,null,"","","20",null,null,null,{"$f":"VLOOKUP(MID(J214,8,2),'help sheet'!$AB$6:$AC$35,2,0)","v":{"$error":"#N/A"}},null,null,"معفى","رياض اطفال1",""]
[null,null,null,null,null,null,"","","20",null,null,null,{"$f":"VLOOKUP(MID(J215,8,2),'help sheet'!$AB$6:$AC$35,2,0)","v":{"$error":"#N/A"}},null,null,"معفى","رياض اطفال1",""]
[null,null,null,null,null,null,"","","20",null,null,null,{"$f":"VLOOKUP(MID(J216,8,2),'help sheet'!$AB$6:$AC$35,2,0)","v":{"$error":"#N/A"}},null,null,"معفى","رياض اطفال1",""]
[null,null,null,null,null,null,"","","20",null,null,null,{"$f":"VLOOKUP(MID(J217,8,2),'help sheet'!$AB$6:$AC$35,2,0)","v":{"$error":"#N/A"}},null,null,"معفى","رياض اطفال1",""]
[null,null,null,null,null,null,"","","20",null,null,null,{"$f":"VLOOKUP(MID(J218,8,2),'help sheet'!$AB$6:$AC$35,2,0)","v":{"$error":"#N/A"}},null,null,"معفى","رياض اطفال1",""]
[null,null,null,null,null,null,"","","20",null,null,null,{"$f":"VLOOKUP(MID(J219,8,2),'help sheet'!$AB$6:$AC$35,2,0)","v":{"$error":"#N/A"}},null,null,"معفى","رياض اطفال1",""]
[null,null,null,null,null,null,"","","20",null,null,null,{"$f":"VLOOKUP(MID(J220,8,2),'help sheet'!$AB$6:$AC$35,2,0)","v":{"$error":"#N/A"}},null,null,"معفى","رياض اطفال1",""]
[null,null,null,null,null,null,"","","20",null,null,null,{"$f":"VLOOKUP(MID(J221,8,2),'help sheet'!$AB$6:$AC$35,2,0)","v":{"$error":"#N/A"}},null,null,"معفى","رياض اطفال1",""]
[null,null,null,null,null,null,"","","20",null,null,null,{"$f":"VLOOKUP(MID(J222,8,2),'help sheet'!$AB$6:$AC$35,2,0)","v":{"$error":"#N/A"}},null,null,"معفى","رياض اطفال1",""]
[null,null,null,null,null,null,"","","20",null,null,null,{"$f":"VLOOKUP(MID(J223,8,2),'help sheet'!$AB$6:$AC$35,2,0)","v":{"$error":"#N/A"}},null,null,"معفى","رياض اطفال1",""]
[null,null,null,null,null,null,"","","20",null,null,null,{"$f":"VLOOKUP(MID(J224,8,2),'help sheet'!$AB$6:$AC$35,2,0)","v":{"$error":"#N/A"}},null,null,"معفى","رياض اطفال1",""]
[null,null,null,null,null,null,"","","20",null,null,null,{"$f":"VLOOKUP(MID(J225,8,2),'help sheet'!$AB$6:$AC$35,2,0)","v":{"$error":"#N/A"}},null,null,"معفى","رياض اطفال1",""]
[null,null,null,null,null,null,"","","20",null,null,null,{"$f":"VLOOKUP(MID(J226,8,2),'help sheet'!$AB$6:$AC$35,2,0)","v":{"$error":"#N/A"}},null,null,"معفى","رياض اطفال1",""]
[null,null,null,null,null,null,"","","20",null,null,null,{"$f":"VLOOKUP(MID(J227,8,2),'help sheet'!$AB$6:$AC$35,2,0)","v":{"$error":"#N/A"}},null,null,"معفى","رياض اطفال1",""]
[null,null,null,null,null,null,"","","20",null,null,null,{"$f":"VLOOKUP(MID(J228,8,2),'help sheet'!$AB$6:$AC$35,2,0)","v":{"$error":"#N/A"}},null,null,"معفى","رياض اطفال1",""]
[null,null,null,null,null,null,"","","20",null,null,null,{"$f":"VLOOKUP(MID(J229,8,2),'help sheet'!$AB$6:$AC$35,2,0)","v":{"$error":"#N/A"}},null,null,"معفى","رياض اطفال1",""]
[null,null,null,null,null,null,"","","20",null,null,null,{"$f":"VLOOKUP(MID(J230,8,2),'help sheet'!$AB$6:$AC$35,2,0)","v":{"$error":"#N/A"}},null,null,"معفى","رياض اطفال1",""]
[null,null,null,null,null,null,"","","20",null,null,null,{"$f":"VLOOKUP(MID(J231,8,2),'help sheet'!$AB$6:$AC$35,2,0)","v":{"$error":"#N/A"}},null,null,"معفى","رياض اطفال1",""]
[null,null,null,null,null,null,"","","20",null,null,null,{"$f":"VLOOKUP(MID(J232,8,2),'help sheet'!$AB$6:$AC$35,2,0)","v":{"$error":"#N/A"}},null,null,"معفى","رياض اطفال1",""]
[null,null,null,null,null,null,"","","20",null,null,null,{"$f":"VLOOKUP(MID(J233,8,2),'help sheet'!$AB$6:$AC$35,2,0)","v":{"$error":"#N/A"}},null,null,"معفى","رياض اطفال1",""]
[null,null,null,null,null,null,"","","20",null,null,null,{"$f":"VLOOKUP(MID(J234,8,2),'help sheet'!$AB$6:$AC$35,2,0)","v":{"$error":"#N/A"}},null,null,"معفى","رياض اطفال1",""]
[null,null,null,null,null,null,"","","20",null,null,null,{"$f":"VLOOKUP(MID(J235,8,2),'help sheet'!$AB$6:$AC$35,2,0)","v":{"$error":"#N/A"}},null,null,"معفى","رياض اطفال1",""]
[null,null,null,null,null,null,"","","20",null,null,null,{"$f":"VLOOKUP(MID(J236,8,2),'help sheet'!$AB$6:$AC$35,2,0)","v":{"$error":"#N/A"}},null,null,"معفى","رياض اطفال1",""]
[null,null,null,null,null,null,"","","20",null,null,null,{"$f":"VLOOKUP(MID(J237,8,2),'help sheet'!$AB$6:$AC$35,2,0)","v":{"$error":"#N/A"}},null,null,"معفى","رياض اطفال1",""]
[null,null,null,null,null,null,"","","20",null,null,null,{"$f":"VLOOKUP(MID(J238,8,2),'help sheet'!$AB$6:$AC$35,2,0)","v":{"$error":"#N/A"}},null,null,"معفى","رياض اطفال1",""]
[null,null,null,null,null,null,"","","20",null,null,null,{"$f":"VLOOKUP(MID(J239,8,2),'help sheet'!$AB$6:$AC$35,2,0)","v":{"$error":"#N/A"}},null,null,"معفى","رياض اطفال1",""]
[null,null,null,null,null,null,"","","20",null,null,null,{"$f":"VLOOKUP(MID(J240,8,2),'help sheet'!$AB$6:$AC$35,2,0)","v":{"$error":"#N/A"}},null,null,"معفى","رياض اطفال1",""]
[null,null,null,null,null,null,"","","20",null,null,null,{"$f":"VLOOKUP(MID(J241,8,2),'help sheet'!$AB$6:$AC$35,2,0)","v":{"$error":"#N/A"}},null,null,"معفى","رياض اطفال1",""]
[null,null,null,null,null,null,"","","20",null,null,null,{"$f":"VLOOKUP(MID(J242,8,2),'help sheet'!$AB$6:$AC$35,2,0)","v":{"$error":"#N/A"}},null,null,"معفى","رياض اطفال1",""]
[null,null,null,null,null,null,"","","20",null,null,null,{"$f":"VLOOKUP(MID(J243,8,2),'help sheet'!$AB$6:$AC$35,2,0)","v":{"$error":"#N/A"}},null,null,"معفى","رياض اطفال1",""]
[null,null,null,null,null,null,"","","20",null,null,null,{"$f":"VLOOKUP(MID(J244,8,2),'help sheet'!$AB$6:$AC$35,2,0)","v":{"$error":"#N/A"}},null,null,"معفى","رياض اطفال1",""]
[null,null,null,null,null,null,"","","20",null,null,null,{"$f":"VLOOKUP(MID(J245,8,2),'help sheet'!$AB$6:$AC$35,2,0)","v":{"$error":"#N/A"}},null,null,"معفى","رياض اطفال1",""]
[null,null,null,null,null,null,"","","20",null,null,null,{"$f":"VLOOKUP(MID(J246,8,2),'help sheet'!$AB$6:$AC$35,2,0)","v":{"$error":"#N/A"}},null,null,"معفى","رياض اطفال1",""]
[null,null,null,null,null,null,"","","20",null,null,null,{"$f":"VLOOKUP(MID(J247,8,2),'help sheet'!$AB$6:$AC$35,2,0)","v":{"$error":"#N/A"}},null,null,"معفى","رياض اطفال1",""]
[null,null,null,null,null,null,"","","20",null,null,null,{"$f":"VLOOKUP(MID(J248,8,2),'help sheet'!$AB$6:$AC$35,2,0)","v":{"$error":"#N/A"}},null,null,"معفى","رياض اطفال1",""]
[null,null,null,null,null,null,"","","20",null,null,null,{"$f":"VLOOKUP(MID(J249,8,2),'help sheet'!$AB$6:$AC$35,2,0)","v":{"$error":"#N/A"}},null,null,"معفى","رياض اطفال1",""]
[null,null,null,null,null,null,"","","20",null,null,null,{"$f":"VLOOKUP(MID(J250,8,2),'help sheet'!$AB$6:$AC$35,2,0)","v":{"$error":"#N/A"}},null,null,"معفى","رياض اطفال1",""]
[null,null,null,null,null,null,"","","20",null,null,null,{"$f":"VLOOKUP(MID(J251,8,2),'help sheet'!$AB$6:$AC$35,2,0)","v":{"$error":"#N/A"}},null,null,"معفى","رياض اطفال1",""]
[null,null,null,null,null,null,"","","20",null,null,null,{"$f":"VLOOKUP(MID(J252,8,2),'help sheet'!$AB$6:$AC$35,2,0)","v":{"$error":"#N/A"}},null,null,"معفى","رياض اطفال1",""]
[null,null,null,null,null,null,"","","20",null,null,null,{"$f":"VLOOKUP(MID(J253,8,2),'help sheet'!$AB$6:$AC$35,2,0)","v":{"$error":"#N/A"}},null,null,"معفى","رياض اطفال1",""]
[null,null,null,null,null,null,"","","20",null,null,null,{"$f":"VLOOKUP(MID(J254,8,2),'help sheet'!$AB$6:$AC$35,2,0)","v":{"$error":"#N/A"}},null,null,"معفى","رياض اطفال1",""]
[null,null,null,null,null,null,"","","20",null,null,null,{"$f":"VLOOKUP(MID(J255,8,2),'help sheet'!$AB$6:$AC$35,2,0)","v":{"$error":"#N/A"}},null,null,"معفى","رياض اطفال1",""]
[null,null,null,null,null,null,"","","20",null,null,null,{"$f":"VLOOKUP(MID(J256,8,2),'help sheet'!$AB$6:$AC$35,2,0)","v":{"$error":"#N/A"}},null,null,"معفى","رياض اطفال1",""]
[null,null,null,null,null,null,"","","20",null,null,null,{"$f":"VLOOKUP(MID(J257,8,2),'help sheet'!$AB$6:$AC$35,2,0)","v":{"$error":"#N/A"}},null,null,"معفى","رياض اطفال1",""]
[null,null,null,null,null,null,"","","20",null,null,null,{"$f":"VLOOKUP(MID(J258,8,2),'help sheet'!$AB$6:$AC$35,2,0)","v":{"$error":"#N/A"}},null,null,"معفى","رياض اطفال1",""]
[null,null,null,null,null,null,"","","20",null,null,null,{"$f":"VLOOKUP(MID(J259,8,2),'help sheet'!$AB$6:$AC$35,2,0)","v":{"$error":"#N/A"}},null,null,"معفى","رياض اطفال1",""]
[null,null,null,null,null,null,"","","20",null,null,null,{"$f":"VLOOKUP(MID(J260,8,2),'help sheet'!$AB$6:$AC$35,2,0)","v":{"$error":"#N/A"}},null,null,"معفى","رياض اطفال1",""]
[null,null,null,null,null,null,{"$f":"MID(J261,6,2)","v":""},{"$f":"MID(J261,4,2)","v":""},{"$f":"\"20\"&MID(J261,2,2)","v":"20"},null,null,null,{"$f":"VLOOKUP(MID(J261,8,2),'help sheet'!$AB$6:$AC$35,2,0)","v":{"$error":"#N/A"}},null,null,"معفى","رياض اطفال1",""]
[null,null,null,null,null,null,"","","20",null,null,null,{"$f":"VLOOKUP(MID(J262,8,2),'help sheet'!$AB$6:$AC$35,2,0)","v":{"$error":"#N/A"}},null,null,"معفى","رياض اطفال1",""]
[null,null,null,null,null,null,"","","20",null,null,null,{"$f":"VLOOKUP(MID(J263,8,2),'help sheet'!$AB$6:$AC$35,2,0)","v":{"$error":"#N/A"}},null,null,"معفى","رياض اطفال1",{"$f":"MID(J263,8,2)","v":""}]
[null,null,null,null,null,null,"","","20",null,null,null,{"$f":"VLOOKUP(MID(J264,8,2),'help sheet'!$AB$6:$AC$35,2,0)","v":{"$error":"#N/A"}},null,null,"معفى","رياض اطفال1",""]
[null,null,null,null,null,null,"","","20",null,null,null,{"$f":"VLOOKUP(MID(J265,8,2),'help sheet'!$AB$6:$AC$35,2,0)","v":{"$error":"#N/A"}},null,null,"معفى","رياض اطفال1",""]
[null,null,null,null,null,null,"","","20",null,null,null,{"$f":"VLOOKUP(MID(J266,8,2),'help sheet'!$AB$6:$AC$35,2,0)","v":{"$error":"#N/A"}},null,null,"معفى","رياض اطفال1",""]
[null,null,null,null,null,null,"","","20",null,null,null,{"$f":"VLOOKUP(MID(J267,8,2),'help sheet'!$AB$6:$AC$35,2,0)","v":{"$error":"#N/A"}},null,null,"معفى","رياض اطفال1",""]
[null,null,null,null,null,null,"","","20",null,null,null,{"$f":"VLOOKUP(MID(J268,8,2),'help sheet'!$AB$6:$AC$35,2,0)","v":{"$error":"#N/A"}},null,null,"معفى","رياض اطفال1",""]
[null,null,null,null,null,null,"","","20",null,null,null,{"$f":"VLOOKUP(MID(J269,8,2),'help sheet'!$AB$6:$AC$35,2,0)","v":{"$error":"#N/A"}},null,null,"معفى","رياض اطفال1",""]
[null,null,null,null,null,null,"","","20",null,null,null,{"$f":"VLOOKUP(MID(J270,8,2),'help sheet'!$AB$6:$AC$35,2,0)","v":{"$error":"#N/A"}},null,null,"معفى","رياض اطفال1",""]
[null,null,null,null,null,null,"","","20",null,null,null,{"$f":"VLOOKUP(MID(J271,8,2),'help sheet'!$AB$6:$AC$35,2,0)","v":{"$error":"#N/A"}},null,null,"معفى","رياض اطفال1",""]
[null,null,null,null,null,null,"","","20",null,null,null,{"$f":"VLOOKUP(MID(J272,8,2),'help sheet'!$AB$6:$AC$35,2,0)","v":{"$error":"#N/A"}},null,null,"معفى","رياض اطفال1",""]
[null,null,null,null,null,null,"","","20",null,null,null,{"$f":"VLOOKUP(MID(J273,8,2),'help sheet'!$AB$6:$AC$35,2,0)","v":{"$error":"#N/A"}},null,null,"معفى","رياض اطفال1",""]
[null,null,null,null,null,null,"","","20",null,null,null,{"$f":"VLOOKUP(MID(J274,8,2),'help sheet'!$AB$6:$AC$35,2,0)","v":{"$error":"#N/A"}},null,null,"معفى","رياض اطفال1",""]
[null,null,null,null,null,null,"","","20",null,null,null,{"$f":"VLOOKUP(MID(J275,8,2),'help sheet'!$AB$6:$AC$35,2,0)","v":{"$error":"#N/A"}},null,null,"معفى","رياض اطفال1",""]
[null,null,null,null,null,null,"","","20",null,null,null,{"$f":"VLOOKUP(MID(J276,8,2),'help sheet'!$AB$6:$AC$35,2,0)","v":{"$error":"#N/A"}},null,null,"معفى","رياض اطفال1",""]
[null,null,null,null,null,null,"","","20",null,null,null,{"$f":"VLOOKUP(MID(J277,8,2),'help sheet'!$AB$6:$AC$35,2,0)","v":{"$error":"#N/A"}},null,null,"معفى","رياض اطفال1",""]
[null,null,null,null,null,null,"","","20",null,null,null,{"$f":"VLOOKUP(MID(J278,8,2),'help sheet'!$AB$6:$AC$35,2,0)","v":{"$error":"#N/A"}},null,null,"معفى","رياض اطفال1",""]
[null,null,null,null,null,null,"","","20",null,null,null,{"$f":"VLOOKUP(MID(J279,8,2),'help sheet'!$AB$6:$AC$35,2,0)","v":{"$error":"#N/A"}},null,null,"معفى","رياض اطفال1",""]
[null,null,null,null,null,null,"","","20",null,null,null,{"$f":"VLOOKUP(MID(J280,8,2),'help sheet'!$AB$6:$AC$35,2,0)","v":{"$error":"#N/A"}},null,null,"معفى","رياض اطفال1",""]
[null,null,null,null,null,null,"","","20",null,null,null,{"$f":"VLOOKUP(MID(J281,8,2),'help sheet'!$AB$6:$AC$35,2,0)","v":{"$error":"#N/A"}},null,null,"معفى","رياض اطفال1",""]
[null,null,null,null,null,null,"","","20",null,null,null,{"$f":"VLOOKUP(MID(J282,8,2),'help sheet'!$AB$6:$AC$35,2,0)","v":{"$error":"#N/A"}},null,null,"معفى","رياض اطفال1",""]
[null,null,null,null,null,null,"","","20",null,null,null,{"$f":"VLOOKUP(MID(J283,8,2),'help sheet'!$AB$6:$AC$35,2,0)","v":{"$error":"#N/A"}},null,null,"معفى","رياض اطفال1",""]
[null,null,null,null,null,null,"","","20",null,null,null,{"$f":"VLOOKUP(MID(J284,8,2),'help sheet'!$AB$6:$AC$35,2,0)","v":{"$error":"#N/A"}},null,null,"معفى","رياض اطفال1",""]
[null,null,null,null,null,null,"","","20",null,null,null,{"$f":"VLOOKUP(MID(J285,8,2),'help sheet'!$AB$6:$AC$35,2,0)","v":{"$error":"#N/A"}},null,null,"معفى","رياض اطفال1",""]
[null,null,null,null,null,null,"","","20",null,null,null,{"$f":"VLOOKUP(MID(J286,8,2),'help sheet'!$AB$6:$AC$35,2,0)","v":{"$error":"#N/A"}},null,null,"معفى","رياض اطفال1",""]
[null,null,null,null,null,null,"","","20",null,null,null,{"$f":"VLOOKUP(MID(J287,8,2),'help sheet'!$AB$6:$AC$35,2,0)","v":{"$error":"#N/A"}},null,null,"معفى","رياض اطفال1",""]
[null,null,null,null,null,null,"","","20",null,null,null,{"$f":"VLOOKUP(MID(J288,8,2),'help sheet'!$AB$6:$AC$35,2,0)","v":{"$error":"#N/A"}},null,null,"معفى","رياض اطفال1",""]
[null,null,null,null,null,null,"","","20",null,null,null,{"$f":"VLOOKUP(MID(J289,8,2),'help sheet'!$AB$6:$AC$35,2,0)","v":{"$error":"#N/A"}},null,null,"معفى","رياض اطفال1",""]
[null,null,null,null,null,null,"","","20",null,null,null,{"$f":"VLOOKUP(MID(J290,8,2),'help sheet'!$AB$6:$AC$35,2,0)","v":{"$error":"#N/A"}},null,null,"معفى","رياض اطفال1",""]
[null,null,null,null,null,null,"","","20",null,null,null,{"$f":"VLOOKUP(MID(J291,8,2),'help sheet'!$AB$6:$AC$35,2,0)","v":{"$error":"#N/A"}},null,null,"معفى","رياض اطفال1",""]
[null,null,null,null,null,null,"","","20",null,null,null,{"$f":"VLOOKUP(MID(J292,8,2),'help sheet'!$AB$6:$AC$35,2,0)","v":{"$error":"#N/A"}},null,null,"معفى","رياض اطفال1",""]
[null,null,null,null,null,null,"","","20",null,null,null,{"$f":"VLOOKUP(MID(J293,8,2),'help sheet'!$AB$6:$AC$35,2,0)","v":{"$error":"#N/A"}},null,null,"معفى","رياض اطفال1",""]
[null,null,null,null,null,null,"","","20",null,null,null,{"$f":"VLOOKUP(MID(J294,8,2),'help sheet'!$AB$6:$AC$35,2,0)","v":{"$error":"#N/A"}},null,null,"معفى","رياض اطفال1",""]
[null,null,null,null,null,null,"","","20",null,null,null,{"$f":"VLOOKUP(MID(J295,8,2),'help sheet'!$AB$6:$AC$35,2,0)","v":{"$error":"#N/A"}},null,null,"معفى","رياض اطفال1",""]
[null,null,null,null,null,null,"","","20",null,null,null,{"$f":"VLOOKUP(MID(J296,8,2),'help sheet'!$AB$6:$AC$35,2,0)","v":{"$error":"#N/A"}},null,null,"معفى","رياض اطفال1",""]
[null,null,null,null,null,null,"","","20",null,null,null,{"$f":"VLOOKUP(MID(J297,8,2),'help sheet'!$AB$6:$AC$35,2,0)","v":{"$error":"#N/A"}},null,null,"معفى","رياض اطفال1",""]
[null,null,null,null,null,null,"","","20",null,null,null,{"$f":"VLOOKUP(MID(J298,8,2),'help sheet'!$AB$6:$AC$35,2,0)","v":{"$error":"#N/A"}},null,null,"معفى","رياض اطفال1",""]
[null,null,null,null,null,null,"","","20",null,null,null,{"$f":"VLOOKUP(MID(J299,8,2),'help sheet'!$AB$6:$AC$35,2,0)","v":{"$error":"#N/A"}},null,null,"معفى","رياض اطفال1",""]
[null,null,null,null,null,null,"","","20",null,null,null,{"$f":"VLOOKUP(MID(J300,8,2),'help sheet'!$AB$6:$AC$35,2,0)","v":{"$error":"#N/A"}},null,null,"معفى","رياض اطفال1",""]
[null,null,null,null,null,null,"","","20",null,null,null,{"$f":"VLOOKUP(MID(J301,8,2),'help sheet'!$AB$6:$AC$35,2,0)","v":{"$error":"#N/A"}},null,null,"معفى","رياض اطفال1",""]
[null,null,null,null,null,null,"","","20",null,null,null,{"$f":"VLOOKUP(MID(J302,8,2),'help sheet'!$AB$6:$AC$35,2,0)","v":{"$error":"#N/A"}},null,null,"معفى","رياض اطفال1",""]
[null,null,null,null,null,null,"","","20",null,null,null,{"$f":"VLOOKUP(MID(J303,8,2),'help sheet'!$AB$6:$AC$35,2,0)","v":{"$error":"#N/A"}},null,null,"معفى","رياض اطفال1",""]
[null,null,null,null,null,null,"","","20",null,null,null,{"$f":"VLOOKUP(MID(J304,8,2),'help sheet'!$AB$6:$AC$35,2,0)","v":{"$error":"#N/A"}},null,null,"معفى","رياض اطفال1",""]
[null,null,null,null,null,null,"","","20",null,null,null,{"$f":"VLOOKUP(MID(J305,8,2),'help sheet'!$AB$6:$AC$35,2,0)","v":{"$error":"#N/A"}},null,null,"معفى","رياض اطفال1",""]
[null,null,null,null,null,null,"","","20",null,null,null,{"$f":"VLOOKUP(MID(J306,8,2),'help sheet'!$AB$6:$AC$35,2,0)","v":{"$error":"#N/A"}},null,null,"معفى","رياض اطفال1",""]
[null,null,null,null,null,null,"","","20",null,null,null,{"$f":"VLOOKUP(MID(J307,8,2),'help sheet'!$AB$6:$AC$35,2,0)","v":{"$error":"#N/A"}},null,null,"معفى","رياض اطفال1",""]
[null,null,null,null,null,null,"","","20",null,null,null,{"$f":"VLOOKUP(MID(J308,8,2),'help sheet'!$AB$6:$AC$35,2,0)","v":{"$error":"#N/A"}},null,null,"معفى","رياض اطفال1",""]
[null,null,null,null,null,null,"","","20",null,null,null,{"$f":"VLOOKUP(MID(J309,8,2),'help sheet'!$AB$6:$AC$35,2,0)","v":{"$error":"#N/A"}},null,null,"معفى","رياض اطفال1",""]
[null,null,null,null,null,null,"","","20",null,null,null,{"$f":"VLOOKUP(MID(J310,8,2),'help sheet'!$AB$6:$AC$35,2,0)","v":{"$error":"#N/A"}},null,null,"معفى","رياض اطفال1",""]
[null,null,null,null,null,null,{"$f":"MID(J311,6,2)","v":""},{"$f":"MID(J311,4,2)","v":""},{"$f":"\"20\"&MID(J311,2,2)","v":"20"},null,null,null,{"$f":"VLOOKUP(MID(J311,8,2),'help sheet'!$AB$6:$AC$35,2,0)","v":{"$error":"#N/A"}},null,null,"معفى","رياض اطفال1",{"$f":"MID(J311,8,2)","v":""}]
[null,null,null,null,null,null,"","","20",null,null,null,{"$f":"VLOOKUP(MID(J312,8,2),'help sheet'!$AB$6:$AC$35,2,0)","v":{"$error":"#N/A"}},null,null,"معفى","رياض اطفال1",""]
[null,null,null,null,null,null,"","","20",null,null,null,{"$f":"VLOOKUP(MID(J313,8,2),'help sheet'!$AB$6:$AC$35,2,0)","v":{"$error":"#N/A"}},null,null,"معفى","رياض اطفال1",""]
[null,null,null,null,null,null,"","","20",null,null,null,{"$f":"VLOOKUP(MID(J314,8,2),'help sheet'!$AB$6:$AC$35,2,0)","v":{"$error":"#N/A"}},null,null,"معفى","رياض اطفال1",""]
[null,null,null,null,null,null,"","","20",null,null,null,{"$f":"VLOOKUP(MID(J315,8,2),'help sheet'!$AB$6:$AC$35,2,0)","v":{"$error":"#N/A"}},null,null,"معفى","رياض اطفال1",""]
[null,null,null,null,null,null,"","","20",null,null,null,{"$f":"VLOOKUP(MID(J316,8,2),'help sheet'!$AB$6:$AC$35,2,0)","v":{"$error":"#N/A"}},null,null,"معفى","رياض اطفال1",""]
[null,null,null,null,null,null,"","","20",null,null,null,{"$f":"VLOOKUP(MID(J317,8,2),'help sheet'!$AB$6:$AC$35,2,0)","v":{"$error":"#N/A"}},null,null,"معفى","رياض اطفال1",""]
[null,null,null,null,null,null,"","","20",null,null,null,{"$f":"VLOOKUP(MID(J318,8,2),'help sheet'!$AB$6:$AC$35,2,0)","v":{"$error":"#N/A"}},null,null,"معفى","رياض اطفال1",""]
[null,null,null,null,null,null,"","","20",null,null,null,{"$f":"VLOOKUP(MID(J319,8,2),'help sheet'!$AB$6:$AC$35,2,0)","v":{"$error":"#N/A"}},null,null,"معفى","رياض اطفال1",""]
[null,null,null,null,null,null,"","","20",null,null,null,{"$f":"VLOOKUP(MID(J320,8,2),'help sheet'!$AB$6:$AC$35,2,0)","v":{"$error":"#N/A"}},null,null,"معفى","رياض اطفال1",""]
[null,null,null,null,null,null,"","","20",null,null,null,{"$f":"VLOOKUP(MID(J321,8,2),'help sheet'!$AB$6:$AC$35,2,0)","v":{"$error":"#N/A"}},null,null,"معفى","رياض اطفال1",""]
[null,null,null,null,null,null,"","","20",null,null,null,{"$f":"VLOOKUP(MID(J322,8,2),'help sheet'!$AB$6:$AC$35,2,0)","v":{"$error":"#N/A"}},null,null,"معفى","رياض اطفال1",""]
[null,null,null,null,null,null,"","","20",null,null,null,{"$f":"VLOOKUP(MID(J323,8,2),'help sheet'!$AB$6:$AC$35,2,0)","v":{"$error":"#N/A"}},null,null,"معفى","رياض اطفال1",""]
[null,null,null,null,null,null,"","","20",null,null,null,{"$f":"VLOOKUP(MID(J324,8,2),'help sheet'!$AB$6:$AC$35,2,0)","v":{"$error":"#N/A"}},null,null,"معفى","رياض اطفال1",""]
[null,null,null,null,null,null,"","","20",null,null,null,{"$f":"VLOOKUP(MID(J325,8,2),'help sheet'!$AB$6:$AC$35,2,0)","v":{"$error":"#N/A"}},null,null,"معفى","رياض اطفال1",""]
[null,null,null,null,null,null,"","","20",null,null,null,{"$f":"VLOOKUP(MID(J326,8,2),'help sheet'!$AB$6:$AC$35,2,0)","v":{"$error":"#N/A"}},null,null,"معفى","رياض اطفال1",""]
[null,null,null,null,null,null,"","","20",null,null,null,{"$f":"VLOOKUP(MID(J327,8,2),'help sheet'!$AB$6:$AC$35,2,0)","v":{"$error":"#N/A"}},null,null,"معفى","رياض اطفال1",""]
[null,null,null,null,null,null,"","","20",null,null,null,{"$f":"VLOOKUP(MID(J328,8,2),'help sheet'!$AB$6:$AC$35,2,0)","v":{"$error":"#N/A"}},null,null,"معفى","رياض اطفال1",""]
[null,null,null,null,null,null,"","","20",null,null,null,{"$f":"VLOOKUP(MID(J329,8,2),'help sheet'!$AB$6:$AC$35,2,0)","v":{"$error":"#N/A"}},null,null,"معفى","رياض اطفال1",""]
[null,null,null,null,null,null,"","","20",null,null,null,{"$f":"VLOOKUP(MID(J330,8,2),'help sheet'!$AB$6:$AC$35,2,0)","v":{"$error":"#N/A"}},null,null,"معفى","رياض اطفال1",""]
[null,null,null,null,null,null,"","","20",null,null,null,{"$f":"VLOOKUP(MID(J331,8,2),'help sheet'!$AB$6:$AC$35,2,0)","v":{"$error":"#N/A"}},null,null,"معفى","رياض اطفال1",""]
[null,null,null,null,null,null,"","","20",null,null,null,{"$f":"VLOOKUP(MID(J332,8,2),'help sheet'!$AB$6:$AC$35,2,0)","v":{"$error":"#N/A"}},null,null,"معفى","رياض اطفال1",""]
[null,null,null,null,null,null,"","","20",null,null,null,{"$f":"VLOOKUP(MID(J333,8,2),'help sheet'!$AB$6:$AC$35,2,0)","v":{"$error":"#N/A"}},null,null,"معفى","رياض اطفال1",""]
[null,null,null,null,null,null,"","","20",null,null,null,{"$f":"VLOOKUP(MID(J334,8,2),'help sheet'!$AB$6:$AC$35,2,0)","v":{"$error":"#N/A"}},null,null,"معفى","رياض اطفال1",""]
[null,null,null,null,null,null,"","","20",null,null,null,{"$f":"VLOOKUP(MID(J335,8,2),'help sheet'!$AB$6:$AC$35,2,0)","v":{"$error":"#N/A"}},null,null,"معفى","رياض اطفال1",""]
[null,null,null,null,null,null,"","","20",null,null,null,{"$f":"VLOOKUP(MID(J336,8,2),'help sheet'!$AB$6:$AC$35,2,0)","v":{"$error":"#N/A"}},null,null,"معفى","رياض اطفال1",""]
[null,null,null,null,null,null,"","","20",null,null,null,{"$f":"VLOOKUP(MID(J337,8,2),'help sheet'!$AB$6:$AC$35,2,0)","v":{"$error":"#N/A"}},null,null,"معفى","رياض اطفال1",""]
[null,null,null,null,null,null,"","","20",null,null,null,{"$f":"VLOOKUP(MID(J338,8,2),'help sheet'!$AB$6:$AC$35,2,0)","v":{"$error":"#N/A"}},null,null,"معفى","رياض اطفال1",""]
[null,null,null,null,null,null,"","","20",null,null,null,{"$f":"VLOOKUP(MID(J339,8,2),'help sheet'!$AB$6:$AC$35,2,0)","v":{"$error":"#N/A"}},null,null,"معفى","رياض اطفال1",""]
[null,null,null,null,null,null,"","","20",null,null,null,{"$f":"VLOOKUP(MID(J340,8,2),'help sheet'!$AB$6:$AC$35,2,0)","v":{"$error":"#N/A"}},null,null,"معفى","رياض اطفال1",""]
[null,null,null,null,null,null,"","","20",null,null,null,{"$f":"VLOOKUP(MID(J341,8,2),'help sheet'!$AB$6:$AC$35,2,0)","v":{"$error":"#N/A"}},null,null,"معفى","رياض اطفال1",""]
[null,null,null,null,null,null,"","","20",null,null,null,{"$f":"VLOOKUP(MID(J342,8,2),'help sheet'!$AB$6:$AC$35,2,0)","v":{"$error":"#N/A"}},null,null,"معفى","رياض اطفال1",""]
[null,null,null,null,null,null,"","","20",null,null,null,{"$f":"VLOOKUP(MID(J343,8,2),'help sheet'!$AB$6:$AC$35,2,0)","v":{"$error":"#N/A"}},null,null,"معفى","رياض اطفال1",""]
[null,null,null,null,null,null,"","","20",null,null,null,{"$f":"VLOOKUP(MID(J344,8,2),'help sheet'!$AB$6:$AC$35,2,0)","v":{"$error":"#N/A"}},null,null,"معفى","رياض اطفال1",""]
[null,null,null,null,null,null,"","","20",null,null,null,{"$f":"VLOOKUP(MID(J345,8,2),'help sheet'!$AB$6:$AC$35,2,0)","v":{"$error":"#N/A"}},null,null,"معفى","رياض اطفال1",""]
[null,null,null,null,null,null,"","","20",null,null,null,{"$f":"VLOOKUP(MID(J346,8,2),'help sheet'!$AB$6:$AC$35,2,0)","v":{"$error":"#N/A"}},null,null,"معفى","رياض اطفال1",""]
[null,null,null,null,null,null,"","","20",null,null,null,{"$f":"VLOOKUP(MID(J347,8,2),'help sheet'!$AB$6:$AC$35,2,0)","v":{"$error":"#N/A"}},null,null,"معفى","رياض اطفال1",""]
[null,null,null,null,null,null,"","","20",null,null,null,{"$f":"VLOOKUP(MID(J348,8,2),'help sheet'!$AB$6:$AC$35,2,0)","v":{"$error":"#N/A"}},null,null,"معفى","رياض اطفال1",""]
[null,null,null,null,null,null,"","","20",null,null,null,{"$f":"VLOOKUP(MID(J349,8,2),'help sheet'!$AB$6:$AC$35,2,0)","v":{"$error":"#N/A"}},null,null,"معفى","رياض اطفال1",""]
[null,null,null,null,null,null,"","","20",null,null,null,{"$f":"VLOOKUP(MID(J350,8,2),'help sheet'!$AB$6:$AC$35,2,0)","v":{"$error":"#N/A"}},null,null,"معفى","رياض اطفال1",""]
[null,null,null,null,null,null,"","","20",null,null,null,{"$f":"VLOOKUP(MID(J351,8,2),'help sheet'!$AB$6:$AC$35,2,0)","v":{"$error":"#N/A"}},null,null,"معفى","رياض اطفال1",""]
[null,null,null,null,null,null,"","","20",null,null,null,{"$f":"VLOOKUP(MID(J352,8,2),'help sheet'!$AB$6:$AC$35,2,0)","v":{"$error":"#N/A"}},null,null,"معفى","رياض اطفال1",""]
[null,null,null,null,null,null,"","","20",null,null,null,{"$f":"VLOOKUP(MID(J353,8,2),'help sheet'!$AB$6:$AC$35,2,0)","v":{"$error":"#N/A"}},null,null,"معفى","رياض اطفال1",""]
[null,null,null,null,null,null,"","","20",null,null,null,{"$f":"VLOOKUP(MID(J354,8,2),'help sheet'!$AB$6:$AC$35,2,0)","v":{"$error":"#N/A"}},null,null,"معفى","رياض اطفال1",""]
[null,null,null,null,null,null,"","","20",null,null,null,{"$f":"VLOOKUP(MID(J355,8,2),'help sheet'!$AB$6:$AC$35,2,0)","v":{"$error":"#N/A"}},null,null,"معفى","رياض اطفال1",""]
[null,null,null,null,null,null,"","","20",null,null,null,{"$f":"VLOOKUP(MID(J356,8,2),'help sheet'!$AB$6:$AC$35,2,0)","v":{"$error":"#N/A"}},null,null,"معفى","رياض اطفال1",""]
[null,null,null,null,null,null,"","","20",null,null,null,{"$f":"VLOOKUP(MID(J357,8,2),'help sheet'!$AB$6:$AC$35,2,0)","v":{"$error":"#N/A"}},null,null,"معفى","رياض اطفال1",""]
[null,null,null,null,null,null,"","","20",null,null,null,{"$f":"VLOOKUP(MID(J358,8,2),'help sheet'!$AB$6:$AC$35,2,0)","v":{"$error":"#N/A"}},null,null,"معفى","رياض اطفال1",""]
[null,null,null,null,null,null,"","","20",null,null,null,{"$f":"VLOOKUP(MID(J359,8,2),'help sheet'!$AB$6:$AC$35,2,0)","v":{"$error":"#N/A"}},null,null,"معفى","رياض اطفال1",""]
[null,null,null,null,null,null,"","","20",null,null,null,{"$f":"VLOOKUP(MID(J360,8,2),'help sheet'!$AB$6:$AC$35,2,0)","v":{"$error":"#N/A"}},null,null,"معفى","رياض اطفال1",""]
[null,null,null,null,null,null,"","","20",null,null,null,{"$f":"VLOOKUP(MID(J361,8,2),'help sheet'!$AB$6:$AC$35,2,0)","v":{"$error":"#N/A"}},null,null,"معفى","رياض اطفال1",""]
[null,null,null,null,null,null,"","","20",null,null,null,{"$f":"VLOOKUP(MID(J362,8,2),'help sheet'!$AB$6:$AC$35,2,0)","v":{"$error":"#N/A"}},null,null,"معفى","رياض اطفال1",""]
[null,null,null,null,null,null,"","","20",null,null,null,{"$f":"VLOOKUP(MID(J363,8,2),'help sheet'!$AB$6:$AC$35,2,0)","v":{"$error":"#N/A"}},null,null,"معفى","رياض اطفال1",""]
[null,null,null,null,null,null,"","","20",null,null,null,{"$f":"VLOOKUP(MID(J364,8,2),'help sheet'!$AB$6:$AC$35,2,0)","v":{"$error":"#N/A"}},null,null,"معفى","رياض اطفال1",""]
[null,null,null,null,null,null,"","","20",null,null,null,{"$f":"VLOOKUP(MID(J365,8,2),'help sheet'!$AB$6:$AC$35,2,0)","v":{"$error":"#N/A"}},null,null,"معفى","رياض اطفال1",""]
[null,null,null,null,null,null,"","","20",null,null,null,{"$f":"VLOOKUP(MID(J366,8,2),'help sheet'!$AB$6:$AC$35,2,0)","v":{"$error":"#N/A"}},null,null,"معفى","رياض اطفال1",""]
[null,null,null,null,null,null,"","","20",null,null,null,{"$f":"VLOOKUP(MID(J367,8,2),'help sheet'!$AB$6:$AC$35,2,0)","v":{"$error":"#N/A"}},null,null,"معفى","رياض اطفال1",""]
[null,null,null,null,null,null,"","","20",null,null,null,{"$f":"VLOOKUP(MID(J368,8,2),'help sheet'!$AB$6:$AC$35,2,0)","v":{"$error":"#N/A"}},null,null,"معفى","رياض اطفال1",""]
[null,null,null,null,null,null,"","","20",null,null,null,{"$f":"VLOOKUP(MID(J369,8,2),'help sheet'!$AB$6:$AC$35,2,0)","v":{"$error":"#N/A"}},null,null,"معفى","رياض اطفال1",""]
[null,null,null,null,null,null,"","","20",null,null,null,{"$f":"VLOOKUP(MID(J370,8,2),'help sheet'!$AB$6:$AC$35,2,0)","v":{"$error":"#N/A"}},null,null,"معفى","رياض اطفال1",""]
[null,null,null,null,null,null,"","","20",null,null,null,{"$f":"VLOOKUP(MID(J371,8,2),'help sheet'!$AB$6:$AC$35,2,0)","v":{"$error":"#N/A"}},null,null,"معفى","رياض اطفال1",""]
[null,null,null,null,null,null,"","","20",null,null,null,{"$f":"VLOOKUP(MID(J372,8,2),'help sheet'!$AB$6:$AC$35,2,0)","v":{"$error":"#N/A"}},null,null,"معفى","رياض اطفال1",""]
[null,null,null,null,null,null,"","","20",null,null,null,{"$f":"VLOOKUP(MID(J373,8,2),'help sheet'!$AB$6:$AC$35,2,0)","v":{"$error":"#N/A"}},null,null,"معفى","رياض اطفال1",""]
[null,null,null,null,null,null,"","","20",null,null,null,{"$f":"VLOOKUP(MID(J374,8,2),'help sheet'!$AB$6:$AC$35,2,0)","v":{"$error":"#N/A"}},null,null,"معفى","رياض اطفال1",""]
[null,null,null,null,null,null,{"$f":"MID(J375,6,2)","v":""},{"$f":"MID(J375,4,2)","v":""},{"$f":"\"20\"&MID(J375,2,2)","v":"20"},null,null,null,{"$f":"VLOOKUP(MID(J375,8,2),'help sheet'!$AB$6:$AC$35,2,0)","v":{"$error":"#N/A"}},null,null,"معفى","رياض اطفال1",{"$f":"MID(J375,8,2)","v":""}]
[null,null,null,null,null,null,"","","20",null,null,null,{"$f":"VLOOKUP(MID(J376,8,2),'help sheet'!$AB$6:$AC$35,2,0)","v":{"$error":"#N/A"}},null,null,"معفى","رياض اطفال1",""]
[null,null,null,null,null,null,"","","20",null,null,null,{"$f":"VLOOKUP(MID(J377,8,2),'help sheet'!$AB$6:$AC$35,2,0)","v":{"$error":"#N/A"}},null,null,"معفى","رياض اطفال1",""]
[null,null,null,null,null,null,"","","20",null,null,null,{"$f":"VLOOKUP(MID(J378,8,2),'help sheet'!$AB$6:$AC$35,2,0)","v":{"$error":"#N/A"}},null,null,"معفى","رياض اطفال1",""]
[null,null,null,null,null,null,"","","20",null,null,null,{"$f":"VLOOKUP(MID(J379,8,2),'help sheet'!$AB$6:$AC$35,2,0)","v":{"$error":"#N/A"}},null,null,"معفى","رياض اطفال1",""]
[null,null,null,null,null,null,"","","20",null,null,null,{"$f":"VLOOKUP(MID(J380,8,2),'help sheet'!$AB$6:$AC$35,2,0)","v":{"$error":"#N/A"}},null,null,"معفى","رياض اطفال1",""]
[null,null,null,null,null,null,"","","20",null,null,null,{"$f":"VLOOKUP(MID(J381,8,2),'help sheet'!$AB$6:$AC$35,2,0)","v":{"$error":"#N/A"}},null,null,"معفى","رياض اطفال1",""]
[null,null,null,null,null,null,"","","20",null,null,null,{"$f":"VLOOKUP(MID(J382,8,2),'help sheet'!$AB$6:$AC$35,2,0)","v":{"$error":"#N/A"}},null,null,"معفى","رياض اطفال1",""]
[null,null,null,null,null,null,"","","20",null,null,null,{"$f":"VLOOKUP(MID(J383,8,2),'help sheet'!$AB$6:$AC$35,2,0)","v":{"$error":"#N/A"}},null,null,"معفى","رياض اطفال1",""]
[null,null,null,null,null,null,"","","20",null,null,null,{"$f":"VLOOKUP(MID(J384,8,2),'help sheet'!$AB$6:$AC$35,2,0)","v":{"$error":"#N/A"}},null,null,"معفى","رياض اطفال1",""]
[null,null,null,null,null,null,"","","20",null,null,null,{"$f":"VLOOKUP(MID(J385,8,2),'help sheet'!$AB$6:$AC$35,2,0)","v":{"$error":"#N/A"}},null,null,"معفى","رياض اطفال1",""]
[null,null,null,null,null,null,"","","20",null,null,null,{"$f":"VLOOKUP(MID(J386,8,2),'help sheet'!$AB$6:$AC$35,2,0)","v":{"$error":"#N/A"}},null,null,"معفى","رياض اطفال1",""]
[null,null,null,null,null,null,"","","20",null,null,null,{"$f":"VLOOKUP(MID(J387,8,2),'help sheet'!$AB$6:$AC$35,2,0)","v":{"$error":"#N/A"}},null,null,"معفى","رياض اطفال1",""]
[null,null,null,null,null,null,"","","20",null,null,null,{"$f":"VLOOKUP(MID(J388,8,2),'help sheet'!$AB$6:$AC$35,2,0)","v":{"$error":"#N/A"}},null,null,"معفى","رياض اطفال1",""]
[null,null,null,null,null,null,"","","20",null,null,null,{"$f":"VLOOKUP(MID(J389,8,2),'help sheet'!$AB$6:$AC$35,2,0)","v":{"$error":"#N/A"}},null,null,"معفى","رياض اطفال1",""]
[null,null,null,null,null,null,"","","20",null,null,null,{"$f":"VLOOKUP(MID(J390,8,2),'help sheet'!$AB$6:$AC$35,2,0)","v":{"$error":"#N/A"}},null,null,"معفى","رياض اطفال1",""]
[null,null,null,null,null,null,"","","20",null,null,null,{"$f":"VLOOKUP(MID(J391,8,2),'help sheet'!$AB$6:$AC$35,2,0)","v":{"$error":"#N/A"}},null,null,"معفى","رياض اطفال1",""]
[null,null,null,null,null,null,"","","20",null,null,null,{"$f":"VLOOKUP(MID(J392,8,2),'help sheet'!$AB$6:$AC$35,2,0)","v":{"$error":"#N/A"}},null,null,"معفى","رياض اطفال1",""]
[null,null,null,null,null,null,"","","20",null,null,null,{"$f":"VLOOKUP(MID(J393,8,2),'help sheet'!$AB$6:$AC$35,2,0)","v":{"$error":"#N/A"}},null,null,"معفى","رياض اطفال1",""]
[null,null,null,null,null,null,"","","20",null,null,null,{"$f":"VLOOKUP(MID(J394,8,2),'help sheet'!$AB$6:$AC$35,2,0)","v":{"$error":"#N/A"}},null,null,"معفى","رياض اطفال1",""]
[null,null,null,null,null,null,"","","20",null,null,null,{"$f":"VLOOKUP(MID(J395,8,2),'help sheet'!$AB$6:$AC$35,2,0)","v":{"$error":"#N/A"}},null,null,"معفى","رياض اطفال1",""]
[null,null,null,null,null,null,"","","20",null,null,null,{"$f":"VLOOKUP(MID(J396,8,2),'help sheet'!$AB$6:$AC$35,2,0)","v":{"$error":"#N/A"}},null,null,"معفى","رياض اطفال1",""]
[null,null,null,null,null,null,"","","20",null,null,null,{"$f":"VLOOKUP(MID(J397,8,2),'help sheet'!$AB$6:$AC$35,2,0)","v":{"$error":"#N/A"}},null,null,"معفى","رياض اطفال1",""]
[null,null,null,null,null,null,"","","20",null,null,null,{"$f":"VLOOKUP(MID(J398,8,2),'help sheet'!$AB$6:$AC$35,2,0)","v":{"$error":"#N/A"}},null,null,"معفى","رياض اطفال1",""]
[null,null,null,null,null,null,"","","20",null,null,null,{"$f":"VLOOKUP(MID(J399,8,2),'help sheet'!$AB$6:$AC$35,2,0)","v":{"$error":"#N/A"}},null,null,"معفى","رياض اطفال1",""]
[null,null,null,null,null,null,"","","20",null,null,null,{"$f":"VLOOKUP(MID(J400,8,2),'help sheet'!$AB$6:$AC$35,2,0)","v":{"$error":"#N/A"}},null,null,"معفى","رياض اطفال1",""]
[null,null,null,null,null,null,"","","20",null,null,null,{"$f":"VLOOKUP(MID(J401,8,2),'help sheet'!$AB$6:$AC$35,2,0)","v":{"$error":"#N/A"}},null,null,"معفى","رياض اطفال1",""]
[null,null,null,null,null,null,"","","20",null,null,null,{"$f":"VLOOKUP(MID(J402,8,2),'help sheet'!$AB$6:$AC$35,2,0)","v":{"$error":"#N/A"}},null,null,"معفى","رياض اطفال1",""]
[null,null,null,null,null,null,"","","20",null,null,null,{"$f":"VLOOKUP(MID(J403,8,2),'help sheet'!$AB$6:$AC$35,2,0)","v":{"$error":"#N/A"}},null,null,"معفى","رياض اطفال1",""]
[null,null,null,null,null,null,"","","20",null,null,null,{"$f":"VLOOKUP(MID(J404,8,2),'help sheet'!$AB$6:$AC$35,2,0)","v":{"$error":"#N/A"}},null,null,"معفى","رياض اطفال1",""]
[null,null,null,null,null,null,"","","20",null,null,null,{"$f":"VLOOKUP(MID(J405,8,2),'help sheet'!$AB$6:$AC$35,2,0)","v":{"$error":"#N/A"}},null,null,"معفى","رياض اطفال1",""]
[null,null,null,null,null,null,"","","20",null,null,null,{"$f":"VLOOKUP(MID(J406,8,2),'help sheet'!$AB$6:$AC$35,2,0)","v":{"$error":"#N/A"}},null,null,"معفى","رياض اطفال1",""]
[null,null,null,null,null,null,"","","20",null,null,null,{"$f":"VLOOKUP(MID(J407,8,2),'help sheet'!$AB$6:$AC$35,2,0)","v":{"$error":"#N/A"}},null,null,"معفى","رياض اطفال1",""]
[null,null,null,null,null,null,"","","20",null,null,null,{"$f":"VLOOKUP(MID(J408,8,2),'help sheet'!$AB$6:$AC$35,2,0)","v":{"$error":"#N/A"}},null,null,"معفى","رياض اطفال1",""]
[null,null,null,null,null,null,"","","20",null,null,null,{"$f":"VLOOKUP(MID(J409,8,2),'help sheet'!$AB$6:$AC$35,2,0)","v":{"$error":"#N/A"}},null,null,"معفى","رياض اطفال1",""]
[null,null,null,null,null,null,"","","20",null,null,null,{"$f":"VLOOKUP(MID(J410,8,2),'help sheet'!$AB$6:$AC$35,2,0)","v":{"$error":"#N/A"}},null,null,"معفى","رياض اطفال1",""]
[null,null,null,null,null,null,"","","20",null,null,null,{"$f":"VLOOKUP(MID(J411,8,2),'help sheet'!$AB$6:$AC$35,2,0)","v":{"$error":"#N/A"}},null,null,"معفى","رياض اطفال1",""]
[null,null,null,null,null,null,"","","20",null,null,null,{"$f":"VLOOKUP(MID(J412,8,2),'help sheet'!$AB$6:$AC$35,2,0)","v":{"$error":"#N/A"}},null,null,"معفى","رياض اطفال1",""]
[null,null,null,null,null,null,"","","20",null,null,null,{"$f":"VLOOKUP(MID(J413,8,2),'help sheet'!$AB$6:$AC$35,2,0)","v":{"$error":"#N/A"}},null,null,"معفى","رياض اطفال1",""]
[null,null,null,null,null,null,"","","20",null,null,null,{"$f":"VLOOKUP(MID(J414,8,2),'help sheet'!$AB$6:$AC$35,2,0)","v":{"$error":"#N/A"}},null,null,"معفى","رياض اطفال1",""]
[null,null,null,null,null,null,"","","20",null,null,null,{"$f":"VLOOKUP(MID(J415,8,2),'help sheet'!$AB$6:$AC$35,2,0)","v":{"$error":"#N/A"}},null,null,"معفى","رياض اطفال1",""]
[null,null,null,null,null,null,"","","20",null,null,null,{"$f":"VLOOKUP(MID(J416,8,2),'help sheet'!$AB$6:$AC$35,2,0)","v":{"$error":"#N/A"}},null,null,"معفى","رياض اطفال1",""]
[null,null,null,null,null,null,"","","20",null,null,null,{"$f":"VLOOKUP(MID(J417,8,2),'help sheet'!$AB$6:$AC$35,2,0)","v":{"$error":"#N/A"}},null,null,"معفى","رياض اطفال1",""]
[null,null,null,null,null,null,"","","20",null,null,null,{"$f":"VLOOKUP(MID(J418,8,2),'help sheet'!$AB$6:$AC$35,2,0)","v":{"$error":"#N/A"}},null,null,"معفى","رياض اطفال1",""]
[null,null,null,null,null,null,"","","20",null,null,null,{"$f":"VLOOKUP(MID(J419,8,2),'help sheet'!$AB$6:$AC$35,2,0)","v":{"$error":"#N/A"}},null,null,"معفى","رياض اطفال1",""]
[null,null,null,null,null,null,"","","20",null,null,null,{"$f":"VLOOKUP(MID(J420,8,2),'help sheet'!$AB$6:$AC$35,2,0)","v":{"$error":"#N/A"}},null,null,"معفى","رياض اطفال1",""]
[null,null,null,null,null,null,"","","20",null,null,null,{"$f":"VLOOKUP(MID(J421,8,2),'help sheet'!$AB$6:$AC$35,2,0)","v":{"$error":"#N/A"}},null,null,"معفى","رياض اطفال1",""]
[null,null,null,null,null,null,"","","20",null,null,null,{"$f":"VLOOKUP(MID(J422,8,2),'help sheet'!$AB$6:$AC$35,2,0)","v":{"$error":"#N/A"}},null,null,"معفى","رياض اطفال1",""]
[null,null,null,null,null,null,"","","20",null,null,null,{"$f":"VLOOKUP(MID(J423,8,2),'help sheet'!$AB$6:$AC$35,2,0)","v":{"$error":"#N/A"}},null,null,"معفى","رياض اطفال1",""]
[null,null,null,null,null,null,"","","20",null,null,null,{"$f":"VLOOKUP(MID(J424,8,2),'help sheet'!$AB$6:$AC$35,2,0)","v":{"$error":"#N/A"}},null,null,"معفى","رياض اطفال1",""]
[null,null,null,null,null,null,"","","20",null,null,null,{"$f":"VLOOKUP(MID(J425,8,2),'help sheet'!$AB$6:$AC$35,2,0)","v":{"$error":"#N/A"}},null,null,"معفى","رياض اطفال1",""]
[null,null,null,null,null,null,"","","20",null,null,null,{"$f":"VLOOKUP(MID(J426,8,2),'help sheet'!$AB$6:$AC$35,2,0)","v":{"$error":"#N/A"}},null,null,"معفى","رياض اطفال1",""]
[null,null,null,null,null,null,"","","20",null,null,null,{"$f":"VLOOKUP(MID(J427,8,2),'help sheet'!$AB$6:$AC$35,2,0)","v":{"$error":"#N/A"}},null,null,"معفى","رياض اطفال1",""]
[null,null,null,null,null,null,"","","20",null,null,null,{"$f":"VLOOKUP(MID(J428,8,2),'help sheet'!$AB$6:$AC$35,2,0)","v":{"$error":"#N/A"}},null,null,"معفى","رياض اطفال1",""]
[null,null,null,null,null,null,"","","20",null,null,null,{"$f":"VLOOKUP(MID(J429,8,2),'help sheet'!$AB$6:$AC$35,2,0)","v":{"$error":"#N/A"}},null,null,"معفى","رياض اطفال1",""]
[null,null,null,null,null,null,"","","20",null,null,null,{"$f":"VLOOKUP(MID(J430,8,2),'help sheet'!$AB$6:$AC$35,2,0)","v":{"$error":"#N/A"}},null,null,"معفى","رياض اطفال1",""]
[null,null,null,null,null,null,"","","20",null,null,null,{"$f":"VLOOKUP(MID(J431,8,2),'help sheet'!$AB$6:$AC$35,2,0)","v":{"$error":"#N/A"}},null,null,"معفى","رياض اطفال1",""]
[null,null,null,null,null,null,"","","20",null,null,null,{"$f":"VLOOKUP(MID(J432,8,2),'help sheet'!$AB$6:$AC$35,2,0)","v":{"$error":"#N/A"}},null,null,"معفى","رياض اطفال1",""]
[null,null,null,null,null,null,"","","20",null,null,null,{"$f":"VLOOKUP(MID(J433,8,2),'help sheet'!$AB$6:$AC$35,2,0)","v":{"$error":"#N/A"}},null,null,"معفى","رياض اطفال1",""]
[null,null,null,null,null,null,"","","20",null,null,null,{"$f":"VLOOKUP(MID(J434,8,2),'help sheet'!$AB$6:$AC$35,2,0)","v":{"$error":"#N/A"}},null,null,"معفى","رياض اطفال1",""]
[null,null,null,null,null,null,"","","20",null,null,null,{"$f":"VLOOKUP(MID(J435,8,2),'help sheet'!$AB$6:$AC$35,2,0)","v":{"$error":"#N/A"}},null,null,"معفى","رياض اطفال1",""]
[null,null,null,null,null,null,"","","20",null,null,null,{"$f":"VLOOKUP(MID(J436,8,2),'help sheet'!$AB$6:$AC$35,2,0)","v":{"$error":"#N/A"}},null,null,"معفى","رياض اطفال1",""]
[null,null,null,null,null,null,"","","20",null,null,null,{"$f":"VLOOKUP(MID(J437,8,2),'help sheet'!$AB$6:$AC$35,2,0)","v":{"$error":"#N/A"}},null,null,"معفى","رياض اطفال1",""]
[null,null,null,null,null,null,"","","20",null,null,null,{"$f":"VLOOKUP(MID(J438,8,2),'help sheet'!$AB$6:$AC$35,2,0)","v":{"$error":"#N/A"}},null,null,"معفى","رياض اطفال1",""]
[null,null,null,null,null,null,{"$f":"MID(J439,6,2)","v":""},{"$f":"MID(J439,4,2)","v":""},{"$f":"\"20\"&MID(J439,2,2)","v":"20"},null,null,null,{"$f":"VLOOKUP(MID(J439,8,2),'help sheet'!$AB$6:$AC$35,2,0)","v":{"$error":"#N/A"}},null,null,"معفى","رياض اطفال1",{"$f":"MID(J439,8,2)","v":""}]
[null,null,null,null,null,null,"","","20",null,null,null,{"$f":"VLOOKUP(MID(J440,8,2),'help sheet'!$AB$6:$AC$35,2,0)","v":{"$error":"#N/A"}},null,null,"معفى","رياض اطفال1",""]
[null,null,null,null,null,null,"","","20",null,null,null,{"$f":"VLOOKUP(MID(J441,8,2),'help sheet'!$AB$6:$AC$35,2,0)","v":{"$error":"#N/A"}},null,null,"معفى","رياض اطفال1",""]
[null,null,null,null,null,null,"","","20",null,null,null,{"$f":"VLOOKUP(MID(J442,8,2),'help sheet'!$AB$6:$AC$35,2,0)","v":{"$error":"#N/A"}},null,null,"معفى","رياض اطفال1",""]
[null,null,null,null,null,null,"","","20",null,null,null,{"$f":"VLOOKUP(MID(J443,8,2),'help sheet'!$AB$6:$AC$35,2,0)","v":{"$error":"#N/A"}},null,null,"معفى","رياض اطفال1",""]
[null,null,null,null,null,null,"","","20",null,null,null,{"$f":"VLOOKUP(MID(J444,8,2),'help sheet'!$AB$6:$AC$35,2,0)","v":{"$error":"#N/A"}},null,null,"معفى","رياض اطفال1",""]
[null,null,null,null,null,null,"","","20",null,null,null,{"$f":"VLOOKUP(MID(J445,8,2),'help sheet'!$AB$6:$AC$35,2,0)","v":{"$error":"#N/A"}},null,null,"معفى","رياض اطفال1",""]
[null,null,null,null,null,null,"","","20",null,null,null,{"$f":"VLOOKUP(MID(J446,8,2),'help sheet'!$AB$6:$AC$35,2,0)","v":{"$error":"#N/A"}},null,null,"معفى","رياض اطفال1",""]
[null,null,null,null,null,null,"","","20",null,null,null,{"$f":"VLOOKUP(MID(J447,8,2),'help sheet'!$AB$6:$AC$35,2,0)","v":{"$error":"#N/A"}},null,null,"معفى","رياض اطفال1",""]
[null,null,null,null,null,null,"","","20",null,null,null,{"$f":"VLOOKUP(MID(J448,8,2),'help sheet'!$AB$6:$AC$35,2,0)","v":{"$error":"#N/A"}},null,null,"معفى","رياض اطفال1",""]
[null,null,null,null,null,null,"","","20",null,null,null,{"$f":"VLOOKUP(MID(J449,8,2),'help sheet'!$AB$6:$AC$35,2,0)","v":{"$error":"#N/A"}},null,null,"معفى","رياض اطفال1",""]
[null,null,null,null,null,null,"","","20",null,null,null,{"$f":"VLOOKUP(MID(J450,8,2),'help sheet'!$AB$6:$AC$35,2,0)","v":{"$error":"#N/A"}},null,null,"معفى","رياض اطفال1",""]
[null,null,null,null,null,null,"","","20",null,null,null,{"$f":"VLOOKUP(MID(J451,8,2),'help sheet'!$AB$6:$AC$35,2,0)","v":{"$error":"#N/A"}},null,null,"معفى","رياض اطفال1",""]
[null,null,null,null,null,null,"","","20",null,null,null,{"$f":"VLOOKUP(MID(J452,8,2),'help sheet'!$AB$6:$AC$35,2,0)","v":{"$error":"#N/A"}},null,null,"معفى","رياض اطفال1",""]
[null,null,null,null,null,null,"","","20",null,null,null,{"$f":"VLOOKUP(MID(J453,8,2),'help sheet'!$AB$6:$AC$35,2,0)","v":{"$error":"#N/A"}},null,null,"معفى","رياض اطفال1",""]
[null,null,null,null,null,null,"","","20",null,null,null,{"$f":"VLOOKUP(MID(J454,8,2),'help sheet'!$AB$6:$AC$35,2,0)","v":{"$error":"#N/A"}},null,null,"معفى","رياض اطفال1",""]
[null,null,null,null,null,null,"","","20",null,null,null,{"$f":"VLOOKUP(MID(J455,8,2),'help sheet'!$AB$6:$AC$35,2,0)","v":{"$error":"#N/A"}},null,null,"معفى","رياض اطفال1",""]
[null,null,null,null,null,null,"","","20",null,null,null,{"$f":"VLOOKUP(MID(J456,8,2),'help sheet'!$AB$6:$AC$35,2,0)","v":{"$error":"#N/A"}},null,null,"معفى","رياض اطفال1",""]
[null,null,null,null,null,null,"","","20",null,null,null,{"$f":"VLOOKUP(MID(J457,8,2),'help sheet'!$AB$6:$AC$35,2,0)","v":{"$error":"#N/A"}},null,null,"معفى","رياض اطفال1",""]
[null,null,null,null,null,null,"","","20",null,null,null,{"$f":"VLOOKUP(MID(J458,8,2),'help sheet'!$AB$6:$AC$35,2,0)","v":{"$error":"#N/A"}},null,null,"معفى","رياض اطفال1",""]
[null,null,null,null,null,null,"","","20",null,null,null,{"$f":"VLOOKUP(MID(J459,8,2),'help sheet'!$AB$6:$AC$35,2,0)","v":{"$error":"#N/A"}},null,null,"معفى","رياض اطفال1",""]
[null,null,null,null,null,null,"","","20",null,null,null,{"$f":"VLOOKUP(MID(J460,8,2),'help sheet'!$AB$6:$AC$35,2,0)","v":{"$error":"#N/A"}},null,null,"معفى","رياض اطفال1",""]
[null,null,null,null,null,null,"","","20",null,null,null,{"$f":"VLOOKUP(MID(J461,8,2),'help sheet'!$AB$6:$AC$35,2,0)","v":{"$error":"#N/A"}},null,null,"معفى","رياض اطفال1",""]
[null,null,null,null,null,null,"","","20",null,null,null,{"$f":"VLOOKUP(MID(J462,8,2),'help sheet'!$AB$6:$AC$35,2,0)","v":{"$error":"#N/A"}},null,null,"معفى","رياض اطفال1",""]
[null,null,null,null,null,null,"","","20",null,null,null,{"$f":"VLOOKUP(MID(J463,8,2),'help sheet'!$AB$6:$AC$35,2,0)","v":{"$error":"#N/A"}},null,null,"معفى","رياض اطفال1",""]
[null,null,null,null,null,null,"","","20",null,null,null,{"$f":"VLOOKUP(MID(J464,8,2),'help sheet'!$AB$6:$AC$35,2,0)","v":{"$error":"#N/A"}},null,null,"معفى","رياض اطفال1",""]
[null,null,null,null,null,null,"","","20",null,null,null,{"$f":"VLOOKUP(MID(J465,8,2),'help sheet'!$AB$6:$AC$35,2,0)","v":{"$error":"#N/A"}},null,null,"معفى","رياض اطفال1",""]
[null,null,null,null,null,null,"","","20",null,null,null,{"$f":"VLOOKUP(MID(J466,8,2),'help sheet'!$AB$6:$AC$35,2,0)","v":{"$error":"#N/A"}},null,null,"معفى","رياض اطفال1",""]
[null,null,null,null,null,null,"","","20",null,null,null,{"$f":"VLOOKUP(MID(J467,8,2),'help sheet'!$AB$6:$AC$35,2,0)","v":{"$error":"#N/A"}},null,null,"معفى","رياض اطفال1",""]
[null,null,null,null,null,null,"","","20",null,null,null,{"$f":"VLOOKUP(MID(J468,8,2),'help sheet'!$AB$6:$AC$35,2,0)","v":{"$error":"#N/A"}},null,null,"معفى","رياض اطفال1",""]
[null,null,null,null,null,null,"","","20",null,null,null,{"$f":"VLOOKUP(MID(J469,8,2),'help sheet'!$AB$6:$AC$35,2,0)","v":{"$error":"#N/A"}},null,null,"معفى","رياض اطفال1",""]
[null,null,null,null,null,null,"","","20",null,null,null,{"$f":"VLOOKUP(MID(J470,8,2),'help sheet'!$AB$6:$AC$35,2,0)","v":{"$error":"#N/A"}},null,null,"معفى","رياض اطفال1",""]
[null,null,null,null,null,null,"","","20",null,null,null,{"$f":"VLOOKUP(MID(J471,8,2),'help sheet'!$AB$6:$AC$35,2,0)","v":{"$error":"#N/A"}},null,null,"معفى","رياض اطفال1",""]
[null,null,null,null,null,null,"","","20",null,null,null,{"$f":"VLOOKUP(MID(J472,8,2),'help sheet'!$AB$6:$AC$35,2,0)","v":{"$error":"#N/A"}},null,null,"معفى","رياض اطفال1",""]
[null,null,null,null,null,null,"","","20",null,null,null,{"$f":"VLOOKUP(MID(J473,8,2),'help sheet'!$AB$6:$AC$35,2,0)","v":{"$error":"#N/A"}},null,null,"معفى","رياض اطفال1",""]
[null,null,null,null,null,null,"","","20",null,null,null,{"$f":"VLOOKUP(MID(J474,8,2),'help sheet'!$AB$6:$AC$35,2,0)","v":{"$error":"#N/A"}},null,null,"معفى","رياض اطفال1",""]
[null,null,null,null,null,null,"","","20",null,null,null,{"$f":"VLOOKUP(MID(J475,8,2),'help sheet'!$AB$6:$AC$35,2,0)","v":{"$error":"#N/A"}},null,null,"معفى","رياض اطفال1",""]
[null,null,null,null,null,null,"","","20",null,null,null,{"$f":"VLOOKUP(MID(J476,8,2),'help sheet'!$AB$6:$AC$35,2,0)","v":{"$error":"#N/A"}},null,null,"معفى","رياض اطفال1",""]
[null,null,null,null,null,null,"","","20",null,null,null,{"$f":"VLOOKUP(MID(J477,8,2),'help sheet'!$AB$6:$AC$35,2,0)","v":{"$error":"#N/A"}},null,null,"معفى","رياض اطفال1",""]
[null,null,null,null,null,null,"","","20",null,null,null,{"$f":"VLOOKUP(MID(J478,8,2),'help sheet'!$AB$6:$AC$35,2,0)","v":{"$error":"#N/A"}},null,null,"معفى","رياض اطفال1",""]
[null,null,null,null,null,null,"","","20",null,null,null,{"$f":"VLOOKUP(MID(J479,8,2),'help sheet'!$AB$6:$AC$35,2,0)","v":{"$error":"#N/A"}},null,null,"معفى","رياض اطفال1",""]
[null,null,null,null,null,null,"","","20",null,null,null,{"$f":"VLOOKUP(MID(J480,8,2),'help sheet'!$AB$6:$AC$35,2,0)","v":{"$error":"#N/A"}},null,null,"معفى","رياض اطفال1",""]
[null,null,null,null,null,null,"","","20",null,null,null,{"$f":"VLOOKUP(MID(J481,8,2),'help sheet'!$AB$6:$AC$35,2,0)","v":{"$error":"#N/A"}},null,null,"معفى","رياض اطفال1",""]
[null,null,null,null,null,null,"","","20",null,null,null,{"$f":"VLOOKUP(MID(J482,8,2),'help sheet'!$AB$6:$AC$35,2,0)","v":{"$error":"#N/A"}},null,null,"معفى","رياض اطفال1",""]
[null,null,null,null,null,null,"","","20",null,null,null,{"$f":"VLOOKUP(MID(J483,8,2),'help sheet'!$AB$6:$AC$35,2,0)","v":{"$error":"#N/A"}},null,null,"معفى","رياض اطفال1",""]
[null,null,null,null,null,null,"","","20",null,null,null,{"$f":"VLOOKUP(MID(J484,8,2),'help sheet'!$AB$6:$AC$35,2,0)","v":{"$error":"#N/A"}},null,null,"معفى","رياض اطفال1",""]
[null,null,null,null,null,null,"","","20",null,null,null,{"$f":"VLOOKUP(MID(J485,8,2),'help sheet'!$AB$6:$AC$35,2,0)","v":{"$error":"#N/A"}},null,null,"معفى","رياض اطفال1",""]
[null,null,null,null,null,null,"","","20",null,null,null,{"$f":"VLOOKUP(MID(J486,8,2),'help sheet'!$AB$6:$AC$35,2,0)","v":{"$error":"#N/A"}},null,null,"معفى","رياض اطفال1",""]
[null,null,null,null,null,null,"","","20",null,null,null,{"$f":"VLOOKUP(MID(J487,8,2),'help sheet'!$AB$6:$AC$35,2,0)","v":{"$error":"#N/A"}},null,null,"معفى","رياض اطفال1",""]
[null,null,null,null,null,null,"","","20",null,null,null,{"$f":"VLOOKUP(MID(J488,8,2),'help sheet'!$AB$6:$AC$35,2,0)","v":{"$error":"#N/A"}},null,null,"معفى","رياض اطفال1",""]
[null,null,null,null,null,null,"","","20",null,null,null,{"$f":"VLOOKUP(MID(J489,8,2),'help sheet'!$AB$6:$AC$35,2,0)","v":{"$error":"#N/A"}},null,null,"معفى","رياض اطفال1",""]
[null,null,null,null,null,null,"","","20",null,null,null,{"$f":"VLOOKUP(MID(J490,8,2),'help sheet'!$AB$6:$AC$35,2,0)","v":{"$error":"#N/A"}},null,null,"معفى","رياض اطفال1",""]
[null,null,null,null,null,null,"","","20",null,null,null,{"$f":"VLOOKUP(MID(J491,8,2),'help sheet'!$AB$6:$AC$35,2,0)","v":{"$error":"#N/A"}},null,null,"معفى","رياض اطفال1",""]
[null,null,null,null,null,null,"","","20",null,null,null,{"$f":"VLOOKUP(MID(J492,8,2),'help sheet'!$AB$6:$AC$35,2,0)","v":{"$error":"#N/A"}},null,null,"معفى","رياض اطفال1",""]
[null,null,null,null,null,null,"","","20",null,null,null,{"$f":"VLOOKUP(MID(J493,8,2),'help sheet'!$AB$6:$AC$35,2,0)","v":{"$error":"#N/A"}},null,null,"معفى","رياض اطفال1",""]
[null,null,null,null,null,null,"","","20",null,null,null,{"$f":"VLOOKUP(MID(J494,8,2),'help sheet'!$AB$6:$AC$35,2,0)","v":{"$error":"#N/A"}},null,null,"معفى","رياض اطفال1",""]
[null,null,null,null,null,null,"","","20",null,null,null,{"$f":"VLOOKUP(MID(J495,8,2),'help sheet'!$AB$6:$AC$35,2,0)","v":{"$error":"#N/A"}},null,null,"معفى","رياض اطفال1",""]
[null,null,null,null,null,null,"","","20",null,null,null,{"$f":"VLOOKUP(MID(J496,8,2),'help sheet'!$AB$6:$AC$35,2,0)","v":{"$error":"#N/A"}},null,null,"معفى","رياض اطفال1",""]
[null,null,null,null,null,null,"","","20",null,null,null,{"$f":"VLOOKUP(MID(J497,8,2),'help sheet'!$AB$6:$AC$35,2,0)","v":{"$error":"#N/A"}},null,null,"معفى","رياض اطفال1",""]
[null,null,null,null,null,null,"","","20",null,null,null,{"$f":"VLOOKUP(MID(J498,8,2),'help sheet'!$AB$6:$AC$35,2,0)","v":{"$error":"#N/A"}},null,null,"معفى","رياض اطفال1",""]
[null,null,null,null,null,null,"","","20",null,null,null,{"$f":"VLOOKUP(MID(J499,8,2),'help sheet'!$AB$6:$AC$35,2,0)","v":{"$error":"#N/A"}},null,null,"معفى","رياض اطفال1",""]
[null,null,null,null,null,null,"","","20",null,null,null,{"$f":"VLOOKUP(MID(J500,8,2),'help sheet'!$AB$6:$AC$35,2,0)","v":{"$error":"#N/A"}},null,null,"معفى","رياض اطفال1",""]
[null,null,null,null,null,null,"","","20",null,null,null,{"$f":"VLOOKUP(MID(J501,8,2),'help sheet'!$AB$6:$AC$35,2,0)","v":{"$error":"#N/A"}},null,null,"معفى","رياض اطفال1",""]
[null,null,null,null,null,null,"","","20",null,null,null,{"$f":"VLOOKUP(MID(J502,8,2),'help sheet'!$AB$6:$AC$35,2,0)","v":{"$error":"#N/A"}},null,null,"معفى","رياض اطفال1",""]
[null,null,null,null,null,null,{"$f":"MID(J503,6,2)","v":""},{"$f":"MID(J503,4,2)","v":""},{"$f":"\"20\"&MID(J503,2,2)","v":"20"},null,null,null,{"$f":"VLOOKUP(MID(J503,8,2),'help sheet'!$AB$6:$AC$35,2,0)","v":{"$error":"#N/A"}},null,null,"معفى","رياض اطفال1",{"$f":"MID(J503,8,2)","v":""}]
[null,null,null,null,null,null,"","","20",null,null,null,{"$f":"VLOOKUP(MID(J504,8,2),'help sheet'!$AB$6:$AC$35,2,0)","v":{"$error":"#N/A"}},null,null,"معفى","رياض اطفال1",""]
[null,null,null,null,null,null,"","","20",null,null,null,{"$f":"VLOOKUP(MID(J505,8,2),'help sheet'!$AB$6:$AC$35,2,0)","v":{"$error":"#N/A"}},null,null,"معفى","رياض اطفال1",""]
[null,null,null,null,null,null,"","","20",null,null,null,{"$f":"VLOOKUP(MID(J506,8,2),'help sheet'!$AB$6:$AC$35,2,0)","v":{"$error":"#N/A"}},null,null,"معفى","رياض اطفال1",""]
[null,null,null,null,null,null,"","","20",null,null,null,{"$f":"VLOOKUP(MID(J507,8,2),'help sheet'!$AB$6:$AC$35,2,0)","v":{"$error":"#N/A"}},null,null,"معفى","رياض اطفال1",""]
[null,null,null,null,null,null,"","","20",null,null,null,{"$f":"VLOOKUP(MID(J508,8,2),'help sheet'!$AB$6:$AC$35,2,0)","v":{"$error":"#N/A"}},null,null,"معفى","رياض اطفال1",""]
[null,null,null,null,null,null,"","","20",null,null,null,{"$f":"VLOOKUP(MID(J509,8,2),'help sheet'!$AB$6:$AC$35,2,0)","v":{"$error":"#N/A"}},null,null,"معفى","رياض اطفال1",""]
[null,null,null,null,null,null,"","","20",null,null,null,{"$f":"VLOOKUP(MID(J510,8,2),'help sheet'!$AB$6:$AC$35,2,0)","v":{"$error":"#N/A"}},null,null,"معفى","رياض اطفال1",""]
[null,null,null,null,null,null,"","","20",null,null,null,{"$f":"VLOOKUP(MID(J511,8,2),'help sheet'!$AB$6:$AC$35,2,0)","v":{"$error":"#N/A"}},null,null,"معفى","رياض اطفال1",""]
[null,null,null,null,null,null,"","","20",null,null,null,{"$f":"VLOOKUP(MID(J512,8,2),'help sheet'!$AB$6:$AC$35,2,0)","v":{"$error":"#N/A"}},null,null,"معفى","رياض اطفال1",""]
[null,null,null,null,null,null,"","","20",null,null,null,{"$f":"VLOOKUP(MID(J513,8,2),'help sheet'!$AB$6:$AC$35,2,0)","v":{"$error":"#N/A"}},null,null,"معفى","رياض اطفال1",""]
[null,null,null,null,null,null,"","","20",null,null,null,{"$f":"VLOOKUP(MID(J514,8,2),'help sheet'!$AB$6:$AC$35,2,0)","v":{"$error":"#N/A"}},null,null,"معفى","رياض اطفال1",""]
[null,null,null,null,null,null,"","","20",null,null,null,{"$f":"VLOOKUP(MID(J515,8,2),'help sheet'!$AB$6:$AC$35,2,0)","v":{"$error":"#N/A"}},null,null,"معفى","رياض اطفال1",""]
[null,null,null,null,null,null,"","","20",null,null,null,{"$f":"VLOOKUP(MID(J516,8,2),'help sheet'!$AB$6:$AC$35,2,0)","v":{"$error":"#N/A"}},null,null,"معفى","رياض اطفال1",""]
[null,null,null,null,null,null,"","","20",null,null,null,{"$f":"VLOOKUP(MID(J517,8,2),'help sheet'!$AB$6:$AC$35,2,0)","v":{"$error":"#N/A"}},null,null,"معفى","رياض اطفال1",""]

{"sheet":"help sheet","index":2,"n_rows":517,"n_cols":29,"rows_kept":517,"cut":false,"hidden":false,"merged":[]}
[]
[null,null,null,null,null,"و"]
[null,null,null,null,null,"ب"]
["اسم الطالب",null,"اسم الطالب",null,null,"النوع","اللغة الثانية",null,"اسم الام",null,"اسم الام",null,null,"الصف",null,"جهة الميلاد",null,null,{"$f":"LEFT(CELL(\"filename\",A1),FIND(\"[\",CELL(\"filename\",A1),1)-1)","v":"C:\\Users\\محمدصالح\\Downloads\\"},"م","م","م","النوع","اللغة الثانية","الصف",1,"بنين"]
[null,"الاول","الثانى","الثالث","باقى الاسم",null,null,"تاريخ الميلاد",null,"الاول","الثاتى","الثالث","باقى الاسم","الصف",null,null,"جهة الميلاد","فراغ","بدون فراغ",null,">=1","<=5",null,null,null,null,"بنات"]
["لىلى عبدربالنبى عبدالرحمن  ","لىلى","عبدربالنبى","عبدالرحمن",{"$f":"IFERROR(RIGHT(A6,(LEN(A6)-(LEN(B6&C6&D6)+3))),\"\")","v":" "},"و","معفى",{"$f":"CONCATENATE('Data Sheet'!I6,\"-\",'Data Sheet'!H6,\"-\",'Data Sheet'!G6)","v":"2017-05-15"},"منهالله عبدربالرسول علاءالدين  احمد محمد منصور","منهالله","عبدربالرسول","علاءالدين",{"$f":"IFERROR(RIGHT(I6,(LEN(I6)-(LEN(J6&K6&L6)+3))),\"\")","v":" احمد محمد منصور"},"رياض اطفال1",null,"القاهرة",{"$f":"IF(P6>0,VLOOKUP(P6,$T$6:$U$35,2,0),\"\")","v":1},"عبد ","عبد","القاهرة",1,"رياض اطفال1",{"$f":"LEN(A6)-LEN(X6)","v":4},"لىلىعبدربالنبىعبدالرحمن",{"$f":"LEN(I6)-LEN(Z6)","v":6},"منهاللهعبدربالرسولعلاءالديناحمدمحمدمنصور",null,"01","القاهرة"]
["  ",null,null,null,{"$f":"IFERROR(RIGHT(A7,(LEN(A7)-(LEN(B7&C7&D7)+3))),\"\")","v":""},null,"معفى",{"$f":"CONCATENATE('Data Sheet'!I7,\"-\",'Data Sheet'!H7,\"-\",'Data Sheet'!G7)","v":"2017-05-15"},"  ",null,null,null,{"$f":"IFERROR(RIGHT(I7,(LEN(I7)-(LEN(J7&K7&L7)+3))),\"\")","v":""},"رياض اطفال1",null,"الإسكندرية",{"$f":"IF(P7>0,VLOOKUP(P7,$T$6:$U$35,2,0),\"\")","v":2},"ابو ","ابو","الإسكندرية",2,"رياض اطفال2",{"$f":"LEN(A7)-LEN(X7)","v":2},null,2,null,null,"02","الإسكندرية"]
[null,"لىلى","عبدربالنبى","عبدالرحمن","",null,"معفى",{"$f":"CONCATENATE('Data Sheet'!I8,\"-\",'Data Sheet'!H8,\"-\",'Data Sheet'!G8)","v":"2017-05-15"},null,"لىلى","عبدربالنبى","عبدالرحمن","","رياض اطفال1",null,"بورسعيد",3," الدين","الدين","بورسعيد",3,"الأول الابتدائي",-23,"لىلىعبدربالنبىعبدالرحمن",-23,"لىلىعبدربالنبىعبدالرحمن",null,"03","بورسعيد"]
[null,"منهالله","عبدربالرسول","علاءالدين","",null,"معفى",{"$f":"CONCATENATE('Data Sheet'!I9,\"-\",'Data Sheet'!H9,\"-\",'Data Sheet'!G9)","v":"2017-05-15"},null,"منهالله","عبدربالرسول","علاءالدين","","رياض اطفال1",null,"السويس",4," الله","الله","السويس",4,"الثاني الابتدائي",-40,"منهاللهعبدربالرسولعلاءالديناحمدمحمدمنصور",-40,"منهاللهعبدربالرسولعلاءالديناحمدمحمدمنصور",null,"04","السويس"]
[null,null,null,null,"",null,"معفى",{"$f":"CONCATENATE('Data Sheet'!I10,\"-\",'Data Sheet'!H10,\"-\",'Data Sheet'!G10)","v":"2017-05-15"},null,null,null,null,"","رياض اطفال1",null,"دمياط",7,"لى لى","لىلى","حلوان",5,"الثالث الأبتدائي",0,null,0,null,null,"05","حلوان"]
[null,null,null,null,"",null,"معفى",{"$f":"CONCATENATE('Data Sheet'!I11,\"-\",'Data Sheet'!H11,\"-\",'Data Sheet'!G11)","v":"2017-05-15"},null,null,null,null,"","رياض اطفال1",null,"الدقهلية",8,"عبده","عبد ه","السادس من اكتوبر",6,"الرابع الأبتدائي",0,null,0,null,null,"06","السادس من اكتوبر"]
[null,null,null,null,"",null,"معفى",{"$f":"CONCATENATE('Data Sheet'!I12,\"-\",'Data Sheet'!H12,\"-\",'Data Sheet'!G12)","v":"2017-05-15"},null,null,null,null,"","رياض اطفال1",null,"الشرقية",9,"عبد الله","عبد  الله","دمياط",7,"الخامس الأبتدائي",0,null,0,null,null,"11","دمياط"]
[null,null,null,null,"",null,"معفى",{"$f":"CONCATENATE('Data Sheet'!I13,\"-\",'Data Sheet'!H13,\"-\",'Data Sheet'!G13)","v":"2017-05-15"},null,null,null,null,"","رياض اطفال1",null,"القليوبية",10,"عبدين","عبد ين","الدقهلية",8,"السادس الأبتدائي",0,null,0,null,null,"12","الدقهلية"]
[null,null,null,null,"",null,"معفى",{"$f":"CONCATENATE('Data Sheet'!I14,\"-\",'Data Sheet'!H14,\"-\",'Data Sheet'!G14)","v":"2017-05-15"},null,null,null,null,"","رياض اطفال1",null,"كفر الشيخ",11,"عبدون","عبد ون","الشرقية",9,"الأول الاعداي",0,null,0,null,null,"13","الشرقية"]
[null,null,null,null,"",null,"معفى",{"$f":"CONCATENATE('Data Sheet'!I15,\"-\",'Data Sheet'!H15,\"-\",'Data Sheet'!G15)","v":"2017-05-15"},null,null,null,null,"","رياض اطفال1",null,"الغربية",12," الهدى","الهدى","القليوبية",10,"الثاني الأعدادي",0,null,0,null,null,"14","القليوبية"]
[null,null,null,null,"",null,"معفى",{"$f":"CONCATENATE('Data Sheet'!I16,\"-\",'Data Sheet'!H16,\"-\",'Data Sheet'!G16)","v":"2017-05-15"},null,null,null,null,"","رياض اطفال1",null,"المنوفية",13,"ممدوح النبى","ممدوحالنبى","كفر الشيخ",11,"الثالث الأعدادي",0,null,0,null,null,"15","كفر الشيخ"]
[null,null,null,null,"",null,"معفى",{"$f":"CONCATENATE('Data Sheet'!I17,\"-\",'Data Sheet'!H17,\"-\",'Data Sheet'!G17)","v":"2017-05-15"},null,null,null,null,"","رياض اطفال1",null,"البحيرة",14,"رب الرسول","ربالرسول","الغربية",12,"الأول الثانوي",0,null,0,null,null,"16","الغربية"]
[null,null,null,null,"",null,"معفى",{"$f":"CONCATENATE('Data Sheet'!I18,\"-\",'Data Sheet'!H18,\"-\",'Data Sheet'!G18)","v":"2017-05-15"},null,null,null,null,"","رياض اطفال1",null,"الإسماعيلية",15,"رب النبى","ربالنبى","المنوفية",13,null,0,null,0,null,null,"17","المنوفية"]
[null,null,null,null,"",null,"معفى",{"$f":"CONCATENATE('Data Sheet'!I19,\"-\",'Data Sheet'!H19,\"-\",'Data Sheet'!G19)","v":"2017-05-15"},null,null,null,null,"","رياض اطفال1",null,"الجيزة",16,"عطا الله","عطا  الله","البحيرة",14,null,0,null,0,null,null,"18","البحيرة"]
[null,null,null,null,"",null,"معفى",{"$f":"CONCATENATE('Data Sheet'!I20,\"-\",'Data Sheet'!H20,\"-\",'Data Sheet'!G20)","v":"2017-05-15"},null,null,null,null,"","رياض اطفال1",null,"بني سويف",17,"حسب الله","حسب  الله","الإسماعيلية",15,null,0,null,0,null,null,"19","الإسماعيلية"]
[null,null,null,null,"",null,"معفى",{"$f":"CONCATENATE('Data Sheet'!I21,\"-\",'Data Sheet'!H21,\"-\",'Data Sheet'!G21)","v":"2017-05-15"},null,null,null,null,"","رياض اطفال1",null,"الفيوم",18,"ب الله","بالله","الجيزة",16,null,0,null,0,null,null,"21","الجيزة"]
[null,null,null,null,"",null,"معفى",{"$f":"CONCATENATE('Data Sheet'!I22,\"-\",'Data Sheet'!H22,\"-\",'Data Sheet'!G22)","v":"2017-05-15"},null,null,null,null,"","رياض اطفال1",null,"المنيا",19,"فاطمه الزهراء","فاطمهالزهراء","بني سويف",17,null,0,null,0,null,null,"22","بني سويف"]
[null,null,null,null,"",null,"معفى",{"$f":"CONCATENATE('Data Sheet'!I23,\"-\",'Data Sheet'!H23,\"-\",'Data Sheet'!G23)","v":"2017-05-15"},null,null,null,null,"","رياض اطفال1",null,"أسيوط",20,null,null,"الفيوم",18,null,0,null,0,null,null,"23","الفيوم"]
[null,null,null,null,"",null,"معفى",{"$f":"CONCATENATE('Data Sheet'!I24,\"-\",'Data Sheet'!H24,\"-\",'Data Sheet'!G24)","v":"2017-05-15"},null,null,null,null,"","رياض اطفال1",null,"سوهاج",21,null,null,"المنيا",19,null,0,null,0,null,null,"24","المنيا"]
[null,null,null,null,"",null,"معفى",{"$f":"CONCATENATE('Data Sheet'!I25,\"-\",'Data Sheet'!H25,\"-\",'Data Sheet'!G25)","v":"2017-05-15"},null,null,null,null,"","رياض اطفال1",null,"قنا",22,null,null,"أسيوط",20,null,0,null,0,null,null,"25","أسيوط"]
[null,null,null,null,"",null,"معفى",{"$f":"CONCATENATE('Data Sheet'!I26,\"-\",'Data Sheet'!H26,\"-\",'Data Sheet'!G26)","v":"2017-05-15"},null,null,null,null,"","رياض اطفال1",null,"أسوان",23," أ ","A","سوهاج",21,null,0,null,0,null,null,"26","سوهاج"]
[null,null,null,null,"",null,"معفى",{"$f":"CONCATENATE('Data Sheet'!I27,\"-\",'Data Sheet'!H27,\"-\",'Data Sheet'!G27)","v":"2017-05-15"},null,null,null,null,"","رياض اطفال1",null,"الأقصر",24," أ ","a","قنا",22,null,0,null,0,null,null,"27","قنا"]
[null,null,null,null,"",null,"معفى",{"$f":"CONCATENATE('Data Sheet'!I28,\"-\",'Data Sheet'!H28,\"-\",'Data Sheet'!G28)","v":"2017-05-15"},null,null,null,null,"","رياض اطفال1",null,{"$error":"#N/A"},{"$error":"#N/A"}," بى ","B","أسوان",23,null,0,null,0,null,null,"28","أسوان"]
[null,null,null,null,"",null,"معفى",{"$f":"CONCATENATE('Data Sheet'!I29,\"-\",'Data Sheet'!H29,\"-\",'Data Sheet'!G29)","v":"2017-05-15"},null,null,null,null,"","رياض اطفال1",null,"البحر الأحمر",25," بى ","b","الأقصر",24,null,0,null,0,null,null,"29","الأقصر"]
[null,null,null,null,"",null,"معفى",{"$f":"CONCATENATE('Data Sheet'!I30,\"-\",'Data Sheet'!H30,\"-\",'Data Sheet'!G30)","v":"2017-05-15"},null,null,null,null,"","رياض اطفال1",null,"الوادي الجديد",26," سي ","C","البحر الأحمر",25,null,0,null,0,null,null,"31","البحر الأحمر"]
[null,null,null,null,"",null,"معفى",{"$f":"CONCATENATE('Data Sheet'!I31,\"-\",'Data Sheet'!H31,\"-\",'Data Sheet'!G31)","v":"2017-05-15"},null,null,null,null,"","رياض اطفال1",null,"مطروح",27," سي ","c","الوادي الجديد",26,null,0,null,0,null,null,"32","الوادي الجديد"]
[null,null,null,null,"",null,"معفى",{"$f":"CONCATENATE('Data Sheet'!I32,\"-\",'Data Sheet'!H32,\"-\",'Data Sheet'!G32)","v":"2017-05-15"},null,null,null,null,"","رياض اطفال1",null,"شمال سيناء",28,"دى ","D","مطروح",27,null,0,null,0,null,null,"33","مطروح"]
[null,null,null,null,"",null,"معفى",{"$f":"CONCATENATE('Data Sheet'!I33,\"-\",'Data Sheet'!H33,\"-\",'Data Sheet'!G33)","v":"2017-05-15"},null,null,null,null,"","رياض اطفال1",null,"جنوب سيناء",29,"دى ","d","شمال سيناء",28,null,0,null,0,null,null,"34","شمال سيناء"]
[null,null,null,null,"",null,"معفى",{"$f":"CONCATENATE('Data Sheet'!I34,\"-\",'Data Sheet'!H34,\"-\",'Data Sheet'!G34)","v":"2017-05-15"},null,null,null,null,"","رياض اطفال1",null,"المركز الرئيسى",30,"ايه ","e","جنوب سيناء",29,null,0,null,0,null,null,"35","جنوب سيناء"]
[null,null,null,null,"",null,"معفى",{"$f":"CONCATENATE('Data Sheet'!I35,\"-\",'Data Sheet'!H35,\"-\",'Data Sheet'!G35)","v":"2017-05-15"},null,null,null,null,"","رياض اطفال1",null,"حلوان",5,"ايه ","E","المركز الرئيسى",30,null,0,null,0,null,null,"88","المركز الرئيسى"]
[null,null,null,null,"",null,"معفى",{"$f":"CONCATENATE('Data Sheet'!I36,\"-\",'Data Sheet'!H36,\"-\",'Data Sheet'!G36)","v":"2017-05-15"},null,null,null,null,"","رياض اطفال1",null,"السادس من اكتوبر",6,"ف ","f",null,null,null,0,null,0]
[null,null,null,null,"",null,"معفى",{"$f":"CONCATENATE('Data Sheet'!I37,\"-\",'Data Sheet'!H37,\"-\",'Data Sheet'!G37)","v":"20--"},null,null,null,null,"","رياض اطفال1",null,{"$error":"#N/A"},{"$error":"#N/A"},"ف ","F",null,null,null,0,null,0]
[null,null,null,null,"",null,"معفى",{"$f":"CONCATENATE('Data Sheet'!I38,\"-\",'Data Sheet'!H38,\"-\",'Data Sheet'!G38)","v":"20--"},null,null,null,null,"","رياض اطفال1",null,{"$error":"#N/A"},{"$error":"#N/A"},"ج ","G",null,null,null,0,null,0]
[null,null,null,null,"",null,"معفى",{"$f":"CONCATENATE('Data Sheet'!I39,\"-\",'Data Sheet'!H39,\"-\",'Data Sheet'!G39)","v":"20--"},null,null,null,null,"","رياض اطفال1",null,{"$error":"#N/A"},{"$error":"#N/A"},"ج ","g",null,null,null,{"$f":"LEN(A39)-LEN(X39)","v":0},null,0]
[null,null,null,null,"",null,"معفى",{"$f":"CONCATENATE('Data Sheet'!I40,\"-\",'Data Sheet'!H40,\"-\",'Data Sheet'!G40)","v":"20--"},null,null,null,null,"","رياض اطفال1",null,{"$error":"#N/A"},{"$error":"#N/A"}," حرف اليو ","U",null,null,null,0,null,0]
[null,null,null,null,"",null,"معفى",{"$f":"CONCATENATE('Data Sheet'!I41,\"-\",'Data Sheet'!H41,\"-\",'Data Sheet'!G41)","v":"20--"},null,null,null,null,"","رياض اطفال1",null,{"$error":"#N/A"},{"$error":"#N/A"}," ","u",null,null,null,0,null,0]
[null,null,null,null,"",null,"معفى",{"$f":"CONCATENATE('Data Sheet'!I42,\"-\",'Data Sheet'!H42,\"-\",'Data Sheet'!G42)","v":"20--"},null,null,null,null,"","رياض اطفال1",null,{"$error":"#N/A"},{"$error":"#N/A"}," ",".",null,null,null,0,null,0]
[null,null,null,null,"",null,"معفى",{"$f":"CONCATENATE('Data Sheet'!I43,\"-\",'Data Sheet'!H43,\"-\",'Data Sheet'!G43)","v":"20--"},null,null,null,null,"","رياض اطفال1",null,{"$error":"#N/A"},{"$error":"#N/A"}," ",")",null,null,null,0,null,0]
[null,null,null,null,"",null,"معفى",{"$f":"CONCATENATE('Data Sheet'!I44,\"-\",'Data Sheet'!H44,\"-\",'Data Sheet'!G44)","v":"20--"},null,null,null,null,"","رياض اطفال1",null,{"$error":"#N/A"},{"$error":"#N/A"}," ","(",null,null,null,0,null,0]
[null,null,null,null,"",null,"معفى",{"$f":"CONCATENATE('Data Sheet'!I45,\"-\",'Data Sheet'!H45,\"-\",'Data Sheet'!G45)","v":"20--"},null,null,null,null,"","رياض اطفال1",null,{"$error":"#N/A"},{"$error":"#N/A"},null,null,null,null,null,0,null,0]
[null,null,null,null,"",null,"معفى",{"$f":"CONCATENATE('Data Sheet'!I46,\"-\",'Data Sheet'!H46,\"-\",'Data Sheet'!G46)","v":"20--"},null,null,null,null,"","رياض اطفال1",null,{"$error":"#N/A"},{"$error":"#N/A"},null,null,null,null,null,0,null,0]
[null,null,null,null,"",null,"معفى",{"$f":"CONCATENATE('Data Sheet'!I47,\"-\",'Data Sheet'!H47,\"-\",'Data Sheet'!G47)","v":"20--"},null,null,null,null,"","رياض اطفال1",null,{"$error":"#N/A"},{"$error":"#N/A"},null,null,null,null,null,0,null,0]
[null,null,null,null,"",null,"معفى",{"$f":"CONCATENATE('Data Sheet'!I48,\"-\",'Data Sheet'!H48,\"-\",'Data Sheet'!G48)","v":"20--"},null,null,null,null,"","رياض اطفال1",null,{"$error":"#N/A"},{"$error":"#N/A"},null,null,null,null,null,0,null,0]
[null,null,null,null,"",null,"معفى",{"$f":"CONCATENATE('Data Sheet'!I49,\"-\",'Data Sheet'!H49,\"-\",'Data Sheet'!G49)","v":"20--"},null,null,null,null,"","رياض اطفال1",null,{"$error":"#N/A"},{"$error":"#N/A"},null,null,null,null,null,0,null,0]
[null,null,null,null,"",null,"معفى",{"$f":"CONCATENATE('Data Sheet'!I50,\"-\",'Data Sheet'!H50,\"-\",'Data Sheet'!G50)","v":"20--"},null,null,null,null,"","رياض اطفال1",null,{"$error":"#N/A"},{"$error":"#N/A"},null,null,null,null,null,0,null,0]
[null,null,null,null,"",null,"معفى",{"$f":"CONCATENATE('Data Sheet'!I51,\"-\",'Data Sheet'!H51,\"-\",'Data Sheet'!G51)","v":"20--"},null,null,null,null,"","رياض اطفال1",null,{"$error":"#N/A"},{"$error":"#N/A"},"رياض اطفال2",2,null,null,null,0,null,0]
[null,null,null,null,"",null,"معفى",{"$f":"CONCATENATE('Data Sheet'!I52,\"-\",'Data Sheet'!H52,\"-\",'Data Sheet'!G52)","v":"20--"},null,null,null,null,"","رياض اطفال1",null,{"$error":"#N/A"},{"$error":"#N/A"},"الأول الابتدائي",1,null,null,null,0,null,0]
[null,null,null,null,"",null,"معفى",{"$f":"CONCATENATE('Data Sheet'!I53,\"-\",'Data Sheet'!H53,\"-\",'Data Sheet'!G53)","v":"20--"},null,null,null,null,"","رياض اطفال1",null,{"$error":"#N/A"},{"$error":"#N/A"},"الثاني الابتدائي",2,null,null,null,0,null,0]
[null,null,null,null,"",null,"معفى",{"$f":"CONCATENATE('Data Sheet'!I54,\"-\",'Data Sheet'!H54,\"-\",'Data Sheet'!G54)","v":"20--"},null,null,null,null,"","رياض اطفال1",null,{"$error":"#N/A"},{"$error":"#N/A"},"الثالث الأبتدائي",3,null,null,null,0,null,0]
[null,null,null,null,"",null,"معفى",{"$f":"CONCATENATE('Data Sheet'!I55,\"-\",'Data Sheet'!H55,\"-\",'Data Sheet'!G55)","v":"20--"},null,null,null,null,"","رياض اطفال1",null,{"$error":"#N/A"},{"$error":"#N/A"},"الرابع الأبتدائي",4,null,null,null,0,null,0]
[null,null,null,null,"",null,"معفى",{"$f":"CONCATENATE('Data Sheet'!I56,\"-\",'Data Sheet'!H56,\"-\",'Data Sheet'!G56)","v":"20--"},null,null,null,null,"","رياض اطفال1",null,{"$error":"#N/A"},{"$error":"#N/A"},"الخامس الأبتدائي",5,null,null,null,0,null,0]
[null,null,null,null,"",null,"معفى",{"$f":"CONCATENATE('Data Sheet'!I57,\"-\",'Data Sheet'!H57,\"-\",'Data Sheet'!G57)","v":"20--"},null,null,null,null,"","رياض اطفال1",null,{"$error":"#N/A"},{"$error":"#N/A"},"السادس الأبتدائي",6,null,null,null,0,null,0]
[null,null,null,null,"",null,"معفى",{"$f":"CONCATENATE('Data Sheet'!I58,\"-\",'Data Sheet'!H58,\"-\",'Data Sheet'!G58)","v":"20--"},null,null,null,null,"","رياض اطفال1",null,{"$error":"#N/A"},{"$error":"#N/A"},"الأول الاعداي",1,null,null,null,0,null,0]
[null,null,null,null,"",null,"معفى",{"$f":"CONCATENATE('Data Sheet'!I59,\"-\",'Data Sheet'!H59,\"-\",'Data Sheet'!G59)","v":"20--"},null,null,null,null,"","رياض اطفال1",null,{"$error":"#N/A"},{"$error":"#N/A"},"الثاني الأعدادي",2,null,null,null,0,null,0]
[null,null,null,null,"",null,"معفى",{"$f":"CONCATENATE('Data Sheet'!I60,\"-\",'Data Sheet'!H60,\"-\",'Data Sheet'!G60)","v":"20--"},null,null,null,null,"","رياض اطفال1",null,{"$error":"#N/A"},{"$error":"#N/A"},"الثالث الأعدادي",3,null,null,null,0,null,0]
[null,null,null,null,"",null,"معفى",{"$f":"CONCATENATE('Data Sheet'!I61,\"-\",'Data Sheet'!H61,\"-\",'Data Sheet'!G61)","v":"20--"},null,null,null,null,"","رياض اطفال1",null,{"$error":"#N/A"},{"$error":"#N/A"},"الأول الثانوي",1,null,null,null,0,null,0]
[null,null,null,null,"",null,"معفى",{"$f":"CONCATENATE('Data Sheet'!I62,\"-\",'Data Sheet'!H62,\"-\",'Data Sheet'!G62)","v":"20--"},null,null,null,null,"","رياض اطفال1",null,{"$error":"#N/A"},{"$error":"#N/A"},"و",1,null,null,null,0,null,0]
[null,null,null,null,"",null,"معفى",{"$f":"CONCATENATE('Data Sheet'!I63,\"-\",'Data Sheet'!H63,\"-\",'Data Sheet'!G63)","v":"20--"},null,null,null,null,"","رياض اطفال1",null,{"$error":"#N/A"},{"$error":"#N/A"},"ب",2,null,null,null,0,null,0]
[null,null,null,null,"",null,"معفى",{"$f":"CONCATENATE('Data Sheet'!I64,\"-\",'Data Sheet'!H64,\"-\",'Data Sheet'!G64)","v":"20--"},null,null,null,null,"","رياض اطفال1",null,{"$error":"#N/A"},{"$error":"#N/A"},"f",1,null,null,null,0,null,0]
[null,null,null,null,"",null,"معفى",{"$f":"CONCATENATE('Data Sheet'!I65,\"-\",'Data Sheet'!H65,\"-\",'Data Sheet'!G65)","v":"20--"},null,null,null,null,"","رياض اطفال1",null,{"$error":"#N/A"},{"$error":"#N/A"},"g",2,null,null,null,0,null,0]
[null,null,null,null,"",null,"معفى",{"$f":"CONCATENATE('Data Sheet'!I66,\"-\",'Data Sheet'!H66,\"-\",'Data Sheet'!G66)","v":"20--"},null,null,null,null,"","رياض اطفال1",null,{"$error":"#N/A"},{"$error":"#N/A"},"رياض اطفال1",1,null,null,null,0,null,0]
[null,null,null,null,"",null,"معفى",{"$f":"CONCATENATE('Data Sheet'!I67,\"-\",'Data Sheet'!H67,\"-\",'Data Sheet'!G67)","v":"20--"},null,null,null,null,"","رياض اطفال1",null,{"$error":"#N/A"},{"$error":"#N/A"},"معفى",6,null,null,null,0,null,0]
[null,null,null,null,"",null,"معفى",{"$f":"CONCATENATE('Data Sheet'!I68,\"-\",'Data Sheet'!H68,\"-\",'Data Sheet'!G68)","v":"20--"},null,null,null,null,"","رياض اطفال1",null,{"$error":"#N/A"},{"$error":"#N/A"},null,null,null,null,null,0,null,0]
[null,null,null,null,"",null,"معفى",{"$f":"CONCATENATE('Data Sheet'!I69,\"-\",'Data Sheet'!H69,\"-\",'Data Sheet'!G69)","v":"20--"},null,null,null,null,"","رياض اطفال1",null,{"$error":"#N/A"},{"$error":"#N/A"},null,null,null,null,null,0,null,0]
[null,null,null,null,"",null,"معفى",{"$f":"CONCATENATE('Data Sheet'!I70,\"-\",'Data Sheet'!H70,\"-\",'Data Sheet'!G70)","v":"20--"},null,null,null,null,"","رياض اطفال1",null,{"$error":"#N/A"},{"$error":"#N/A"},null,null,null,null,null,0,null,{"$f":"LEN(I70)-LEN(Z70)","v":0}]
[null,null,null,null,{"$f":"IFERROR(RIGHT(A71,(LEN(A71)-(LEN(B71&C71&D71)+3))),\"\")","v":""},null,"معفى",{"$f":"CONCATENATE('Data Sheet'!I71,\"-\",'Data Sheet'!H71,\"-\",'Data Sheet'!G71)","v":"20--"},null,null,null,null,{"$f":"IFERROR(RIGHT(I71,(LEN(I71)-(LEN(J71&K71&L71)+3))),\"\")","v":""},"رياض اطفال1",null,{"$error":"#N/A"},{"$f":"IF(P71>0,VLOOKUP(P71,$T$6:$U$35,2,0),\"\")","v":{"$error":"#N/A"}},null,null,null,null,null,{"$f":"LEN(A71)-LEN(X71)","v":0},null,0]
[null,null,null,null,"",null,"معفى",{"$f":"CONCATENATE('Data Sheet'!I72,\"-\",'Data Sheet'!H72,\"-\",'Data Sheet'!G72)","v":"20--"},null,null,null,null,"","رياض اطفال1",null,{"$error":"#N/A"},{"$error":"#N/A"},null,null,null,null,null,0,null,0]
[null,null,null,null,"",null,"معفى",{"$f":"CONCATENATE('Data Sheet'!I73,\"-\",'Data Sheet'!H73,\"-\",'Data Sheet'!G73)","v":"20--"},null,null,null,null,"","رياض اطفال1",null,{"$error":"#N/A"},{"$error":"#N/A"},null,null,null,null,null,0,null,0]
[null,null,null,null,"",null,"معفى",{"$f":"CONCATENATE('Data Sheet'!I74,\"-\",'Data Sheet'!H74,\"-\",'Data Sheet'!G74)","v":"20--"},null,null,null,null,"","رياض اطفال1",null,{"$error":"#N/A"},{"$error":"#N/A"},null,null,null,null,null,0,null,0]
[null,null,null,null,"",null,"معفى",{"$f":"CONCATENATE('Data Sheet'!I75,\"-\",'Data Sheet'!H75,\"-\",'Data Sheet'!G75)","v":"20--"},null,null,null,null,"","رياض اطفال1",null,{"$error":"#N/A"},{"$error":"#N/A"},null,null,null,null,null,0,null,0]
[null,null,null,null,"",null,"معفى",{"$f":"CONCATENATE('Data Sheet'!I76,\"-\",'Data Sheet'!H76,\"-\",'Data Sheet'!G76)","v":"20--"},null,null,null,null,"","رياض اطفال1",null,{"$error":"#N/A"},{"$error":"#N/A"},null,null,null,null,null,0,null,0]
[null,null,null,null,"",null,"معفى",{"$f":"CONCATENATE('Data Sheet'!I77,\"-\",'Data Sheet'!H77,\"-\",'Data Sheet'!G77)","v":"20--"},null,null,null,null,"","رياض اطفال1",null,{"$error":"#N/A"},{"$error":"#N/A"},null,null,null,null,null,0,null,0]
[null,null,null,null,"",null,"معفى",{"$f":"CONCATENATE('Data Sheet'!I78,\"-\",'Data Sheet'!H78,\"-\",'Data Sheet'!G78)","v":"20--"},null,null,null,null,"","رياض اطفال1",null,{"$error":"#N/A"},{"$error":"#N/A"},null,null,null,null,null,0,null,0]
[null,null,null,null,"",null,"معفى",{"$f":"CONCATENATE('Data Sheet'!I79,\"-\",'Data Sheet'!H79,\"-\",'Data Sheet'!G79)","v":"20--"},null,null,null,null,"","رياض اطفال1",null,{"$error":"#N/A"},{"$error":"#N/A"},null,null,null,null,null,0,null,0]
[null,null,null,null,"",null,"معفى",{"$f":"CONCATENATE('Data Sheet'!I80,\"-\",'Data Sheet'!H80,\"-\",'Data Sheet'!G80)","v":"20--"},null,null,null,null,"","رياض اطفال1",null,{"$error":"#N/A"},{"$error":"#N/A"},null,null,null,null,null,0,null,0]
[null,null,null,null,"",null,"معفى",{"$f":"CONCATENATE('Data Sheet'!I81,\"-\",'Data Sheet'!H81,\"-\",'Data Sheet'!G81)","v":"20--"},null,null,null,null,"","رياض اطفال1",null,{"$error":"#N/A"},{"$error":"#N/A"},null,null,null,null,null,0,null,0]
[null,null,null,null,"",null,"معفى",{"$f":"CONCATENATE('Data Sheet'!I82,\"-\",'Data Sheet'!H82,\"-\",'Data Sheet'!G82)","v":"20--"},null,null,null,null,"","رياض اطفال1",null,{"$error":"#N/A"},{"$error":"#N/A"},null,null,null,null,null,0,null,0]
[null,null,null,null,"",null,"معفى",{"$f":"CONCATENATE('Data Sheet'!I83,\"-\",'Data Sheet'!H83,\"-\",'Data Sheet'!G83)","v":"20--"},null,null,null,null,"","رياض اطفال1",null,{"$error":"#N/A"},{"$error":"#N/A"},null,null,null,null,null,0,null,0]
[null,null,null,null,"",null,"معفى",{"$f":"CONCATENATE('Data Sheet'!I84,\"-\",'Data Sheet'!H84,\"-\",'Data Sheet'!G84)","v":"20--"},null,null,null,null,"","رياض اطفال1",null,{"$error":"#N/A"},{"$error":"#N/A"},null,null,null,null,null,0,null,0]
[null,null,null,null,"",null,"معفى",{"$f":"CONCATENATE('Data Sheet'!I85,\"-\",'Data Sheet'!H85,\"-\",'Data Sheet'!G85)","v":"20--"},null,null,null,null,"","رياض اطفال1",null,{"$error":"#N/A"},{"$error":"#N/A"},null,null,null,null,null,0,null,0]
[null,null,null,null,"",null,"معفى",{"$f":"CONCATENATE('Data Sheet'!I86,\"-\",'Data Sheet'!H86,\"-\",'Data Sheet'!G86)","v":"20--"},null,null,null,null,"","رياض اطفال1",null,{"$error":"#N/A"},{"$error":"#N/A"},null,null,null,null,null,0,null,0]
[null,null,null,null,"",null,"معفى",{"$f":"CONCATENATE('Data Sheet'!I87,\"-\",'Data Sheet'!H87,\"-\",'Data Sheet'!G87)","v":"20--"},null,null,null,null,"","رياض اطفال1",null,{"$error":"#N/A"},{"$error":"#N/A"},null,null,null,null,null,0,null,0]
[null,null,null,null,"",null,"معفى",{"$f":"CONCATENATE('Data Sheet'!I88,\"-\",'Data Sheet'!H88,\"-\",'Data Sheet'!G88)","v":"20--"},null,null,null,null,"","رياض اطفال1",null,{"$error":"#N/A"},{"$error":"#N/A"},null,null,null,null,null,0,null,0]
[null,null,null,null,"",null,"معفى",{"$f":"CONCATENATE('Data Sheet'!I89,\"-\",'Data Sheet'!H89,\"-\",'Data Sheet'!G89)","v":"20--"},null,null,null,null,"","رياض اطفال1",null,{"$error":"#N/A"},{"$error":"#N/A"},null,null,null,null,null,0,null,0]
[null,null,null,null,"",null,"معفى",{"$f":"CONCATENATE('Data Sheet'!I90,\"-\",'Data Sheet'!H90,\"-\",'Data Sheet'!G90)","v":"20--"},null,null,null,null,"","رياض اطفال1",null,{"$error":"#N/A"},{"$error":"#N/A"},null,null,null,null,null,0,null,0]
[null,null,null,null,"",null,"معفى",{"$f":"CONCATENATE('Data Sheet'!I91,\"-\",'Data Sheet'!H91,\"-\",'Data Sheet'!G91)","v":"20--"},null,null,null,null,"","رياض اطفال1",null,{"$error":"#N/A"},{"$error":"#N/A"},null,null,null,null,null,0,null,0]
[null,null,null,null,"",null,"معفى",{"$f":"CONCATENATE('Data Sheet'!I92,\"-\",'Data Sheet'!H92,\"-\",'Data Sheet'!G92)","v":"20--"},null,null,null,null,"","رياض اطفال1",null,{"$error":"#N/A"},{"$error":"#N/A"},null,null,null,null,null,0,null,0]
[null,null,null,null,"",null,"معفى",{"$f":"CONCATENATE('Data Sheet'!I93,\"-\",'Data Sheet'!H93,\"-\",'Data Sheet'!G93)","v":"20--"},null,null,null,null,"","رياض اطفال1",null,{"$error":"#N/A"},{"$error":"#N/A"},null,null,null,null,null,0,null,0]
[null,null,null,null,"",null,"معفى",{"$f":"CONCATENATE('Data Sheet'!I94,\"-\",'Data Sheet'!H94,\"-\",'Data Sheet'!G94)","v":"20--"},null,null,null,null,"","رياض اطفال1",null,{"$error":"#N/A"},{"$error":"#N/A"},null,null,null,null,null,0,null,0]
[null,null,null,null,"",null,"معفى",{"$f":"CONCATENATE('Data Sheet'!I95,\"-\",'Data Sheet'!H95,\"-\",'Data Sheet'!G95)","v":"20--"},null,null,null,null,"","رياض اطفال1",null,{"$error":"#N/A"},{"$error":"#N/A"},null,null,null,null,null,0,null,0]
[null,null,null,null,"",null,"معفى",{"$f":"CONCATENATE('Data Sheet'!I96,\"-\",'Data Sheet'!H96,\"-\",'Data Sheet'!G96)","v":"20--"},null,null,null,null,"","رياض اطفال1",null,{"$error":"#N/A"},{"$error":"#N/A"},null,null,null,null,null,0,null,0]
[null,null,null,null,"",null,"معفى",{"$f":"CONCATENATE('Data Sheet'!I97,\"-\",'Data Sheet'!H97,\"-\",'Data Sheet'!G97)","v":"20--"},null,null,null,null,"","رياض اطفال1",null,{"$error":"#N/A"},{"$error":"#N/A"},null,null,null,null,null,0,null,0]
[null,null,null,null,"",null,"معفى",{"$f":"CONCATENATE('Data Sheet'!I98,\"-\",'Data Sheet'!H98,\"-\",'Data Sheet'!G98)","v":"20--"},null,null,null,null,"","رياض اطفال1",null,{"$error":"#N/A"},{"$error":"#N/A"},null,null,null,null,null,0,null,0]
[null,null,null,null,"",null,"معفى",{"$f":"CONCATENATE('Data Sheet'!I99,\"-\",'Data Sheet'!H99,\"-\",'Data Sheet'!G99)","v":"20--"},null,null,null,null,"","رياض اطفال1",null,{"$error":"#N/A"},{"$error":"#N/A"},null,null,null,null,null,0,null,0]
[null,null,null,null,"",null,"معفى",{"$f":"CONCATENATE('Data Sheet'!I100,\"-\",'Data Sheet'!H100,\"-\",'Data Sheet'!G100)","v":"20--"},null,null,null,null,"","رياض اطفال1",null,{"$error":"#N/A"},{"$error":"#N/A"},null,null,null,null,null,0,null,0]
[null,null,null,null,"",null,"معفى",{"$f":"CONCATENATE('Data Sheet'!I101,\"-\",'Data Sheet'!H101,\"-\",'Data Sheet'!G101)","v":"20--"},null,null,null,null,"","رياض اطفال1",null,{"$error":"#N/A"},{"$error":"#N/A"},null,null,null,null,null,0,null,0]
[null,null,null,null,"",null,"معفى",{"$f":"CONCATENATE('Data Sheet'!I102,\"-\",'Data Sheet'!H102,\"-\",'Data Sheet'!G102)","v":"20--"},null,null,null,null,"","رياض اطفال1",null,{"$error":"#N/A"},{"$error":"#N/A"},null,null,null,null,null,0,null,0]
[null,null,null,null,"",null,"معفى",{"$f":"CONCATENATE('Data Sheet'!I103,\"-\",'Data Sheet'!H103,\"-\",'Data Sheet'!G103)","v":"20--"},null,null,null,null,"","رياض اطفال1",null,{"$error":"#N/A"},{"$error":"#N/A"},null,null,null,null,null,0,null,0]
[null,null,null,null,"",null,"معفى",{"$f":"CONCATENATE('Data Sheet'!I104,\"-\",'Data Sheet'!H104,\"-\",'Data Sheet'!G104)","v":"20--"},null,null,null,null,"","رياض اطفال1",null,{"$error":"#N/A"},{"$error":"#N/A"},null,null,null,null,null,0,null,0]
[null,null,null,null,"",null,"معفى",{"$f":"CONCATENATE('Data Sheet'!I105,\"-\",'Data Sheet'!H105,\"-\",'Data Sheet'!G105)","v":"20--"},null,null,null,null,"","رياض اطفال1",null,{"$error":"#N/A"},{"$error":"#N/A"},null,null,null,null,null,0,null,0]
[null,null,null,null,"",null,"معفى",{"$f":"CONCATENATE('Data Sheet'!I106,\"-\",'Data Sheet'!H106,\"-\",'Data Sheet'!G106)","v":"20--"},null,null,null,null,"","رياض اطفال1",null,{"$error":"#N/A"},{"$error":"#N/A"},null,null,null,null,null,0,null,0]
[null,null,null,null,"",null,"معفى",{"$f":"CONCATENATE('Data Sheet'!I107,\"-\",'Data Sheet'!H107,\"-\",'Data Sheet'!G107)","v":"20--"},null,null,null,null,"","رياض اطفال1",null,{"$error":"#N/A"},{"$error":"#N/A"},null,null,null,null,null,0,null,0]
[null,null,null,null,"",null,"معفى",{"$f":"CONCATENATE('Data Sheet'!I108,\"-\",'Data Sheet'!H108,\"-\",'Data Sheet'!G108)","v":"20--"},null,null,null,null,"","رياض اطفال1",null,{"$error":"#N/A"},{"$error":"#N/A"},null,null,null,null,null,0,null,0]
[null,null,null,null,"",null,"معفى",{"$f":"CONCATENATE('Data Sheet'!I109,\"-\",'Data Sheet'!H109,\"-\",'Data Sheet'!G109)","v":"20--"},null,null,null,null,"","رياض اطفال1",null,{"$error":"#N/A"},{"$error":"#N/A"},null,null,null,null,null,0,null,0]
[null,null,null,null,"",null,"معفى",{"$f":"CONCATENATE('Data Sheet'!I110,\"-\",'Data Sheet'!H110,\"-\",'Data Sheet'!G110)","v":"20--"},null,null,null,null,"","رياض اطفال1",null,{"$error":"#N/A"},{"$error":"#N/A"},null,null,null,null,null,0,null,0]
[null,null,null,null,"",null,"معفى",{"$f":"CONCATENATE('Data Sheet'!I111,\"-\",'Data Sheet'!H111,\"-\",'Data Sheet'!G111)","v":"20--"},null,null,null,null,"","رياض اطفال1",null,{"$error":"#N/A"},{"$error":"#N/A"},null,null,null,null,null,0,null,0]
[null,null,null,null,"",null,"معفى",{"$f":"CONCATENATE('Data Sheet'!I112,\"-\",'Data Sheet'!H112,\"-\",'Data Sheet'!G112)","v":"20--"},null,null,null,null,"","رياض اطفال1",null,{"$error":"#N/A"},{"$error":"#N/A"},null,null,null,null,null,0,null,0]
[null,null,null,null,"",null,"معفى",{"$f":"CONCATENATE('Data Sheet'!I113,\"-\",'Data Sheet'!H113,\"-\",'Data Sheet'!G113)","v":"20--"},null,null,null,null,"","رياض اطفال1",null,{"$error":"#N/A"},{"$error":"#N/A"},null,null,null,null,null,0,null,0]
[null,null,null,null,"",null,"معفى",{"$f":"CONCATENATE('Data Sheet'!I114,\"-\",'Data Sheet'!H114,\"-\",'Data Sheet'!G114)","v":"20--"},null,null,null,null,"","رياض اطفال1",null,{"$error":"#N/A"},{"$error":"#N/A"},null,null,null,null,null,0,null,0]
[null,null,null,null,"",null,"معفى",{"$f":"CONCATENATE('Data Sheet'!I115,\"-\",'Data Sheet'!H115,\"-\",'Data Sheet'!G115)","v":"20--"},null,null,null,null,"","رياض اطفال1",null,{"$error":"#N/A"},{"$error":"#N/A"},null,null,null,null,null,0,null,0]
[null,null,null,null,"",null,"معفى",{"$f":"CONCATENATE('Data Sheet'!I116,\"-\",'Data Sheet'!H116,\"-\",'Data Sheet'!G116)","v":"20--"},null,null,null,null,"","رياض اطفال1",null,{"$error":"#N/A"},{"$error":"#N/A"},null,null,null,null,null,0,null,0]
[null,null,null,null,"",null,"معفى",{"$f":"CONCATENATE('Data Sheet'!I117,\"-\",'Data Sheet'!H117,\"-\",'Data Sheet'!G117)","v":"20--"},null,null,null,null,"","رياض اطفال1",null,{"$error":"#N/A"},{"$error":"#N/A"},null,null,null,null,null,0,null,0]
[null,null,null,null,"",null,"معفى",{"$f":"CONCATENATE('Data Sheet'!I118,\"-\",'Data Sheet'!H118,\"-\",'Data Sheet'!G118)","v":"20--"},null,null,null,null,"","رياض اطفال1",null,{"$error":"#N/A"},{"$error":"#N/A"},null,null,null,null,null,0,null,0]
[null,null,null,null,"",null,"معفى",{"$f":"CONCATENATE('Data Sheet'!I119,\"-\",'Data Sheet'!H119,\"-\",'Data Sheet'!G119)","v":"20--"},null,null,null,null,"","رياض اطفال1",null,{"$error":"#N/A"},{"$error":"#N/A"},null,null,null,null,null,0,null,0]
[null,null,null,null,"",null,"معفى",{"$f":"CONCATENATE('Data Sheet'!I120,\"-\",'Data Sheet'!H120,\"-\",'Data Sheet'!G120)","v":"20--"},null,null,null,null,"","رياض اطفال1",null,{"$error":"#N/A"},{"$error":"#N/A"},null,null,null,null,null,0,null,0]
[null,null,null,null,"",null,"معفى",{"$f":"CONCATENATE('Data Sheet'!I121,\"-\",'Data Sheet'!H121,\"-\",'Data Sheet'!G121)","v":"20--"},null,null,null,null,"","رياض اطفال1",null,{"$error":"#N/A"},{"$error":"#N/A"},null,null,null,null,null,0,null,0]
[null,null,null,null,"",null,"معفى",{"$f":"CONCATENATE('Data Sheet'!I122,\"-\",'Data Sheet'!H122,\"-\",'Data Sheet'!G122)","v":"20--"},null,null,null,null,"","رياض اطفال1",null,{"$error":"#N/A"},{"$error":"#N/A"},null,null,null,null,null,0,null,0]
[null,null,null,null,"",null,"معفى",{"$f":"CONCATENATE('Data Sheet'!I123,\"-\",'Data Sheet'!H123,\"-\",'Data Sheet'!G123)","v":"20--"},null,null,null,null,"","رياض اطفال1",null,{"$error":"#N/A"},{"$error":"#N/A"},null,null,null,null,null,0,null,0]
[null,null,null,null,"",null,"معفى",{"$f":"CONCATENATE('Data Sheet'!I124,\"-\",'Data Sheet'!H124,\"-\",'Data Sheet'!G124)","v":"20--"},null,null,null,null,"","رياض اطفال1",null,{"$error":"#N/A"},{"$error":"#N/A"},null,null,null,null,null,0,null,0]
[null,null,null,null,"",null,"معفى",{"$f":"CONCATENATE('Data Sheet'!I125,\"-\",'Data Sheet'!H125,\"-\",'Data Sheet'!G125)","v":"20--"},null,null,null,null,"","رياض اطفال1",null,{"$error":"#N/A"},{"$error":"#N/A"},null,null,null,null,null,0,null,0]
[null,null,null,null,"",null,"معفى",{"$f":"CONCATENATE('Data Sheet'!I126,\"-\",'Data Sheet'!H126,\"-\",'Data Sheet'!G126)","v":"20--"},null,null,null,null,"","رياض اطفال1",null,{"$error":"#N/A"},{"$error":"#N/A"},null,null,null,null,null,0,null,0]
[null,null,null,null,"",null,"معفى",{"$f":"CONCATENATE('Data Sheet'!I127,\"-\",'Data Sheet'!H127,\"-\",'Data Sheet'!G127)","v":"20--"},null,null,null,null,"","رياض اطفال1",null,{"$error":"#N/A"},{"$error":"#N/A"},null,null,null,null,null,0,null,0]
[null,null,null,null,"",null,"معفى",{"$f":"CONCATENATE('Data Sheet'!I128,\"-\",'Data Sheet'!H128,\"-\",'Data Sheet'!G128)","v":"20--"},null,null,null,null,"","رياض اطفال1",null,{"$error":"#N/A"},{"$error":"#N/A"},null,null,null,null,null,0,null,0]
[null,null,null,null,"",null,"معفى",{"$f":"CONCATENATE('Data Sheet'!I129,\"-\",'Data Sheet'!H129,\"-\",'Data Sheet'!G129)","v":"20--"},null,null,null,null,"","رياض اطفال1",null,{"$error":"#N/A"},{"$error":"#N/A"},null,null,null,null,null,0,null,0]
[null,null,null,null,"",null,"معفى",{"$f":"CONCATENATE('Data Sheet'!I130,\"-\",'Data Sheet'!H130,\"-\",'Data Sheet'!G130)","v":"20--"},null,null,null,null,"","رياض اطفال1",null,{"$error":"#N/A"},{"$error":"#N/A"},null,null,null,null,null,0,null,0]
[null,null,null,null,"",null,"معفى",{"$f":"CONCATENATE('Data Sheet'!I131,\"-\",'Data Sheet'!H131,\"-\",'Data Sheet'!G131)","v":"20--"},null,null,null,null,"","رياض اطفال1",null,{"$error":"#N/A"},{"$error":"#N/A"},null,null,null,null,null,0,null,0]
[null,null,null,null,"",null,"معفى",{"$f":"CONCATENATE('Data Sheet'!I132,\"-\",'Data Sheet'!H132,\"-\",'Data Sheet'!G132)","v":"20--"},null,null,null,null,"","رياض اطفال1",null,{"$error":"#N/A"},{"$error":"#N/A"},null,null,null,null,null,0,null,0]
[null,null,null,null,"",null,"معفى",{"$f":"CONCATENATE('Data Sheet'!I133,\"-\",'Data Sheet'!H133,\"-\",'Data Sheet'!G133)","v":"20--"},null,null,null,null,"","رياض اطفال1",null,{"$error":"#N/A"},{"$error":"#N/A"},null,null,null,null,null,0,null,0]
[null,null,null,null,"",null,"معفى",{"$f":"CONCATENATE('Data Sheet'!I134,\"-\",'Data Sheet'!H134,\"-\",'Data Sheet'!G134)","v":"20--"},null,null,null,null,"","رياض اطفال1",null,{"$error":"#N/A"},{"$error":"#N/A"},null,null,null,null,null,0,null,{"$f":"LEN(I134)-LEN(Z134)","v":0}]
[null,null,null,null,{"$f":"IFERROR(RIGHT(A135,(LEN(A135)-(LEN(B135&C135&D135)+3))),\"\")","v":""},null,"معفى",{"$f":"CONCATENATE('Data Sheet'!I135,\"-\",'Data Sheet'!H135,\"-\",'Data Sheet'!G135)","v":"20--"},null,null,null,null,{"$f":"IFERROR(RIGHT(I135,(LEN(I135)-(LEN(J135&K135&L135)+3))),\"\")","v":""},"رياض اطفال1",null,{"$error":"#N/A"},{"$f":"IF(P135>0,VLOOKUP(P135,$T$6:$U$35,2,0),\"\")","v":{"$error":"#N/A"}},null,null,null,null,null,{"$f":"LEN(A135)-LEN(X135)","v":0},null,0]
[null,null,null,null,"",null,"معفى",{"$f":"CONCATENATE('Data Sheet'!I136,\"-\",'Data Sheet'!H136,\"-\",'Data Sheet'!G136)","v":"20--"},null,null,null,null,"","رياض اطفال1",null,{"$error":"#N/A"},{"$error":"#N/A"},null,null,null,null,null,0,null,0]
[null,null,null,null,"",null,"معفى",{"$f":"CONCATENATE('Data Sheet'!I137,\"-\",'Data Sheet'!H137,\"-\",'Data Sheet'!G137)","v":"20--"},null,null,null,null,"","رياض اطفال1",null,{"$error":"#N/A"},{"$error":"#N/A"},null,null,null,null,null,0,null,0]
[null,null,null,null,"",null,"معفى",{"$f":"CONCATENATE('Data Sheet'!I138,\"-\",'Data Sheet'!H138,\"-\",'Data Sheet'!G138)","v":"20--"},null,null,null,null,"","رياض اطفال1",null,{"$error":"#N/A"},{"$error":"#N/A"},null,null,null,null,null,0,null,0]
[null,null,null,null,"",null,"معفى",{"$f":"CONCATENATE('Data Sheet'!I139,\"-\",'Data Sheet'!H139,\"-\",'Data Sheet'!G139)","v":"20--"},null,null,null,null,"","رياض اطفال1",null,{"$error":"#N/A"},{"$error":"#N/A"},null,null,null,null,null,0,null,0]
[null,null,null,null,"",null,"معفى",{"$f":"CONCATENATE('Data Sheet'!I140,\"-\",'Data Sheet'!H140,\"-\",'Data Sheet'!G140)","v":"20--"},null,null,null,null,"","رياض اطفال1",null,{"$error":"#N/A"},{"$error":"#N/A"},null,null,null,null,null,0,null,0]
[null,null,null,null,"",null,"معفى",{"$f":"CONCATENATE('Data Sheet'!I141,\"-\",'Data Sheet'!H141,\"-\",'Data Sheet'!G141)","v":"20--"},null,null,null,null,"","رياض اطفال1",null,{"$error":"#N/A"},{"$error":"#N/A"},null,null,null,null,null,0,null,0]
[null,null,null,null,"",null,"معفى",{"$f":"CONCATENATE('Data Sheet'!I142,\"-\",'Data Sheet'!H142,\"-\",'Data Sheet'!G142)","v":"20--"},null,null,null,null,"","رياض اطفال1",null,{"$error":"#N/A"},{"$error":"#N/A"},null,null,null,null,null,0,null,0]
[null,null,null,null,"",null,"معفى",{"$f":"CONCATENATE('Data Sheet'!I143,\"-\",'Data Sheet'!H143,\"-\",'Data Sheet'!G143)","v":"20--"},null,null,null,null,"","رياض اطفال1",null,{"$error":"#N/A"},{"$error":"#N/A"},null,null,null,null,null,0,null,0]
[null,null,null,null,"",null,"معفى",{"$f":"CONCATENATE('Data Sheet'!I144,\"-\",'Data Sheet'!H144,\"-\",'Data Sheet'!G144)","v":"20--"},null,null,null,null,"","رياض اطفال1",null,{"$error":"#N/A"},{"$error":"#N/A"},null,null,null,null,null,0,null,0]
[null,null,null,null,"",null,"معفى",{"$f":"CONCATENATE('Data Sheet'!I145,\"-\",'Data Sheet'!H145,\"-\",'Data Sheet'!G145)","v":"20--"},null,null,null,null,"","رياض اطفال1",null,{"$error":"#N/A"},{"$error":"#N/A"},null,null,null,null,null,0,null,0]
[null,null,null,null,"",null,"معفى",{"$f":"CONCATENATE('Data Sheet'!I146,\"-\",'Data Sheet'!H146,\"-\",'Data Sheet'!G146)","v":"20--"},null,null,null,null,"","رياض اطفال1",null,{"$error":"#N/A"},{"$error":"#N/A"},null,null,null,null,null,0,null,0]
[null,null,null,null,"",null,"معفى",{"$f":"CONCATENATE('Data Sheet'!I147,\"-\",'Data Sheet'!H147,\"-\",'Data Sheet'!G147)","v":"20--"},null,null,null,null,"","رياض اطفال1",null,{"$error":"#N/A"},{"$error":"#N/A"},null,null,null,null,null,0,null,0]
[null,null,null,null,"",null,"معفى",{"$f":"CONCATENATE('Data Sheet'!I148,\"-\",'Data Sheet'!H148,\"-\",'Data Sheet'!G148)","v":"20--"},null,null,null,null,"","رياض اطفال1",null,{"$error":"#N/A"},{"$error":"#N/A"},null,null,null,null,null,0,null,0]
[null,null,null,null,"",null,"معفى",{"$f":"CONCATENATE('Data Sheet'!I149,\"-\",'Data Sheet'!H149,\"-\",'Data Sheet'!G149)","v":"20--"},null,null,null,null,"","رياض اطفال1",null,{"$error":"#N/A"},{"$error":"#N/A"},null,null,null,null,null,0,null,0]
[null,null,null,null,"",null,"معفى",{"$f":"CONCATENATE('Data Sheet'!I150,\"-\",'Data Sheet'!H150,\"-\",'Data Sheet'!G150)","v":"20--"},null,null,null,null,"","رياض اطفال1",null,{"$error":"#N/A"},{"$error":"#N/A"},null,null,null,null,null,0,null,0]
[null,null,null,null,"",null,"معفى",{"$f":"CONCATENATE('Data Sheet'!I151,\"-\",'Data Sheet'!H151,\"-\",'Data Sheet'!G151)","v":"20--"},null,null,null,null,"","رياض اطفال1",null,{"$error":"#N/A"},{"$error":"#N/A"},null,null,null,null,null,0,null,0]
[null,null,null,null,"",null,"معفى",{"$f":"CONCATENATE('Data Sheet'!I152,\"-\",'Data Sheet'!H152,\"-\",'Data Sheet'!G152)","v":"20--"},null,null,null,null,"","رياض اطفال1",null,{"$error":"#N/A"},{"$error":"#N/A"},null,null,null,null,null,0,null,0]
[null,null,null,null,"",null,"معفى",{"$f":"CONCATENATE('Data Sheet'!I153,\"-\",'Data Sheet'!H153,\"-\",'Data Sheet'!G153)","v":"20--"},null,null,null,null,"","رياض اطفال1",null,{"$error":"#N/A"},{"$error":"#N/A"},null,null,null,null,null,0,null,0]
[null,null,null,null,"",null,"معفى",{"$f":"CONCATENATE('Data Sheet'!I154,\"-\",'Data Sheet'!H154,\"-\",'Data Sheet'!G154)","v":"20--"},null,null,null,null,"","رياض اطفال1",null,{"$error":"#N/A"},{"$error":"#N/A"},null,null,null,null,null,0,null,0]
[null,null,null,null,"",null,"معفى",{"$f":"CONCATENATE('Data Sheet'!I155,\"-\",'Data Sheet'!H155,\"-\",'Data Sheet'!G155)","v":"20--"},null,null,null,null,"","رياض اطفال1",null,{"$error":"#N/A"},{"$error":"#N/A"},null,null,null,null,null,0,null,0]
[null,null,null,null,"",null,"معفى",{"$f":"CONCATENATE('Data Sheet'!I156,\"-\",'Data Sheet'!H156,\"-\",'Data Sheet'!G156)","v":"20--"},null,null,null,null,"","رياض اطفال1",null,{"$error":"#N/A"},{"$error":"#N/A"},null,null,null,null,null,0,null,0]
[null,null,null,null,"",null,"معفى",{"$f":"CONCATENATE('Data Sheet'!I157,\"-\",'Data Sheet'!H157,\"-\",'Data Sheet'!G157)","v":"20--"},null,null,null,null,"","رياض اطفال1",null,{"$error":"#N/A"},{"$error":"#N/A"},null,null,null,null,null,0,null,0]
[null,null,null,null,"",null,"معفى",{"$f":"CONCATENATE('Data Sheet'!I158,\"-\",'Data Sheet'!H158,\"-\",'Data Sheet'!G158)","v":"20--"},null,null,null,null,"","رياض اطفال1",null,{"$error":"#N/A"},{"$error":"#N/A"},null,null,null,null,null,0,null,0]
[null,null,null,null,"",null,"معفى",{"$f":"CONCATENATE('Data Sheet'!I159,\"-\",'Data Sheet'!H159,\"-\",'Data Sheet'!G159)","v":"20--"},null,null,null,null,"","رياض اطفال1",null,{"$error":"#N/A"},{"$error":"#N/A"},null,null,null,null,null,0,null,0]
[null,null,null,null,"",null,"معفى",{"$f":"CONCATENATE('Data Sheet'!I160,\"-\",'Data Sheet'!H160,\"-\",'Data Sheet'!G160)","v":"20--"},null,null,null,null,"","رياض اطفال1",null,{"$error":"#N/A"},{"$error":"#N/A"},null,null,null,null,null,0,null,0]
[null,null,null,null,"",null,"معفى",{"$f":"CONCATENATE('Data Sheet'!I161,\"-\",'Data Sheet'!H161,\"-\",'Data Sheet'!G161)","v":"20--"},null,null,null,null,"","رياض اطفال1",null,{"$error":"#N/A"},{"$error":"#N/A"},null,null,null,null,null,0,null,0]
[null,null,null,null,"",null,"معفى",{"$f":"CONCATENATE('Data Sheet'!I162,\"-\",'Data Sheet'!H162,\"-\",'Data Sheet'!G162)","v":"20--"},null,null,null,null,"","رياض اطفال1",null,{"$error":"#N/A"},{"$error":"#N/A"},null,null,null,null,null,0,null,0]
[null,null,null,null,"",null,"معفى",{"$f":"CONCATENATE('Data Sheet'!I163,\"-\",'Data Sheet'!H163,\"-\",'Data Sheet'!G163)","v":"20--"},null,null,null,null,"","رياض اطفال1",null,{"$error":"#N/A"},{"$error":"#N/A"},null,null,null,null,null,0,null,0]
[null,null,null,null,"",null,"معفى",{"$f":"CONCATENATE('Data Sheet'!I164,\"-\",'Data Sheet'!H164,\"-\",'Data Sheet'!G164)","v":"20--"},null,null,null,null,"","رياض اطفال1",null,{"$error":"#N/A"},{"$error":"#N/A"},null,null,null,null,null,0,null,0]
[null,null,null,null,"",null,"معفى",{"$f":"CONCATENATE('Data Sheet'!I165,\"-\",'Data Sheet'!H165,\"-\",'Data Sheet'!G165)","v":"20--"},null,null,null,null,"","رياض اطفال1",null,{"$error":"#N/A"},{"$error":"#N/A"},null,null,null,null,null,0,null,0]
[null,null,null,null,"",null,"معفى",{"$f":"CONCATENATE('Data Sheet'!I166,\"-\",'Data Sheet'!H166,\"-\",'Data Sheet'!G166)","v":"20--"},null,null,null,null,"","رياض اطفال1",null,{"$error":"#N/A"},{"$error":"#N/A"},null,null,null,null,null,0,null,0]
[null,null,null,null,"",null,"معفى",{"$f":"CONCATENATE('Data Sheet'!I167,\"-\",'Data Sheet'!H167,\"-\",'Data Sheet'!G167)","v":"20--"},null,null,null,null,"","رياض اطفال1",null,{"$error":"#N/A"},{"$error":"#N/A"},null,null,null,null,null,0,null,0]
[null,null,null,null,"",null,"معفى",{"$f":"CONCATENATE('Data Sheet'!I168,\"-\",'Data Sheet'!H168,\"-\",'Data Sheet'!G168)","v":"20--"},null,null,null,null,"","رياض اطفال1",null,{"$error":"#N/A"},{"$error":"#N/A"},null,null,null,null,null,0,null,0]
[null,null,null,null,"",null,"معفى",{"$f":"CONCATENATE('Data Sheet'!I169,\"-\",'Data Sheet'!H169,\"-\",'Data Sheet'!G169)","v":"20--"},null,null,null,null,"","رياض اطفال1",null,{"$error":"#N/A"},{"$error":"#N/A"},null,null,null,null,null,0,null,0]
[null,null,null,null,"",null,"معفى",{"$f":"CONCATENATE('Data Sheet'!I170,\"-\",'Data Sheet'!H170,\"-\",'Data Sheet'!G170)","v":"20--"},null,null,null,null,"","رياض اطفال1",null,{"$error":"#N/A"},{"$error":"#N/A"},null,null,null,null,null,0,null,0]
[null,null,null,null,"",null,"معفى",{"$f":"CONCATENATE('Data Sheet'!I171,\"-\",'Data Sheet'!H171,\"-\",'Data Sheet'!G171)","v":"20--"},null,null,null,null,"","رياض اطفال1",null,{"$error":"#N/A"},{"$error":"#N/A"},null,null,null,null,null,0,null,0]
[null,null,null,null,"",null,"معفى",{"$f":"CONCATENATE('Data Sheet'!I172,\"-\",'Data Sheet'!H172,\"-\",'Data Sheet'!G172)","v":"20--"},null,null,null,null,"","رياض اطفال1",null,{"$error":"#N/A"},{"$error":"#N/A"},null,null,null,null,null,0,null,0]
[null,null,null,null,"",null,"معفى",{"$f":"CONCATENATE('Data Sheet'!I173,\"-\",'Data Sheet'!H173,\"-\",'Data Sheet'!G173)","v":"20--"},null,null,null,null,"","رياض اطفال1",null,{"$error":"#N/A"},{"$error":"#N/A"},null,null,null,null,null,0,null,0]
[null,null,null,null,"",null,"معفى",{"$f":"CONCATENATE('Data Sheet'!I174,\"-\",'Data Sheet'!H174,\"-\",'Data Sheet'!G174)","v":"20--"},null,null,null,null,"","رياض اطفال1",null,{"$error":"#N/A"},{"$error":"#N/A"},null,null,null,null,null,0,null,0]
[null,null,null,null,"",null,"معفى",{"$f":"CONCATENATE('Data Sheet'!I175,\"-\",'Data Sheet'!H175,\"-\",'Data Sheet'!G175)","v":"20--"},null,null,null,null,"","رياض اطفال1",null,{"$error":"#N/A"},{"$error":"#N/A"},null,null,null,null,null,0,null,0]
[null,null,null,null,"",null,"معفى",{"$f":"CONCATENATE('Data Sheet'!I176,\"-\",'Data Sheet'!H176,\"-\",'Data Sheet'!G176)","v":"20--"},null,null,null,null,"","رياض اطفال1",null,{"$error":"#N/A"},{"$error":"#N/A"},null,null,null,null,null,0,null,0]
[null,null,null,null,"",null,"معفى",{"$f":"CONCATENATE('Data Sheet'!I177,\"-\",'Data Sheet'!H177,\"-\",'Data Sheet'!G177)","v":"20--"},null,null,null,null,"","رياض اطفال1",null,{"$error":"#N/A"},{"$error":"#N/A"},null,null,null,null,null,0,null,0]
[null,null,null,null,"",null,"معفى",{"$f":"CONCATENATE('Data Sheet'!I178,\"-\",'Data Sheet'!H178,\"-\",'Data Sheet'!G178)","v":"20--"},null,null,null,null,"","رياض اطفال1",null,{"$error":"#N/A"},{"$error":"#N/A"},null,null,null,null,null,0,null,0]
[null,null,null,null,"",null,"معفى",{"$f":"CONCATENATE('Data Sheet'!I179,\"-\",'Data Sheet'!H179,\"-\",'Data Sheet'!G179)","v":"20--"},null,null,null,null,"","رياض اطفال1",null,{"$error":"#N/A"},{"$error":"#N/A"},null,null,null,null,null,0,null,0]
[null,null,null,null,"",null,"معفى",{"$f":"CONCATENATE('Data Sheet'!I180,\"-\",'Data Sheet'!H180,\"-\",'Data Sheet'!G180)","v":"20--"},null,null,null,null,"","رياض اطفال1",null,{"$error":"#N/A"},{"$error":"#N/A"},null,null,null,null,null,0,null,0]
[null,null,null,null,"",null,"معفى",{"$f":"CONCATENATE('Data Sheet'!I181,\"-\",'Data Sheet'!H181,\"-\",'Data Sheet'!G181)","v":"20--"},null,null,null,null,"","رياض اطفال1",null,{"$error":"#N/A"},{"$error":"#N/A"},null,null,null,null,null,0,null,0]
[null,null,null,null,"",null,"معفى",{"$f":"CONCATENATE('Data Sheet'!I182,\"-\",'Data Sheet'!H182,\"-\",'Data Sheet'!G182)","v":"20--"},null,null,null,null,"","رياض اطفال1",null,{"$error":"#N/A"},{"$error":"#N/A"},null,null,null,null,null,0,null,0]
[null,null,null,null,"",null,"معفى",{"$f":"CONCATENATE('Data Sheet'!I183,\"-\",'Data Sheet'!H183,\"-\",'Data Sheet'!G183)","v":"20--"},null,null,null,null,"","رياض اطفال1",null,{"$error":"#N/A"},{"$error":"#N/A"},null,null,null,null,null,0,null,0]
[null,null,null,null,"",null,"معفى",{"$f":"CONCATENATE('Data Sheet'!I184,\"-\",'Data Sheet'!H184,\"-\",'Data Sheet'!G184)","v":"20--"},null,null,null,null,"","رياض اطفال1",null,{"$error":"#N/A"},{"$error":"#N/A"},null,null,null,null,null,0,null,0]
[null,null,null,null,"",null,"معفى",{"$f":"CONCATENATE('Data Sheet'!I185,\"-\",'Data Sheet'!H185,\"-\",'Data Sheet'!G185)","v":"20--"},null,null,null,null,"","رياض اطفال1",null,{"$error":"#N/A"},{"$error":"#N/A"},null,null,null,null,null,0,null,0]
[null,null,null,null,"",null,"معفى",{"$f":"CONCATENATE('Data Sheet'!I186,\"-\",'Data Sheet'!H186,\"-\",'Data Sheet'!G186)","v":"20--"},null,null,null,null,"","رياض اطفال1",null,{"$error":"#N/A"},{"$error":"#N/A"},null,null,null,null,null,0,null,0]
[null,null,null,null,"",null,"معفى",{"$f":"CONCATENATE('Data Sheet'!I187,\"-\",'Data Sheet'!H187,\"-\",'Data Sheet'!G187)","v":"20--"},null,null,null,null,"","رياض اطفال1",null,{"$error":"#N/A"},{"$error":"#N/A"},null,null,null,null,null,0,null,0]
[null,null,null,null,"",null,"معفى",{"$f":"CONCATENATE('Data Sheet'!I188,\"-\",'Data Sheet'!H188,\"-\",'Data Sheet'!G188)","v":"20--"},null,null,null,null,"","رياض اطفال1",null,{"$error":"#N/A"},{"$error":"#N/A"},null,null,null,null,null,0,null,0]
[null,null,null,null,"",null,"معفى",{"$f":"CONCATENATE('Data Sheet'!I189,\"-\",'Data Sheet'!H189,\"-\",'Data Sheet'!G189)","v":"20--"},null,null,null,null,"","رياض اطفال1",null,{"$error":"#N/A"},{"$error":"#N/A"},null,null,null,null,null,0,null,0]
[null,null,null,null,"",null,"معفى",{"$f":"CONCATENATE('Data Sheet'!I190,\"-\",'Data Sheet'!H190,\"-\",'Data Sheet'!G190)","v":"20--"},null,null,null,null,"","رياض اطفال1",null,{"$error":"#N/A"},{"$error":"#N/A"},null,null,null,null,null,0,null,0]
[null,null,null,null,"",null,"معفى",{"$f":"CONCATENATE('Data Sheet'!I191,\"-\",'Data Sheet'!H191,\"-\",'Data Sheet'!G191)","v":"20--"},null,null,null,null,"","رياض اطفال1",null,{"$error":"#N/A"},{"$error":"#N/A"},null,null,null,null,null,0,null,0]
[null,null,null,null,"",null,"معفى",{"$f":"CONCATENATE('Data Sheet'!I192,\"-\",'Data Sheet'!H192,\"-\",'Data Sheet'!G192)","v":"20--"},null,null,null,null,"","رياض اطفال1",null,{"$error":"#N/A"},{"$error":"#N/A"},null,null,null,null,null,0,null,0]
[null,null,null,null,"",null,"معفى",{"$f":"CONCATENATE('Data Sheet'!I193,\"-\",'Data Sheet'!H193,\"-\",'Data Sheet'!G193)","v":"20--"},null,null,null,null,"","رياض اطفال1",null,{"$error":"#N/A"},{"$error":"#N/A"},null,null,null,null,null,0,null,0]
[null,null,null,null,"",null,"معفى",{"$f":"CONCATENATE('Data Sheet'!I194,\"-\",'Data Sheet'!H194,\"-\",'Data Sheet'!G194)","v":"20--"},null,null,null,null,"","رياض اطفال1",null,{"$error":"#N/A"},{"$error":"#N/A"},null,null,null,null,null,0,null,0]
[null,null,null,null,"",null,"معفى",{"$f":"CONCATENATE('Data Sheet'!I195,\"-\",'Data Sheet'!H195,\"-\",'Data Sheet'!G195)","v":"20--"},null,null,null,null,"","رياض اطفال1",null,{"$error":"#N/A"},{"$error":"#N/A"},null,null,null,null,null,0,null,0]
[null,null,null,null,"",null,"معفى",{"$f":"CONCATENATE('Data Sheet'!I196,\"-\",'Data Sheet'!H196,\"-\",'Data Sheet'!G196)","v":"20--"},null,null,null,null,"","رياض اطفال1",null,{"$error":"#N/A"},{"$error":"#N/A"},null,null,null,null,null,0,null,0]
[null,null,null,null,"",null,"معفى",{"$f":"CONCATENATE('Data Sheet'!I197,\"-\",'Data Sheet'!H197,\"-\",'Data Sheet'!G197)","v":"20--"},null,null,null,null,"","رياض اطفال1",null,{"$error":"#N/A"},{"$error":"#N/A"},null,null,null,null,null,0,null,{"$f":"LEN(I197)-LEN(Z197)","v":0}]
[null,null,null,null,"",null,"معفى",{"$f":"CONCATENATE('Data Sheet'!I198,\"-\",'Data Sheet'!H198,\"-\",'Data Sheet'!G198)","v":"20--"},null,null,null,null,"","رياض اطفال1",null,{"$error":"#N/A"},{"$error":"#N/A"},null,null,null,null,null,0,null,0]
[null,null,null,null,{"$f":"IFERROR(RIGHT(A199,(LEN(A199)-(LEN(B199&C199&D199)+3))),\"\")","v":""},null,"معفى",{"$f":"CONCATENATE('Data Sheet'!I199,\"-\",'Data Sheet'!H199,\"-\",'Data Sheet'!G199)","v":"20--"},null,null,null,null,{"$f":"IFERROR(RIGHT(I199,(LEN(I199)-(LEN(J199&K199&L199)+3))),\"\")","v":""},"رياض اطفال1",null,{"$error":"#N/A"},{"$f":"IF(P199>0,VLOOKUP(P199,$T$6:$U$35,2,0),\"\")","v":{"$error":"#N/A"}},null,null,null,null,null,{"$f":"LEN(A199)-LEN(X199)","v":0},null,{"$f":"LEN(I199)-LEN(Z199)","v":0}]
[null,null,null,null,"",null,"معفى",{"$f":"CONCATENATE('Data Sheet'!I200,\"-\",'Data Sheet'!H200,\"-\",'Data Sheet'!G200)","v":"20--"},null,null,null,null,"","رياض اطفال1",null,{"$error":"#N/A"},{"$error":"#N/A"},null,null,null,null,null,0,null,0]
[null,null,null,null,"",null,"معفى",{"$f":"CONCATENATE('Data Sheet'!I201,\"-\",'Data Sheet'!H201,\"-\",'Data Sheet'!G201)","v":"20--"},null,null,null,null,"","رياض اطفال1",null,{"$error":"#N/A"},{"$error":"#N/A"},null,null,null,null,null,0,null,0]
[null,null,null,null,"",null,"معفى",{"$f":"CONCATENATE('Data Sheet'!I202,\"-\",'Data Sheet'!H202,\"-\",'Data Sheet'!G202)","v":"20--"},null,null,null,null,"","رياض اطفال1",null,{"$error":"#N/A"},{"$error":"#N/A"},null,null,null,null,null,0,null,0]
[null,null,null,null,"",null,"معفى",{"$f":"CONCATENATE('Data Sheet'!I203,\"-\",'Data Sheet'!H203,\"-\",'Data Sheet'!G203)","v":"20--"},null,null,null,null,"","رياض اطفال1",null,{"$error":"#N/A"},{"$error":"#N/A"},null,null,null,null,null,0,null,0]
[null,null,null,null,"",null,"معفى",{"$f":"CONCATENATE('Data Sheet'!I204,\"-\",'Data Sheet'!H204,\"-\",'Data Sheet'!G204)","v":"20--"},null,null,null,null,"","رياض اطفال1",null,{"$error":"#N/A"},{"$error":"#N/A"},null,null,null,null,null,0,null,0]
[null,null,null,null,"",null,"معفى",{"$f":"CONCATENATE('Data Sheet'!I205,\"-\",'Data Sheet'!H205,\"-\",'Data Sheet'!G205)","v":"20--"},null,null,null,null,"","رياض اطفال1",null,{"$error":"#N/A"},{"$error":"#N/A"},null,null,null,null,null,0,null,0]
[null,null,null,null,"",null,"معفى",{"$f":"CONCATENATE('Data Sheet'!I206,\"-\",'Data Sheet'!H206,\"-\",'Data Sheet'!G206)","v":"20--"},null,null,null,null,"","رياض اطفال1",null,{"$error":"#N/A"},{"$error":"#N/A"},null,null,null,null,null,0,null,0]
[null,null,null,null,"",null,"معفى",{"$f":"CONCATENATE('Data Sheet'!I207,\"-\",'Data Sheet'!H207,\"-\",'Data Sheet'!G207)","v":"20--"},null,null,null,null,"","رياض اطفال1",null,{"$error":"#N/A"},{"$error":"#N/A"},null,null,null,null,null,0,null,0]
[null,null,null,null,"",null,"معفى",{"$f":"CONCATENATE('Data Sheet'!I208,\"-\",'Data Sheet'!H208,\"-\",'Data Sheet'!G208)","v":"20--"},null,null,null,null,"","رياض اطفال1",null,{"$error":"#N/A"},{"$error":"#N/A"},null,null,null,null,null,0,null,0]
[null,null,null,null,"",null,"معفى",{"$f":"CONCATENATE('Data Sheet'!I209,\"-\",'Data Sheet'!H209,\"-\",'Data Sheet'!G209)","v":"20--"},null,null,null,null,"","رياض اطفال1",null,{"$error":"#N/A"},{"$error":"#N/A"},null,null,null,null,null,0,null,0]
[null,null,null,null,"",null,"معفى",{"$f":"CONCATENATE('Data Sheet'!I210,\"-\",'Data Sheet'!H210,\"-\",'Data Sheet'!G210)","v":"20--"},null,null,null,null,"","رياض اطفال1",null,{"$error":"#N/A"},{"$error":"#N/A"},null,null,null,null,null,0,null,0]
[null,null,null,null,"",null,"معفى",{"$f":"CONCATENATE('Data Sheet'!I211,\"-\",'Data Sheet'!H211,\"-\",'Data Sheet'!G211)","v":"20--"},null,null,null,null,"","رياض اطفال1",null,{"$error":"#N/A"},{"$error":"#N/A"},null,null,null,null,null,0,null,0]
[null,null,null,null,"",null,"معفى",{"$f":"CONCATENATE('Data Sheet'!I212,\"-\",'Data Sheet'!H212,\"-\",'Data Sheet'!G212)","v":"20--"},null,null,null,null,"","رياض اطفال1",null,{"$error":"#N/A"},{"$error":"#N/A"},null,null,null,null,null,0,null,0]
[null,null,null,null,"",null,"معفى",{"$f":"CONCATENATE('Data Sheet'!I213,\"-\",'Data Sheet'!H213,\"-\",'Data Sheet'!G213)","v":"20--"},null,null,null,null,"","رياض اطفال1",null,{"$error":"#N/A"},{"$error":"#N/A"},null,null,null,null,null,0,null,0]
[null,null,null,null,"",null,"معفى",{"$f":"CONCATENATE('Data Sheet'!I214,\"-\",'Data Sheet'!H214,\"-\",'Data Sheet'!G214)","v":"20--"},null,null,null,null,"","رياض اطفال1",null,{"$error":"#N/A"},{"$error":"#N/A"},null,null,null,null,null,0,null,0]
[null,null,null,null,"",null,"معفى",{"$f":"CONCATENATE('Data Sheet'!I215,\"-\",'Data Sheet'!H215,\"-\",'Data Sheet'!G215)","v":"20--"},null,null,null,null,"","رياض اطفال1",null,{"$error":"#N/A"},{"$error":"#N/A"},null,null,null,null,null,0,null,0]
[null,null,null,null,"",null,"معفى",{"$f":"CONCATENATE('Data Sheet'!I216,\"-\",'Data Sheet'!H216,\"-\",'Data Sheet'!G216)","v":"20--"},null,null,null,null,"","رياض اطفال1",null,{"$error":"#N/A"},{"$error":"#N/A"},null,null,null,null,null,0,null,0]
[null,null,null,null,"",null,"معفى",{"$f":"CONCATENATE('Data Sheet'!I217,\"-\",'Data Sheet'!H217,\"-\",'Data Sheet'!G217)","v":"20--"},null,null,null,null,"","رياض اطفال1",null,{"$error":"#N/A"},{"$error":"#N/A"},null,null,null,null,null,0,null,0]
[null,null,null,null,"",null,"معفى",{"$f":"CONCATENATE('Data Sheet'!I218,\"-\",'Data Sheet'!H218,\"-\",'Data Sheet'!G218)","v":"20--"},null,null,null,null,"","رياض اطفال1",null,{"$error":"#N/A"},{"$error":"#N/A"},null,null,null,null,null,0,null,0]
[null,null,null,null,"",null,"معفى",{"$f":"CONCATENATE('Data Sheet'!I219,\"-\",'Data Sheet'!H219,\"-\",'Data Sheet'!G219)","v":"20--"},null,null,null,null,"","رياض اطفال1",null,{"$error":"#N/A"},{"$error":"#N/A"},null,null,null,null,null,0,null,0]
[null,null,null,null,"",null,"معفى",{"$f":"CONCATENATE('Data Sheet'!I220,\"-\",'Data Sheet'!H220,\"-\",'Data Sheet'!G220)","v":"20--"},null,null,null,null,"","رياض اطفال1",null,{"$error":"#N/A"},{"$error":"#N/A"},null,null,null,null,null,0,null,0]
[null,null,null,null,"",null,"معفى",{"$f":"CONCATENATE('Data Sheet'!I221,\"-\",'Data Sheet'!H221,\"-\",'Data Sheet'!G221)","v":"20--"},null,null,null,null,"","رياض اطفال1",null,{"$error":"#N/A"},{"$error":"#N/A"},null,null,null,null,null,0,null,0]
[null,null,null,null,"",null,"معفى",{"$f":"CONCATENATE('Data Sheet'!I222,\"-\",'Data Sheet'!H222,\"-\",'Data Sheet'!G222)","v":"20--"},null,null,null,null,"","رياض اطفال1",null,{"$error":"#N/A"},{"$error":"#N/A"},null,null,null,null,null,0,null,0]
[null,null,null,null,"",null,"معفى",{"$f":"CONCATENATE('Data Sheet'!I223,\"-\",'Data Sheet'!H223,\"-\",'Data Sheet'!G223)","v":"20--"},null,null,null,null,"","رياض اطفال1",null,{"$error":"#N/A"},{"$error":"#N/A"},null,null,null,null,null,0,null,0]
[null,null,null,null,"",null,"معفى",{"$f":"CONCATENATE('Data Sheet'!I224,\"-\",'Data Sheet'!H224,\"-\",'Data Sheet'!G224)","v":"20--"},null,null,null,null,"","رياض اطفال1",null,{"$error":"#N/A"},{"$error":"#N/A"},null,null,null,null,null,0,null,0]
[null,null,null,null,"",null,"معفى",{"$f":"CONCATENATE('Data Sheet'!I225,\"-\",'Data Sheet'!H225,\"-\",'Data Sheet'!G225)","v":"20--"},null,null,null,null,"","رياض اطفال1",null,{"$error":"#N/A"},{"$error":"#N/A"},null,null,null,null,null,0,null,0]
[null,null,null,null,"",null,"معفى",{"$f":"CONCATENATE('Data Sheet'!I226,\"-\",'Data Sheet'!H226,\"-\",'Data Sheet'!G226)","v":"20--"},null,null,null,null,"","رياض اطفال1",null,{"$error":"#N/A"},{"$error":"#N/A"},null,null,null,null,null,0,null,0]
[null,null,null,null,"",null,"معفى",{"$f":"CONCATENATE('Data Sheet'!I227,\"-\",'Data Sheet'!H227,\"-\",'Data Sheet'!G227)","v":"20--"},null,null,null,null,"","رياض اطفال1",null,{"$error":"#N/A"},{"$error":"#N/A"},null,null,null,null,null,0,null,0]
[null,null,null,null,"",null,"معفى",{"$f":"CONCATENATE('Data Sheet'!I228,\"-\",'Data Sheet'!H228,\"-\",'Data Sheet'!G228)","v":"20--"},null,null,null,null,"","رياض اطفال1",null,{"$error":"#N/A"},{"$error":"#N/A"},null,null,null,null,null,0,null,0]
[null,null,null,null,"",null,"معفى",{"$f":"CONCATENATE('Data Sheet'!I229,\"-\",'Data Sheet'!H229,\"-\",'Data Sheet'!G229)","v":"20--"},null,null,null,null,"","رياض اطفال1",null,{"$error":"#N/A"},{"$error":"#N/A"},null,null,null,null,null,0,null,0]
[null,null,null,null,"",null,"معفى",{"$f":"CONCATENATE('Data Sheet'!I230,\"-\",'Data Sheet'!H230,\"-\",'Data Sheet'!G230)","v":"20--"},null,null,null,null,"","رياض اطفال1",null,{"$error":"#N/A"},{"$error":"#N/A"},null,null,null,null,null,0,null,0]
[null,null,null,null,"",null,"معفى",{"$f":"CONCATENATE('Data Sheet'!I231,\"-\",'Data Sheet'!H231,\"-\",'Data Sheet'!G231)","v":"20--"},null,null,null,null,"","رياض اطفال1",null,{"$error":"#N/A"},{"$error":"#N/A"},null,null,null,null,null,0,null,0]
[null,null,null,null,"",null,"معفى",{"$f":"CONCATENATE('Data Sheet'!I232,\"-\",'Data Sheet'!H232,\"-\",'Data Sheet'!G232)","v":"20--"},null,null,null,null,"","رياض اطفال1",null,{"$error":"#N/A"},{"$error":"#N/A"},null,null,null,null,null,0,null,0]
[null,null,null,null,"",null,"معفى",{"$f":"CONCATENATE('Data Sheet'!I233,\"-\",'Data Sheet'!H233,\"-\",'Data Sheet'!G233)","v":"20--"},null,null,null,null,"","رياض اطفال1",null,{"$error":"#N/A"},{"$error":"#N/A"},null,null,null,null,null,0,null,0]
[null,null,null,null,"",null,"معفى",{"$f":"CONCATENATE('Data Sheet'!I234,\"-\",'Data Sheet'!H234,\"-\",'Data Sheet'!G234)","v":"20--"},null,null,null,null,"","رياض اطفال1",null,{"$error":"#N/A"},{"$error":"#N/A"},null,null,null,null,null,0,null,0]
[null,null,null,null,"",null,"معفى",{"$f":"CONCATENATE('Data Sheet'!I235,\"-\",'Data Sheet'!H235,\"-\",'Data Sheet'!G235)","v":"20--"},null,null,null,null,"","رياض اطفال1",null,{"$error":"#N/A"},{"$error":"#N/A"},null,null,null,null,null,0,null,0]
[null,null,null,null,"",null,"معفى",{"$f":"CONCATENATE('Data Sheet'!I236,\"-\",'Data Sheet'!H236,\"-\",'Data Sheet'!G236)","v":"20--"},null,null,null,null,"","رياض اطفال1",null,{"$error":"#N/A"},{"$error":"#N/A"},null,null,null,null,null,0,null,0]
[null,null,null,null,"",null,"معفى",{"$f":"CONCATENATE('Data Sheet'!I237,\"-\",'Data Sheet'!H237,\"-\",'Data Sheet'!G237)","v":"20--"},null,null,null,null,"","رياض اطفال1",null,{"$error":"#N/A"},{"$error":"#N/A"},null,null,null,null,null,0,null,0]
[null,null,null,null,"",null,"معفى",{"$f":"CONCATENATE('Data Sheet'!I238,\"-\",'Data Sheet'!H238,\"-\",'Data Sheet'!G238)","v":"20--"},null,null,null,null,"","رياض اطفال1",null,{"$error":"#N/A"},{"$error":"#N/A"},null,null,null,null,null,0,null,0]
[null,null,null,null,"",null,"معفى",{"$f":"CONCATENATE('Data Sheet'!I239,\"-\",'Data Sheet'!H239,\"-\",'Data Sheet'!G239)","v":"20--"},null,null,null,null,"","رياض اطفال1",null,{"$error":"#N/A"},{"$error":"#N/A"},null,null,null,null,null,0,null,0]
[null,null,null,null,"",null,"معفى",{"$f":"CONCATENATE('Data Sheet'!I240,\"-\",'Data Sheet'!H240,\"-\",'Data Sheet'!G240)","v":"20--"},null,null,null,null,"","رياض اطفال1",null,{"$error":"#N/A"},{"$error":"#N/A"},null,null,null,null,null,0,null,0]
[null,null,null,null,"",null,"معفى",{"$f":"CONCATENATE('Data Sheet'!I241,\"-\",'Data Sheet'!H241,\"-\",'Data Sheet'!G241)","v":"20--"},null,null,null,null,"","رياض اطفال1",null,{"$error":"#N/A"},{"$error":"#N/A"},null,null,null,null,null,0,null,0]
[null,null,null,null,"",null,"معفى",{"$f":"CONCATENATE('Data Sheet'!I242,\"-\",'Data Sheet'!H242,\"-\",'Data Sheet'!G242)","v":"20--"},null,null,null,null,"","رياض اطفال1",null,{"$error":"#N/A"},{"$error":"#N/A"},null,null,null,null,null,0,null,0]
[null,null,null,null,"",null,"معفى",{"$f":"CONCATENATE('Data Sheet'!I243,\"-\",'Data Sheet'!H243,\"-\",'Data Sheet'!G243)","v":"20--"},null,null,null,null,"","رياض اطفال1",null,{"$error":"#N/A"},{"$error":"#N/A"},null,null,null,null,null,0,null,0]
[null,null,null,null,"",null,"معفى",{"$f":"CONCATENATE('Data Sheet'!I244,\"-\",'Data Sheet'!H244,\"-\",'Data Sheet'!G244)","v":"20--"},null,null,null,null,"","رياض اطفال1",null,{"$error":"#N/A"},{"$error":"#N/A"},null,null,null,null,null,0,null,0]
[null,null,null,null,"",null,"معفى",{"$f":"CONCATENATE('Data Sheet'!I245,\"-\",'Data Sheet'!H245,\"-\",'Data Sheet'!G245)","v":"20--"},null,null,null,null,"","رياض اطفال1",null,{"$error":"#N/A"},{"$error":"#N/A"},null,null,null,null,null,0,null,0]
[null,null,null,null,"",null,"معفى",{"$f":"CONCATENATE('Data Sheet'!I246,\"-\",'Data Sheet'!H246,\"-\",'Data Sheet'!G246)","v":"20--"},null,null,null,null,"","رياض اطفال1",null,{"$error":"#N/A"},{"$error":"#N/A"},null,null,null,null,null,0,null,0]
[null,null,null,null,"",null,"معفى",{"$f":"CONCATENATE('Data Sheet'!I247,\"-\",'Data Sheet'!H247,\"-\",'Data Sheet'!G247)","v":"20--"},null,null,null,null,"","رياض اطفال1",null,{"$error":"#N/A"},{"$error":"#N/A"},null,null,null,null,null,0,null,0]
[null,null,null,null,"",null,"معفى",{"$f":"CONCATENATE('Data Sheet'!I248,\"-\",'Data Sheet'!H248,\"-\",'Data Sheet'!G248)","v":"20--"},null,null,null,null,"","رياض اطفال1",null,{"$error":"#N/A"},{"$error":"#N/A"},null,null,null,null,null,0,null,0]
[null,null,null,null,"",null,"معفى",{"$f":"CONCATENATE('Data Sheet'!I249,\"-\",'Data Sheet'!H249,\"-\",'Data Sheet'!G249)","v":"20--"},null,null,null,null,"","رياض اطفال1",null,{"$error":"#N/A"},{"$error":"#N/A"},null,null,null,null,null,0,null,0]
[null,{"$f":"IF(A250>0,LEFT(A250,SEARCH(\" \",A250)-1),\"\")","v":""},null,{"$f":"IF(A250>0,LEFT(C250,SEARCH(\" \",C250)-1),\"\")","v":""},"",null,"معفى",{"$f":"CONCATENATE('Data Sheet'!I250,\"-\",'Data Sheet'!H250,\"-\",'Data Sheet'!G250)","v":"20--"},null,null,null,null,"","رياض اطفال1",null,{"$error":"#N/A"},{"$error":"#N/A"},null,null,null,null,null,0,null,0]
[null,"",null,"","",null,"معفى",{"$f":"CONCATENATE('Data Sheet'!I251,\"-\",'Data Sheet'!H251,\"-\",'Data Sheet'!G251)","v":"20--"},null,null,null,null,"","رياض اطفال1",null,{"$error":"#N/A"},{"$error":"#N/A"},null,null,null,null,null,0,null,0]
[null,"",null,"","",null,"معفى",{"$f":"CONCATENATE('Data Sheet'!I252,\"-\",'Data Sheet'!H252,\"-\",'Data Sheet'!G252)","v":"20--"},null,null,null,null,"","رياض اطفال1",null,{"$error":"#N/A"},{"$error":"#N/A"},null,null,null,null,null,0,null,0]
[null,"",null,"","",null,"معفى",{"$f":"CONCATENATE('Data Sheet'!I253,\"-\",'Data Sheet'!H253,\"-\",'Data Sheet'!G253)","v":"20--"},null,null,null,null,"","رياض اطفال1",null,{"$error":"#N/A"},{"$error":"#N/A"},null,null,null,null,null,0,null,0]
[null,"",null,"","",null,"معفى",{"$f":"CONCATENATE('Data Sheet'!I254,\"-\",'Data Sheet'!H254,\"-\",'Data Sheet'!G254)","v":"20--"},null,null,null,null,"","رياض اطفال1",null,{"$error":"#N/A"},{"$error":"#N/A"},null,null,null,null,null,0,null,0]
[null,"",null,"","",null,"معفى",{"$f":"CONCATENATE('Data Sheet'!I255,\"-\",'Data Sheet'!H255,\"-\",'Data Sheet'!G255)","v":"20--"},null,null,null,null,"","رياض اطفال1",null,{"$error":"#N/A"},{"$error":"#N/A"}]
[null,null,null,null,null,null,"معفى",null,null,null,null,null,null,"رياض اطفال1",null,{"$error":"#N/A"}]
[null,null,null,null,null,null,"معفى",null,null,null,null,null,null,"رياض اطفال1",null,{"$error":"#N/A"}]
[null,null,null,null,null,null,"معفى",null,null,null,null,null,null,"رياض اطفال1",null,{"$error":"#N/A"}]
[null,null,null,null,null,null,"معفى",null,null,null,null,null,null,"رياض اطفال1",null,{"$error":"#N/A"}]
[null,null,null,null,null,null,"معفى",null,null,null,null,null,null,"رياض اطفال1",null,{"$error":"#N/A"}]
[null,null,null,null,null,null,"معفى",null,null,null,null,null,null,"رياض اطفال1",null,{"$error":"#N/A"}]
[null,null,null,null,null,null,"معفى",null,null,null,null,null,null,"رياض اطفال1",null,{"$error":"#N/A"}]
[null,null,null,null,null,null,"معفى",null,null,null,null,null,null,"رياض اطفال1",null,{"$error":"#N/A"}]
[null,null,null,null,null,null,"معفى",null,null,null,null,null,null,"رياض اطفال1",null,{"$error":"#N/A"}]
[null,null,null,null,null,null,"معفى",null,null,null,null,null,null,"رياض اطفال1",null,{"$error":"#N/A"}]
[null,null,null,null,null,null,"معفى",null,null,null,null,null,null,"رياض اطفال1",null,{"$error":"#N/A"}]
[null,null,null,null,null,null,"معفى",null,null,null,null,null,null,"رياض اطفال1",null,{"$error":"#N/A"}]
[null,null,null,null,null,null,"معفى",null,null,null,null,null,null,"رياض اطفال1",null,{"$error":"#N/A"}]
[null,null,null,null,null,null,"معفى",null,null,null,null,null,null,"رياض اطفال1",null,{"$error":"#N/A"}]
[null,null,null,null,null,null,"معفى",null,null,null,null,null,null,"رياض اطفال1",null,{"$error":"#N/A"}]
[null,null,null,null,null,null,"معفى",null,null,null,null,null,null,"رياض اطفال1",null,{"$error":"#N/A"}]
[null,null,null,null,null,null,"معفى",null,null,null,null,null,null,"رياض اطفال1",null,{"$error":"#N/A"}]
[null,null,null,null,null,null,"معفى",null,null,null,null,null,null,"رياض اطفال1",null,{"$error":"#N/A"}]
[null,null,null,null,null,null,"معفى",null,null,null,null,null,null,"رياض اطفال1",null,{"$error":"#N/A"}]
[null,null,null,null,null,null,"معفى",null,null,null,null,null,null,"رياض اطفال1",null,{"$error":"#N/A"}]
[null,null,null,null,null,null,"معفى",null,null,null,null,null,null,"رياض اطفال1",null,{"$error":"#N/A"}]
[null,null,null,null,null,null,"معفى",null,null,null,null,null,null,"رياض اطفال1",null,{"$error":"#N/A"}]
[null,null,null,null,null,null,"معفى",null,null,null,null,null,null,"رياض اطفال1",null,{"$error":"#N/A"}]
[null,null,null,null,null,null,"معفى",null,null,null,null,null,null,"رياض اطفال1",null,{"$error":"#N/A"}]
[null,null,null,null,null,null,"معفى",null,null,null,null,null,null,"رياض اطفال1",null,{"$error":"#N/A"}]
[null,null,null,null,null,null,"معفى",null,null,null,null,null,null,"رياض اطفال1",null,{"$error":"#N/A"}]
[null,null,null,null,null,null,"معفى",null,null,null,null,null,null,"رياض اطفال1",null,{"$error":"#N/A"}]
[null,null,null,null,null,null,"معفى",null,null,null,null,null,null,"رياض اطفال1",null,{"$error":"#N/A"}]
[null,null,null,null,null,null,"معفى",null,null,null,null,null,null,"رياض اطفال1",null,{"$error":"#N/A"}]
[null,null,null,null,null,null,"معفى",null,null,null,null,null,null,"رياض اطفال1",null,{"$error":"#N/A"}]
[null,null,null,null,null,null,"معفى",null,null,null,null,null,null,"رياض اطفال1",null,{"$error":"#N/A"}]
[null,null,null,null,null,null,"معفى",null,null,null,null,null,null,"رياض اطفال1",null,{"$error":"#N/A"}]
[null,null,null,null,null,null,"معفى",null,null,null,null,null,null,"رياض اطفال1",null,{"$error":"#N/A"}]
[null,null,null,null,null,null,"معفى",null,null,null,null,null,null,"رياض اطفال1",null,{"$error":"#N/A"}]
[null,null,null,null,null,null,"معفى",null,null,null,null,null,null,"رياض اطفال1",null,{"$error":"#N/A"}]
[null,null,null,null,null,null,"معفى",null,null,null,null,null,null,"رياض اطفال1",null,{"$error":"#N/A"}]
[null,null,null,null,null,null,"معفى",null,null,null,null,null,null,"رياض اطفال1",null,{"$error":"#N/A"}]
[null,null,null,null,null,null,"معفى",null,null,null,null,null,null,"رياض اطفال1",null,{"$error":"#N/A"}]
[null,null,null,null,null,null,"معفى",null,null,null,null,null,null,"رياض اطفال1",null,{"$error":"#N/A"}]
[null,null,null,null,null,null,"معفى",null,null,null,null,null,null,"رياض اطفال1",null,{"$error":"#N/A"}]
[null,null,null,null,null,null,"معفى",null,null,null,null,null,null,"رياض اطفال1",null,{"$error":"#N/A"}]
[null,null,null,null,null,null,"معفى",null,null,null,null,null,null,"رياض اطفال1",null,{"$error":"#N/A"}]
[null,null,null,null,null,null,"معفى",null,null,null,null,null,null,"رياض اطفال1",null,{"$error":"#N/A"}]
[null,null,null,null,null,null,"معفى",null,null,null,null,null,null,"رياض اطفال1",null,{"$error":"#N/A"}]
[null,null,null,null,null,null,"معفى",null,null,null,null,null,null,"رياض اطفال1",null,{"$error":"#N/A"}]
[null,null,null,null,null,null,"معفى",null,null,null,null,null,null,"رياض اطفال1",null,{"$error":"#N/A"}]
[null,null,null,null,null,null,"معفى",null,null,null,null,null,null,"رياض اطفال1",null,{"$error":"#N/A"}]
[null,null,null,null,null,null,"معفى",null,null,null,null,null,null,"رياض اطفال1",null,{"$error":"#N/A"}]
[null,null,null,null,null,null,"معفى",null,null,null,null,null,null,"رياض اطفال1",null,{"$error":"#N/A"}]
[null,null,null,null,null,null,"معفى",null,null,null,null,null,null,"رياض اطفال1",null,{"$error":"#N/A"}]
[null,null,null,null,null,null,"معفى",null,null,null,null,null,null,"رياض اطفال1",null,{"$error":"#N/A"}]
[null,null,null,null,null,null,"معفى",null,null,null,null,null,null,"رياض اطفال1",null,{"$error":"#N/A"}]
[null,null,null,null,null,null,"معفى",null,null,null,null,null,null,"رياض اطفال1",null,{"$error":"#N/A"}]
[null,null,null,null,null,null,"معفى",null,null,null,null,null,null,"رياض اطفال1",null,{"$error":"#N/A"}]
[null,null,null,null,null,null,"معفى",null,null,null,null,null,null,"رياض اطفال1",null,{"$error":"#N/A"}]
[null,null,null,null,null,null,"معفى",null,null,null,null,null,null,"رياض اطفال1",null,{"$error":"#N/A"}]
[null,null,null,null,null,null,"معفى",null,null,null,null,null,null,"رياض اطفال1",null,{"$error":"#N/A"}]
[null,null,null,null,null,null,"معفى",null,null,null,null,null,null,"رياض اطفال1",null,{"$error":"#N/A"}]
[null,null,null,null,null,null,"معفى",null,null,null,null,null,null,"رياض اطفال1",null,{"$error":"#N/A"}]
[null,null,null,null,null,null,"معفى",null,null,null,null,null,null,"رياض اطفال1",null,{"$error":"#N/A"}]
[null,null,null,null,null,null,"معفى",null,null,null,null,null,null,"رياض اطفال1",null,{"$error":"#N/A"}]
[null,null,null,null,null,null,"معفى",null,null,null,null,null,null,"رياض اطفال1",null,{"$error":"#N/A"}]
[null,null,null,null,null,null,"معفى",null,null,null,null,null,null,"رياض اطفال1",null,{"$error":"#N/A"}]
[null,null,null,null,null,null,"معفى",null,null,null,null,null,null,"رياض اطفال1",null,{"$error":"#N/A"}]
[null,null,null,null,null,null,"معفى",null,null,null,null,null,null,"رياض اطفال1",null,{"$error":"#N/A"}]
[null,null,null,null,null,null,"معفى",null,null,null,null,null,null,"رياض اطفال1",null,{"$error":"#N/A"}]
[null,null,null,null,null,null,"معفى",null,null,null,null,null,null,"رياض اطفال1",null,{"$error":"#N/A"}]
[null,null,null,null,null,null,"معفى",null,null,null,null,null,null,"رياض اطفال1",null,{"$error":"#N/A"}]
[null,null,null,null,null,null,"معفى",null,null,null,null,null,null,"رياض اطفال1",null,{"$error":"#N/A"}]
[null,null,null,null,null,null,"معفى",null,null,null,null,null,null,"رياض اطفال1",null,{"$error":"#N/A"}]
[null,null,null,null,null,null,"معفى",null,null,null,null,null,null,"رياض اطفال1",null,{"$error":"#N/A"}]
[null,null,null,null,null,null,"معفى",null,null,null,null,null,null,"رياض اطفال1",null,{"$error":"#N/A"}]
[null,null,null,null,null,null,"معفى",null,null,null,null,null,null,"رياض اطفال1",null,{"$error":"#N/A"}]
[null,null,null,null,null,null,"معفى",null,null,null,null,null,null,"رياض اطفال1",null,{"$error":"#N/A"}]
[null,null,null,null,null,null,"معفى",null,null,null,null,null,null,"رياض اطفال1",null,{"$error":"#N/A"}]
[null,null,null,null,null,null,"معفى",null,null,null,null,null,null,"رياض اطفال1",null,{"$error":"#N/A"}]
[null,null,null,null,null,null,"معفى",null,null,null,null,null,null,"رياض اطفال1",null,{"$error":"#N/A"}]
[null,null,null,null,null,null,"معفى",null,null,null,null,null,null,"رياض اطفال1",null,{"$error":"#N/A"}]
[null,null,null,null,null,null,"معفى",null,null,null,null,null,null,"رياض اطفال1",null,{"$error":"#N/A"}]
[null,null,null,null,null,null,"معفى",null,null,null,null,null,null,"رياض اطفال1",null,{"$error":"#N/A"}]
[null,null,null,null,null,null,"معفى",null,null,null,null,null,null,"رياض اطفال1",null,{"$error":"#N/A"}]
[null,null,null,null,null,null,"معفى",null,null,null,null,null,null,"رياض اطفال1",null,{"$error":"#N/A"}]
[null,null,null,null,null,null,"معفى",null,null,null,null,null,null,"رياض اطفال1",null,{"$error":"#N/A"}]
[null,null,null,null,null,null,"معفى",null,null,null,null,null,null,"رياض اطفال1",null,{"$error":"#N/A"}]
[null,null,null,null,null,null,"معفى",null,null,null,null,null,null,"رياض اطفال1",null,{"$error":"#N/A"}]
[null,null,null,null,null,null,"معفى",null,null,null,null,null,null,"رياض اطفال1",null,{"$error":"#N/A"}]
[null,null,null,null,null,null,"معفى",null,null,null,null,null,null,"رياض اطفال1",null,{"$error":"#N/A"}]
[null,null,null,null,null,null,"معفى",null,null,null,null,null,null,"رياض اطفال1",null,{"$error":"#N/A"}]
[null,null,null,null,null,null,"معفى",null,null,null,null,null,null,"رياض اطفال1",null,{"$error":"#N/A"}]
[null,null,null,null,null,null,"معفى",null,null,null,null,null,null,"رياض اطفال1",null,{"$error":"#N/A"}]
[null,null,null,null,null,null,"معفى",null,null,null,null,null,null,"رياض اطفال1",null,{"$error":"#N/A"}]
[null,null,null,null,null,null,"معفى",null,null,null,null,null,null,"رياض اطفال1",null,{"$error":"#N/A"}]
[null,null,null,null,null,null,"معفى",null,null,null,null,null,null,"رياض اطفال1",null,{"$error":"#N/A"}]
[null,null,null,null,null,null,"معفى",null,null,null,null,null,null,"رياض اطفال1",null,{"$error":"#N/A"}]
[null,null,null,null,null,null,"معفى",null,null,null,null,null,null,"رياض اطفال1",null,{"$error":"#N/A"}]
[null,null,null,null,null,null,"معفى",null,null,null,null,null,null,"رياض اطفال1",null,{"$error":"#N/A"}]
[null,null,null,null,null,null,"معفى",null,null,null,null,null,null,"رياض اطفال1",null,{"$error":"#N/A"}]
[null,null,null,null,null,null,"معفى",null,null,null,null,null,null,"رياض اطفال1",null,{"$error":"#N/A"}]
[null,null,null,null,null,null,"معفى",null,null,null,null,null,null,"رياض اطفال1",null,{"$error":"#N/A"}]
[null,null,null,null,null,null,"معفى",null,null,null,null,null,null,"رياض اطفال1",null,{"$error":"#N/A"}]
[null,null,null,null,null,null,"معفى",null,null,null,null,null,null,"رياض اطفال1",null,{"$error":"#N/A"}]
[null,null,null,null,null,null,"معفى",null,null,null,null,null,null,"رياض اطفال1",null,{"$error":"#N/A"}]
[null,null,null,null,null,null,"معفى",null,null,null,null,null,null,"رياض اطفال1",null,{"$error":"#N/A"}]
[null,null,null,null,null,null,"معفى",null,null,null,null,null,null,"رياض اطفال1",null,{"$error":"#N/A"}]
[null,null,null,null,null,null,"معفى",null,null,null,null,null,null,"رياض اطفال1",null,{"$error":"#N/A"}]
[null,null,null,null,null,null,"معفى",null,null,null,null,null,null,"رياض اطفال1",null,{"$error":"#N/A"}]
[null,null,null,null,null,null,"معفى",null,null,null,null,null,null,"رياض اطفال1",null,{"$error":"#N/A"}]
[null,null,null,null,null,null,"معفى",null,null,null,null,null,null,"رياض اطفال1",null,{"$error":"#N/A"}]
[null,null,null,null,null,null,"معفى",null,null,null,null,null,null,"رياض اطفال1",null,{"$error":"#N/A"}]
[null,null,null,null,null,null,"معفى",null,null,null,null,null,null,"رياض اطفال1",null,{"$error":"#N/A"}]
[null,null,null,null,null,null,"معفى",null,null,null,null,null,null,"رياض اطفال1",null,{"$error":"#N/A"}]
[null,null,null,null,null,null,"معفى",null,null,null,null,null,null,"رياض اطفال1",null,{"$error":"#N/A"}]
[null,null,null,null,null,null,"معفى",null,null,null,null,null,null,"رياض اطفال1",null,{"$error":"#N/A"}]
[null,null,null,null,null,null,"معفى",null,null,null,null,null,null,"رياض اطفال1",null,{"$error":"#N/A"}]
[null,null,null,null,null,null,"معفى",null,null,null,null,null,null,"رياض اطفال1",null,{"$error":"#N/A"}]
[null,null,null,null,null,null,"معفى",null,null,null,null,null,null,"رياض اطفال1",null,{"$error":"#N/A"}]
[null,null,null,null,null,null,"معفى",null,null,null,null,null,null,"رياض اطفال1",null,{"$error":"#N/A"}]
[null,null,null,null,null,null,"معفى",null,null,null,null,null,null,"رياض اطفال1",null,{"$error":"#N/A"}]
[null,null,null,null,null,null,"معفى",null,null,null,null,null,null,"رياض اطفال1",null,{"$error":"#N/A"}]
[null,null,null,null,null,null,"معفى",null,null,null,null,null,null,"رياض اطفال1",null,{"$error":"#N/A"}]
[null,null,null,null,null,null,"معفى",null,null,null,null,null,null,"رياض اطفال1",null,{"$error":"#N/A"}]
[null,null,null,null,null,null,"معفى",null,null,null,null,null,null,"رياض اطفال1",null,{"$error":"#N/A"}]
[null,null,null,null,null,null,"معفى",null,null,null,null,null,null,"رياض اطفال1",null,{"$error":"#N/A"}]
[null,null,null,null,null,null,"معفى",null,null,null,null,null,null,"رياض اطفال1",null,{"$error":"#N/A"}]
[null,null,null,null,null,null,"معفى",null,null,null,null,null,null,"رياض اطفال1",null,{"$error":"#N/A"}]
[null,null,null,null,null,null,"معفى",null,null,null,null,null,null,"رياض اطفال1",null,{"$error":"#N/A"}]
[null,null,null,null,null,null,"معفى",null,null,null,null,null,null,"رياض اطفال1",null,{"$error":"#N/A"}]
[null,null,null,null,null,null,"معفى",null,null,null,null,null,null,"رياض اطفال1",null,{"$error":"#N/A"}]
[null,null,null,null,null,null,"معفى",null,null,null,null,null,null,"رياض اطفال1",null,{"$error":"#N/A"}]
[null,null,null,null,null,null,"معفى",null,null,null,null,null,null,"رياض اطفال1",null,{"$error":"#N/A"}]
[null,null,null,null,null,null,"معفى",null,null,null,null,null,null,"رياض اطفال1",null,{"$error":"#N/A"}]
[null,null,null,null,null,null,"معفى",null,null,null,null,null,null,"رياض اطفال1",null,{"$error":"#N/A"}]
[null,null,null,null,null,null,"معفى",null,null,null,null,null,null,"رياض اطفال1",null,{"$error":"#N/A"}]
[null,null,null,null,null,null,"معفى",null,null,null,null,null,null,"رياض اطفال1",null,{"$error":"#N/A"}]
[null,null,null,null,null,null,"معفى",null,null,null,null,null,null,"رياض اطفال1",null,{"$error":"#N/A"}]
[null,null,null,null,null,null,"معفى",null,null,null,null,null,null,"رياض اطفال1",null,{"$error":"#N/A"}]
[null,null,null,null,null,null,"معفى",null,null,null,null,null,null,"رياض اطفال1",null,{"$error":"#N/A"}]
[null,null,null,null,null,null,"معفى",null,null,null,null,null,null,"رياض اطفال1",null,{"$error":"#N/A"}]
[null,null,null,null,null,null,"معفى",null,null,null,null,null,null,"رياض اطفال1",null,{"$error":"#N/A"}]
[null,null,null,null,null,null,"معفى",null,null,null,null,null,null,"رياض اطفال1",null,{"$error":"#N/A"}]
[null,null,null,null,null,null,"معفى",null,null,null,null,null,null,"رياض اطفال1",null,{"$error":"#N/A"}]
[null,null,null,null,null,null,"معفى",null,null,null,null,null,null,"رياض اطفال1",null,{"$error":"#N/A"}]
[null,null,null,null,null,null,"معفى",null,null,null,null,null,null,"رياض اطفال1",null,{"$error":"#N/A"}]
[null,null,null,null,null,null,"معفى",null,null,null,null,null,null,"رياض اطفال1",null,{"$error":"#N/A"}]
[null,null,null,null,null,null,"معفى",null,null,null,null,null,null,"رياض اطفال1",null,{"$error":"#N/A"}]
[null,null,null,null,null,null,"معفى",null,null,null,null,null,null,"رياض اطفال1",null,{"$error":"#N/A"}]
[null,null,null,null,null,null,"معفى",null,null,null,null,null,null,"رياض اطفال1",null,{"$error":"#N/A"}]
[null,null,null,null,null,null,"معفى",null,null,null,null,null,null,"رياض اطفال1",null,{"$error":"#N/A"}]
[null,null,null,null,null,null,"معفى",null,null,null,null,null,null,"رياض اطفال1",null,{"$error":"#N/A"}]
[null,null,null,null,null,null,"معفى",null,null,null,null,null,null,"رياض اطفال1",null,{"$error":"#N/A"}]
[null,null,null,null,null,null,"معفى",null,null,null,null,null,null,"رياض اطفال1",null,{"$error":"#N/A"}]
[null,null,null,null,null,null,"معفى",null,null,null,null,null,null,"رياض اطفال1",null,{"$error":"#N/A"}]
[null,null,null,null,null,null,"معفى",null,null,null,null,null,null,"رياض اطفال1",null,{"$error":"#N/A"}]
[null,null,null,null,null,null,"معفى",null,null,null,null,null,null,"رياض اطفال1",null,{"$error":"#N/A"}]
[null,null,null,null,null,null,"معفى",null,null,null,null,null,null,"رياض اطفال1",null,{"$error":"#N/A"}]
[null,null,null,null,null,null,"معفى",null,null,null,null,null,null,"رياض اطفال1",null,{"$error":"#N/A"}]
[null,null,null,null,null,null,"معفى",null,null,null,null,null,null,"رياض اطفال1",null,{"$error":"#N/A"}]
[null,null,null,null,null,null,"معفى",null,null,null,null,null,null,"رياض اطفال1",null,{"$error":"#N/A"}]
[null,null,null,null,null,null,"معفى",null,null,null,null,null,null,"رياض اطفال1",null,{"$error":"#N/A"}]
[null,null,null,null,null,null,"معفى",null,null,null,null,null,null,"رياض اطفال1",null,{"$error":"#N/A"}]
[null,null,null,null,null,null,"معفى",null,null,null,null,null,null,"رياض اطفال1",null,{"$error":"#N/A"}]
[null,null,null,null,null,null,"معفى",null,null,null,null,null,null,"رياض اطفال1",null,{"$error":"#N/A"}]
[null,null,null,null,null,null,"معفى",null,null,null,null,null,null,"رياض اطفال1",null,{"$error":"#N/A"}]
[null,null,null,null,null,null,"معفى",null,null,null,null,null,null,"رياض اطفال1",null,{"$error":"#N/A"}]
[null,null,null,null,null,null,"معفى",null,null,null,null,null,null,"رياض اطفال1",null,{"$error":"#N/A"}]
[null,null,null,null,null,null,"معفى",null,null,null,null,null,null,"رياض اطفال1",null,{"$error":"#N/A"}]
[null,null,null,null,null,null,"معفى",null,null,null,null,null,null,"رياض اطفال1",null,{"$error":"#N/A"}]
[null,null,null,null,null,null,"معفى",null,null,null,null,null,null,"رياض اطفال1",null,{"$error":"#N/A"}]
[null,null,null,null,null,null,"معفى",null,null,null,null,null,null,"رياض اطفال1",null,{"$error":"#N/A"}]
[null,null,null,null,null,null,"معفى",null,null,null,null,null,null,"رياض اطفال1",null,{"$error":"#N/A"}]
[null,null,null,null,null,null,"معفى",null,null,null,null,null,null,"رياض اطفال1",null,{"$error":"#N/A"}]
[null,null,null,null,null,null,"معفى",null,null,null,null,null,null,"رياض اطفال1",null,{"$error":"#N/A"}]
[null,null,null,null,null,null,"معفى",null,null,null,null,null,null,"رياض اطفال1",null,{"$error":"#N/A"}]
[null,null,null,null,null,null,"معفى",null,null,null,null,null,null,"رياض اطفال1",null,{"$error":"#N/A"}]
[null,null,null,null,null,null,"معفى",null,null,null,null,null,null,"رياض اطفال1",null,{"$error":"#N/A"}]
[null,null,null,null,null,null,"معفى",null,null,null,null,null,null,"رياض اطفال1",null,{"$error":"#N/A"}]
[null,null,null,null,null,null,"معفى",null,null,null,null,null,null,"رياض اطفال1",null,{"$error":"#N/A"}]
[null,null,null,null,null,null,"معفى",null,null,null,null,null,null,"رياض اطفال1",null,{"$error":"#N/A"}]
[null,null,null,null,null,null,"معفى",null,null,null,null,null,null,"رياض اطفال1",null,{"$error":"#N/A"}]
[null,null,null,null,null,null,"معفى",null,null,null,null,null,null,"رياض اطفال1",null,{"$error":"#N/A"}]
[null,null,null,null,null,null,"معفى",null,null,null,null,null,null,"رياض اطفال1",null,{"$error":"#N/A"}]
[null,null,null,null,null,null,"معفى",null,null,null,null,null,null,"رياض اطفال1",null,{"$error":"#N/A"}]
[null,null,null,null,null,null,"معفى",null,null,null,null,null,null,"رياض اطفال1",null,{"$error":"#N/A"}]
[null,null,null,null,null,null,"معفى",null,null,null,null,null,null,"رياض اطفال1",null,{"$error":"#N/A"}]
[null,null,null,null,null,null,"معفى",null,null,null,null,null,null,"رياض اطفال1",null,{"$error":"#N/A"}]
[null,null,null,null,null,null,"معفى",null,null,null,null,null,null,"رياض اطفال1",null,{"$error":"#N/A"}]
[null,null,null,null,null,null,"معفى",null,null,null,null,null,null,"رياض اطفال1",null,{"$error":"#N/A"}]
[null,null,null,null,null,null,"معفى",null,null,null,null,null,null,"رياض اطفال1",null,{"$error":"#N/A"}]
[null,null,null,null,null,null,"معفى",null,null,null,null,null,null,"رياض اطفال1",null,{"$error":"#N/A"}]
[null,null,null,null,null,null,"معفى",null,null,null,null,null,null,"رياض اطفال1",null,{"$error":"#N/A"}]
[null,null,null,null,null,null,"معفى",null,null,null,null,null,null,"رياض اطفال1",null,{"$error":"#N/A"}]
[null,null,null,null,null,null,"معفى",null,null,null,null,null,null,"رياض اطفال1",null,{"$error":"#N/A"}]
[null,null,null,null,null,null,"معفى",null,null,null,null,null,null,"رياض اطفال1",null,{"$error":"#N/A"}]
[null,null,null,null,null,null,"معفى",null,null,null,null,null,null,"رياض اطفال1",null,{"$error":"#N/A"}]
[null,null,null,null,null,null,"معفى",null,null,null,null,null,null,"رياض اطفال1",null,{"$error":"#N/A"}]
[null,null,null,null,null,null,"معفى",null,null,null,null,null,null,"رياض اطفال1",null,{"$error":"#N/A"}]
[null,null,null,null,null,null,"معفى",null,null,null,null,null,null,"رياض اطفال1",null,{"$error":"#N/A"}]
[null,null,null,null,null,null,"معفى",null,null,null,null,null,null,"رياض اطفال1",null,{"$error":"#N/A"}]
[null,null,null,null,null,null,"معفى",null,null,null,null,null,null,"رياض اطفال1",null,{"$error":"#N/A"}]
[null,null,null,null,null,null,"معفى",null,null,null,null,null,null,"رياض اطفال1",null,{"$error":"#N/A"}]
[null,null,null,null,null,null,"معفى",null,null,null,null,null,null,"رياض اطفال1",null,{"$error":"#N/A"}]
[null,null,null,null,null,null,"معفى",null,null,null,null,null,null,"رياض اطفال1",null,{"$error":"#N/A"}]
[null,null,null,null,null,null,"معفى",null,null,null,null,null,null,"رياض اطفال1",null,{"$error":"#N/A"}]
[null,null,null,null,null,null,"معفى",null,null,null,null,null,null,"رياض اطفال1",null,{"$error":"#N/A"}]
[null,null,null,null,null,null,"معفى",null,null,null,null,null,null,"رياض اطفال1",null,{"$error":"#N/A"}]
[null,null,null,null,null,null,"معفى",null,null,null,null,null,null,"رياض اطفال1",null,{"$error":"#N/A"}]
[null,null,null,null,null,null,"معفى",null,null,null,null,null,null,"رياض اطفال1",null,{"$error":"#N/A"}]
[null,null,null,null,null,null,"معفى",null,null,null,null,null,null,"رياض اطفال1",null,{"$error":"#N/A"}]
[null,null,null,null,null,null,"معفى",null,null,null,null,null,null,"رياض اطفال1",null,{"$error":"#N/A"}]
[null,null,null,null,null,null,"معفى",null,null,null,null,null,null,"رياض اطفال1",null,{"$error":"#N/A"}]
[null,null,null,null,null,null,"معفى",null,null,null,null,null,null,"رياض اطفال1",null,{"$error":"#N/A"}]
[null,null,null,null,null,null,"معفى",null,null,null,null,null,null,"رياض اطفال1",null,{"$error":"#N/A"}]
[null,null,null,null,null,null,"معفى",null,null,null,null,null,null,"رياض اطفال1",null,{"$error":"#N/A"}]
[null,null,null,null,null,null,"معفى",null,null,null,null,null,null,"رياض اطفال1",null,{"$error":"#N/A"}]
[null,null,null,null,null,null,"معفى",null,null,null,null,null,null,"رياض اطفال1",null,{"$error":"#N/A"}]
[null,null,null,null,null,null,"معفى",null,null,null,null,null,null,"رياض اطفال1",null,{"$error":"#N/A"}]
[null,null,null,null,null,null,"معفى",null,null,null,null,null,null,"رياض اطفال1",null,{"$error":"#N/A"}]
[null,null,null,null,null,null,"معفى",null,null,null,null,null,null,"رياض اطفال1",null,{"$error":"#N/A"}]
[null,null,null,null,null,null,"معفى",null,null,null,null,null,null,"رياض اطفال1",null,{"$error":"#N/A"}]
[null,null,null,null,null,null,"معفى",null,null,null,null,null,null,"رياض اطفال1",null,{"$error":"#N/A"}]
[null,null,null,null,null,null,"معفى",null,null,null,null,null,null,"رياض اطفال1",null,{"$error":"#N/A"}]
[null,null,null,null,null,null,"معفى",null,null,null,null,null,null,"رياض اطفال1",null,{"$error":"#N/A"}]
[null,null,null,null,null,null,"معفى",null,null,null,null,null,null,"رياض اطفال1",null,{"$error":"#N/A"}]
[null,null,null,null,null,null,"معفى",null,null,null,null,null,null,"رياض اطفال1",null,{"$error":"#N/A"}]
[null,null,null,null,null,null,"معفى",null,null,null,null,null,null,"رياض اطفال1",null,{"$error":"#N/A"}]
[null,null,null,null,null,null,"معفى",null,null,null,null,null,null,"رياض اطفال1",null,{"$error":"#N/A"}]
[null,null,null,null,null,null,"معفى",null,null,null,null,null,null,"رياض اطفال1",null,{"$error":"#N/A"}]
[null,null,null,null,null,null,"معفى",null,null,null,null,null,null,"رياض اطفال1",null,{"$error":"#N/A"}]
[null,null,null,null,null,null,"معفى",null,null,null,null,null,null,"رياض اطفال1",null,{"$error":"#N/A"}]
[null,null,null,null,null,null,"معفى",null,null,null,null,null,null,"رياض اطفال1",null,{"$error":"#N/A"}]
[null,null,null,null,null,null,"معفى",null,null,null,null,null,null,"رياض اطفال1",null,{"$error":"#N/A"}]
[null,null,null,null,null,null,"معفى",null,null,null,null,null,null,"رياض اطفال1",null,{"$error":"#N/A"}]
[null,null,null,null,null,null,"معفى",null,null,null,null,null,null,"رياض اطفال1",null,{"$error":"#N/A"}]
[null,null,null,null,null,null,"معفى",null,null,null,null,null,null,"رياض اطفال1",null,{"$error":"#N/A"}]
[null,null,null,null,null,null,"معفى",null,null,null,null,null,null,"رياض اطفال1",null,{"$error":"#N/A"}]
[null,null,null,null,null,null,"معفى",null,null,null,null,null,null,"رياض اطفال1",null,{"$error":"#N/A"}]
[null,null,null,null,null,null,"معفى",null,null,null,null,null,null,"رياض اطفال1",null,{"$error":"#N/A"}]
[null,null,null,null,null,null,"معفى",null,null,null,null,null,null,"رياض اطفال1",null,{"$error":"#N/A"}]
[null,null,null,null,null,null,"معفى",null,null,null,null,null,null,"رياض اطفال1",null,{"$error":"#N/A"}]
[null,null,null,null,null,null,"معفى",null,null,null,null,null,null,"رياض اطفال1",null,{"$error":"#N/A"}]
[null,null,null,null,null,null,"معفى",null,null,null,null,null,null,"رياض اطفال1",null,{"$error":"#N/A"}]
[null,null,null,null,null,null,"معفى",null,null,null,null,null,null,"رياض اطفال1",null,{"$error":"#N/A"}]
[null,null,null,null,null,null,"معفى",null,null,null,null,null,null,"رياض اطفال1",null,{"$error":"#N/A"}]
[null,null,null,null,null,null,"معفى",null,null,null,null,null,null,"رياض اطفال1",null,{"$error":"#N/A"}]
[null,null,null,null,null,null,"معفى",null,null,null,null,null,null,"رياض اطفال1",null,{"$error":"#N/A"}]
[null,null,null,null,null,null,"معفى",null,null,null,null,null,null,"رياض اطفال1",null,{"$error":"#N/A"}]
[null,null,null,null,null,null,"معفى",null,null,null,null,null,null,"رياض اطفال1",null,{"$error":"#N/A"}]
[null,null,null,null,null,null,"معفى",null,null,null,null,null,null,"رياض اطفال1",null,{"$error":"#N/A"}]
[null,null,null,null,null,null,"معفى",null,null,null,null,null,null,"رياض اطفال1",null,{"$error":"#N/A"}]
[null,null,null,null,null,null,"معفى",null,null,null,null,null,null,"رياض اطفال1",null,{"$error":"#N/A"}]
[null,null,null,null,null,null,"معفى",null,null,null,null,null,null,"رياض اطفال1",null,{"$error":"#N/A"}]
[null,null,null,null,null,null,"معفى",null,null,null,null,null,null,"رياض اطفال1",null,{"$error":"#N/A"}]
[null,null,null,null,null,null,"معفى",null,null,null,null,null,null,"رياض اطفال1",null,{"$error":"#N/A"}]
[null,null,null,null,null,null,"معفى",null,null,null,null,null,null,"رياض اطفال1",null,{"$error":"#N/A"}]
[null,null,null,null,null,null,"معفى",null,null,null,null,null,null,"رياض اطفال1",null,{"$error":"#N/A"}]
[null,null,null,null,null,null,"معفى",null,null,null,null,null,null,"رياض اطفال1",null,{"$error":"#N/A"}]
[null,null,null,null,null,null,"معفى",null,null,null,null,null,null,"رياض اطفال1",null,{"$error":"#N/A"}]
[null,null,null,null,null,null,"معفى",null,null,null,null,null,null,"رياض اطفال1",null,{"$error":"#N/A"}]
[null,null,null,null,null,null,"معفى",null,null,null,null,null,null,"رياض اطفال1",null,{"$error":"#N/A"}]
[null,null,null,null,null,null,"معفى",null,null,null,null,null,null,"رياض اطفال1",null,{"$error":"#N/A"}]
[null,null,null,null,null,null,"معفى",null,null,null,null,null,null,"رياض اطفال1",null,{"$error":"#N/A"}]
[null,null,null,null,null,null,"معفى",null,null,null,null,null,null,"رياض اطفال1",null,{"$error":"#N/A"}]

{"sheet":"final sheet","index":3,"n_rows":197,"n_cols":20,"rows_kept":197,"cut":false,"hidden":true,"merged":[]}
[]
[]
["a"]
[]
["م","اسم الطالب","اسم الاب","اسم الجد","باقى الاسم","الرقم القومى","تاريخ الميلاد","اسم الام","اسم الاب لام","اسم الجد لام","باقى اسم الام","العنوان ","رقم التيليفون","رقم المحمول","المحافظة","الفصل","رقم الصف","النوع","اللغة الثانية","الصف"]
[1,"لى لى","عبد رب النبى","عبد الرحمن"," ",31705150108774,"2017-05-15","منه الله","عبد رب الرسول","علاء الدين"," احمد محمد منصور","مدينتى - بى 3 - مجموعة 32 عمارة 36 أ بى سي دى ايه ف /-","01007704932","01007704900",1,6,1,1,6,"رياض اطفال1"]
[null,null,null,null,null,31705150208774,"2017-05-15",null,null,null,null,null,null,null,2,null,1,null,6,"رياض اطفال1"]
[]
[]
[]
[]
[]
[]
[]
[]
[]
[]
[]
[]
[]
[]
[]
[]
[]
[]
[]
[]
[]
[]
[]
[]
[]
[]
[]
[]
[]
[]
[]
[]
[]
[]
[]
[]
[]
[]
[]
[]
[]
[]
[]
[]
[]
[]
[]
[]
[]
[]
[]
[]
[]
[]
[]
[]
[]
[]
[]
[]
[]
[]
[]
[]
[]
[]
[]
[]
[]
[]
[]
[]
[]
[]
[]
[]
[]
[]
[]
[]
[]
[]
[]
[]
[]
[]
[]
[]
[]
[]
[]
[]
[]
[]
[]
[]
[]
[]
[]
[]
[]
[]
[]
[]
[]
[]
[]
[]
[]
[]
[]
[]
[]
[]
[]
[]
[]
[]
[]
[]
[]
[]
[]
[]
[]
[]
[]
[]
[]
[]
[]
[]
[]
[]
[]
[]
[]
[]
[]
[]
[]
[]
[]
[]
[]
[]
[]
[]
[]
[]
[]
[]
[]
[]
[]
[]
[]
[]
[]
[]
[]
[]
[]
[]
[]
[]
[]
[]
[]
[]
[]
[]
[]
[]
[]
[]
[]
[]
[]
[]
[]
[]
[]
[]
[]
[]
[]
[]
[]
[null,null,null,null,null,null,"--",null,null,null,null,null,null,null,""]

{"sheet":"Sheet1","index":4,"n_rows":37,"n_cols":15,"rows_kept":37,"cut":false,"hidden":false,"merged":[]}
["الكود",1,2,3,4,11,12,13,14,15,16,17,18,19,21]
["المحافظة","القاهرة","الإسكندرية","بورسعيد","السويس","دمياط","الدقهلية","الشرقية","القليوبية","كفر الشيخ","الغربية","المنوفية","البحيرة","الإسماعيلية","الجيزة"]
["الكود",22,23,24,25,26,27,28,29,31,32,33,34,35,88]
["المحافظة","بني سويف","الفيوم","المنيا","أسيوط","سوهاج","قنا","أسوان","الأقصر","البحر الأحمر","الوادى الجديد","مطروح","شمال سيناء","جنوب سيناء","خارج الجمهورية"]
[]
["اقرأ أيضا"]
[]
[]
[]
[null,null,null,null,null,null,null,"القاهرة","01","بني سويف",22]
[null,null,null,null,null,null,null,"الإسكندرية","02","الفيوم",23]
[null,null,null,null,null,null,null,"بورسعيد","03","المنيا",24]
[null,null,null,null,null,null,null,"السويس","04","أسيوط",25]
[null,null,null,null,null,null,null,"دمياط",11,"سوهاج",26]
[null,null,null,null,null,null,null,"الدقهلية",12,"قنا",27]
[null,null,null,null,null,null,null,"الشرقية",13,"أسوان",28]
[null,null,null,null,null,null,null,"القليوبية",14,"الأقصر",29]
[null,null,null,null,null,null,null,"كفر الشيخ",15,"البحر الأحمر",31]
[null,null,null,null,null,null,null,"الغربية",16,"الوادى الجديد",32]
[null,null,null,null,null,null,null,"المنوفية",17,"مطروح",33]
[null,null,null,null,null,null,null,"البحيرة",18,"شمال سيناء",34]
[null,null,null,null,null,null,null,"الإسماعيلية",19,"جنوب سيناء",35]
[null,null,null,null,null,null,null,"الجيزة",21,"خارج الجمهورية",88]
[null,null,null,null,null,null,null,"بني سويف",22]
[null,null,null,null,null,null,null,"الفيوم",23]
[null,null,null,null,null,null,null,"المنيا",24]
[null,null,null,null,null,null,null,"أسيوط",25]
[null,null,null,null,null,null,null,"سوهاج",26]
[null,null,null,null,null,null,null,"قنا",27]
[null,null,null,null,null,null,null,"أسوان",28]
[null,null,null,null,null,null,null,"الأقصر",29]
[null,null,null,null,null,null,null,"البحر الأحمر",31]
[null,null,null,null,null,null,null,"الوادي الجديد",32]
[null,null,null,null,null,null,null,"مطروح",33]
[null,null,null,null,null,null,null,"شمال سيناء",34]
[null,null,null,null,null,null,null,"جنوب سيناء",35]
[null,null,null,null,null,null,null,"المركز الرئيسى",88]